Workbook

Sheet 2015-16 DATA
A1: Your Council 2015/16 | E1: The State of Local Government in NSW | AD1: How is the NSW Local Government Sector Performing Financially? | BK1: Services Provided to You by Council | CZ1: Managing Community Assets | DI1: Stronger Community Leadership
E2: Your Local Population | T2: Your Local Economy | AD2: Your Council's Financial Performance | AL2: Your Council's Financial Result | AP2: Your Council's Residential Rating Trends | BA2: Your Council's Other Rating Revenue | BK2: Your Council's Expenditure on Services | CH2: Your Council's Waste Management | CQ2: Your Council's Services | CZ2: Your Council's Community Assets | DI2: Your Council's Community Leadership | DS2: Your Council
A3: Council The councils listed are those that continued operations and reported for the financial year 1 July 2015 to 30 June 2016 | B3: OLG Group | C3: Classification | D3: Council Area (km2) | E3: Population | F3: Population Change over 5 years (%) | G3: Population Density per capita/km2 | H3: Male Population | I3: Male Population (%) | J3: Female Population | K3: Female Population (%) | L3: Population aged 19 and less (%) | M3: Population aged between 20 & 60 (%) | N3: Population aged over 60 (%) | O3: Population <30 (%) | P3: Population >30<60 (%) | Q3: Population >60 (%) | R3: Aboriginal & Torres Strait Islanders Pop’n (%) | S3: Language other than English Pop’n (%) | T3: Socio-Economic Index Rating | U3: SALM Unemployment Rate at 30 June 2016 (%) | V3: 2013 Average taxable income (taxable and non-taxable individuals) ($) | W3: Census 2016 - Average Household Size (Number) | X3: Largest Industry Employer | Y3: Number of Active Businesses in LGA | Z3: Number Development Applications Determined by Councillors | AA3: Number of Development Applications Determined | AB3: Value of Development Applications Determined ($) | AC3: Mean Gross Days for Development Applications | AD3: Operating Performance Ratio | AE3: Unrestricted Current Ratio | AF3: % Own Source Revenue | AG3: % Grants Revenue | AH3: Rates and Annual Charges Outstanding (%) | AI3: Debt Service Cover Ratio | AJ3: Debt Service Ratio | AK3: Cash Expense Cover Ratio | AL3: Total Expenses from Continuing Operations 2013/14 ($'000) | AM3: Total Expenses from Continuing Operations 2014/15 ($'000) | AN3: Total Expenses from Continuing Operations 2015/16 ($'000) | AO3: Total Revenue from Continuing Operations 2015/16 ($,000) | AP3: Total Residential Rating Revenue 2013/14 ($'000) | AQ3: Average Residential Rate 2013/14 ($) | AR3: Number of Residential Rating Assessments 2013/14 | AS3: Total Residential Rating Revenue 2014/15 ($'000) | AT3: Average Residential Rate 2014/15 ($) | AU3: Number of Residential Rating Assessments 2014/15 | AV3: Total Residential Rating Revenue 2015/16 ($'000) | AW3: Average Residential Rate 2015/16 ($) | AX3: Number of Residential Rating Assessments 2015/16 | AY3: Residential assessments connect to the internet (%) | AZ3: Pensioner Residential Rate (%) | BA3: Total Farmland Rates Revenue ($'000) | BB3: Average Farmland Rate ($) | BC3: Total Number Farmland Assessments | BD3: Total Business Rates Revenue ($'000) | BE3: Average Business Assessment ($) | BF3: Total Number Business Assessments | BG3: Total Mining Rates Revenue ($'000) | BH3: Average Mining Rates ($) | BI3: Total Number Mining Assessments | BJ3: Total Rate Income / Total Land Value ($) | BK3: Total Governance & Administration Expenditure ($'000) | BL3: % of Total Expenditure on Governance & Administration | BM3: Total Public Order, Safety, Health, Water & Sewer Expenditure ($'000) | BN3: % of Total Expenditure on Public Order, Safety, Health, Water & Sewer | BO3: Total Environmental Expenditure ($'000) | BP3: % of Total Expenditure on Environmental | BQ3: Total Community Services, Education & Housing Expenditure ($'000) | BR3: % of Total Expenditure on Community Services, Education & Housing | BS3: Total Recreational & Cultural Expenditure ($'000) | BT3: % of Total Expenditure on Recreational & Cultural | BU3: Total Roads, Bridges & Footpaths Expenditure ($'000) | BV3: % of Total Expenditure on Roads, Bridges & Footpaths | BW3: Total Other Services Expenditure ($'000) | BX3: % of Total Expenditure on Other Services | BY3: Governance & Administration Expenditure per capita ($) | BZ3: Environmental Expenditure per capita ($) | CA3: Total Water & Sewer Expenditure per capita ($) | CB3: Community Services & Education, Housing & Community Amenities Expenditure per capita ($) | CC3: Recreational & Cultural Expenditure per capita ($) | CD3: Public Order, Safety & Health Expenditure per capita ($) | CE3: Other Services Expenditure per capita ($) | CF3: Library Services Expenditure per Capita ($) | CG3: Roads, Bridges & Footpaths Expenditure per capita ($) | CH3: Typical Water & Sewer Bill ($) | CI3: Average Domestic Waste Annual Charge ($) | CJ3: Recycling Rate (%) | CK3: Tonnes Collected of Dry Recycling | CL3: Dry Recycling of Total Waste (%) | CM3: Tonnes Collected of Organics | CN3: Organics of Total Waste (%) | CO3: Tonnes Collected of Residual Waste | CP3: Residual Waste of Total Waste (%) | CQ3: Companion Animals micro chipped (No.) | CR3: Companion Animals micro chipped and registered (%) | CS3: Total Road Length (inlcuding local, regional & state) (km) | CT3: Metre Road Length per '000 capita | CU3: Open Public Space (ha) | CV3: Number of Public Swimming Pools | CW3: Number of Public Halls | CX3: Number of Public Libraries | CY3: Library Circular per capita | CZ3: Actual Asset Maintenance Expenditure 2013/14 ($'000) | DA3: Required Asset Maintenance Expenditure 2013/14 ($,000) | DB3: Actual Asset Maintenance Expenditure 2014/15 ($'000) | DC3: Required Asset Maintenance Expenditure 2014/15 ($'000) | DD3: Actual Asset Maintenance Expenditure 2015/16 ($'000) | DE3: Required Asset Maintenance Expenditure 2015/16 ($'000) | DF3: Asset Maintenance Ratio (%) | DG3: Building & Infrastructure Renewal Ratio (%) | DH3: Infrastructure Backlog Ratio | DI3: Audited Financial Statements Submitted on Time | DJ3: Councillor Expenses ($) | DK3: Total Mayoral & Councillor Fees ($) | DL3: Mayoral & Councillor Overseas Travel ($) | DM3: Mayoral & Councillor Conference Expenses ($) | DN3: Mayoral & Councillor Interstate Travel ($) | DO3: General Manager's Remuneration ($) | DP3: Number of Code of Conduct Complaints Received | DQ3: Cost of dealing with Code of Conduct Complaints ($) | DR3: Complaints Investigated for Breach (No.) | DS3: Number of Councillors | DT3: Number of Councillors /Population | DU3: Elected Female Councillors (%) | DV3: Elected Male Councillors (%) | DW3: Councillors ATSI (%) | DX3: Councillors NESB (%) | DY3: Elected Age < 30 years (%) | DZ3: Elected Age between 30 and 59 (%) | EA3: Elected Age 60+ years (%) | EB3: Full Time Equivalent Staff | EC3: Population/Equivalent Full Time Staff
A4: Albury City Council | B4: 4 | C4: Regional Town/City | D4: 305.9 | E4: 51722 | F4: 2.375202882 | G4: 167 | H4: 25087 | I4: 48.50353815 | J4: 26635 | K4: 51.49646185 | L4: 25.51912146 | M4: 52.0281505 | N4: 22.45272805 | O4: 40.2807316 | P4: 37.26654035 | Q4: 22.45272805 | R4: 2.3 | S4: 5.3 | T4: 87 | U4: 8.3 | V4: 50414.39626 | W4: 2.4 | X4: Health care/social assistance | Y4: 4307 | Z4: n/a | AA4: n/a | AB4: n/a | AC4: n/a | AD4: 12.98 | AE4: 3.29 | AF4: 81.31 | AG4: 18.69 | AH4: 10.8 | AI4: 6.79 | AJ4: 5.641348609 | AK4: 13.43 | AL4: 100676 | AM4: 101221 | AN4: 101906 | AO4: 132186 | AP4: 24086 | AQ4: 1145.098412 | AR4: 21034 | AS4: 25396 | AT4: 1189.341076 | AU4: 21353 | AV4: 26493 | AW4: 1217.509191 | AX4: 21760 | AY4: 69.9 | AZ4: 18.11121324 | BA4: 504 | BB4: 2831.460674 | BC4: 178 | BD4: 9747 | BE4: 5794.887039 | BF4: 1682 | BG4: n/a | BH4: n/a | BI4: 0 | BJ4: 86.13833742 | BK4: 12143 | BL4: 11.91646794 | BM4: 23748 | BN4: 23.30497247 | BO4: 13298 | BP4: 13.049921 | BQ4: 9646 | BR4: 9.466050382 | BS4: 17760 | BT4: 17.42868078 | BU4: 8955 | BV4: 8.787941237 | BW4: 16351 | BX4: 16.04596618 | BY4: 234.7743707 | BZ4: 257.1052937 | CA4: 420.4013766 | CB4: 186.4970419 | CC4: 343.3741928 | CD4: 38.74560148 | CE4: 316.1324001 | CF4: 42.38041839 | CG4: 173.1371563 | CH4: 1161 | CI4: 267.0496324 | CJ4: 49.4713042 | CK4: 8502.374 | CL4: 26.48353773 | CM4: 5633.51 | CN4: 17.54748434 | CO4: 17968.5 | CP4: 55.96900908 | CQ4: 14973 | CR4: 52.70389791 | CS4: 572.48 | CT4: 11.06840416 | CU4: 2029.7 | CV4: 2 | CW4: 13 | CX4: 2 | CY4: 6.834074475 | CZ4: 10185 | DA4: 7817 | DB4: 9074 | DC4: 8951 | DD4: 29201 | DE4: 35802 | DF4: 81.56 | DG4: 65.51 | DH4: 2.93 | DI4: Yes | DJ4: 17000 | DK4: 210000 | DL4: 0 | DM4: 7140 | DN4: 10676 | DO4: 308000 | DP4: 1 | DQ4: 290 | DR4: 0 | DS4: 9 | DT4: 5675.777778 | DU4: 22.22222222 | DV4: 77.77777778 | DW4: 0 | DX4: 0 | DY4: 0 | DZ4: 55.55555556 | EA4: 44.44444444 | EB4: 426.26 | EC4: 121.3390888
A5: Ballina Shire Council | B5: 4 | C5: Regional Town/City | D5: 484.7 | E5: 41828 | F5: -1.423453997 | G5: 85.9 | H5: 20230 | I5: 48.36473176 | J5: 21598 | K5: 51.63526824 | L5: 22.92961652 | M5: 46.5286411 | N5: 30.54174237 | O5: 31.16811705 | P5: 38.29014058 | Q5: 30.54174237 | R5: 3.1 | S5: 3.3 | T5: 99 | U5: 5.4 | V5: 48568.63225 | W5: 2.4 | X5: Health care/social assistance | Y5: 4039 | Z5: n/a | AA5: n/a | AB5: n/a | AC5: n/a | AD5: -1.51 | AE5: 4.2 | AF5: 74.98 | AG5: 25.02 | AH5: 4.45 | AI5: 2.03 | AJ5: 14.71101776 | AK5: 10.27 | AL5: 82943 | AM5: 90618 | AN5: 80869 | AO5: 92551 | AP5: 12199 | AQ5: 795.5523673 | AR5: 15334 | AS5: 12576 | AT5: 815.3526971 | AU5: 15424 | AV5: 13329 | AW5: 852.8376736 | AX5: 15629 | AY5: 71.6 | AZ5: 22.98931474 | BA5: 1445 | BB5: 1381.453155 | BC5: 1046 | BD5: 3557 | BE5: 2818.541997 | BF5: 1262 | BG5: n/a | BH5: n/a | BI5: 0 | BJ5: 273.4473105 | BK5: 3852 | BL5: 4.763259098 | BM5: 29896 | BN5: 36.96843042 | BO5: 12184 | BP5: 15.06634186 | BQ5: 5165 | BR5: 6.386872596 | BS5: 7792 | BT5: 9.635336161 | BU5: 12923 | BV5: 15.98016545 | BW5: 9057 | BX5: 11.19959441 | BY5: 92.09142201 | BZ5: 291.2881324 | CA5: 647.8196423 | CB5: 123.4818782 | CC5: 186.2866979 | CD5: 66.91689777 | CE5: 216.5295974 | CF5: 37.46294348 | CG5: 308.9557234 | CH5: 1485 | CI5: 376.0317359 | CJ5: 60.98247194 | CK5: 5528.3704 | CL5: 24.4553013 | CM5: 7851.63 | CN5: 34.7324733 | CO5: 9226.03 | CP5: 40.81226964 | CQ5: 5754 | CR5: 64.1740863 | CS5: 668.161 | CT5: 15.97401262 | CU5: 296 | CV5: 3 | CW5: 13 | CX5: 3 | CY5: 10.05933824 | CZ5: 7680 | DA5: 8079 | DB5: 7224 | DC5: 7224 | DD5: 7281 | DE5: 7306 | DF5: 99.66 | DG5: 28.7 | DH5: 0.91 | DI5: Yes | DJ5: 30000 | DK5: 224000 | DL5: 0 | DM5: 0 | DN5: 4034 | DO5: 317029 | DP5: 1 | DQ5: 2708 | DR5: 0 | DS5: 10 | DT5: 4164.4 | DU5: 30 | DV5: 70 | DW5: 0 | DX5: 0 | DY5: 10 | DZ5: 50 | EA5: 40 | EB5: 281 | EC5: 148.8540925
A6: Balranald Shire Council | B6: 9 | C6: Rural | D6: 21693.1 | E6: 2422 | F6: -2.29931424 | G6: 0.1 | H6: 1284 | I6: 53.01403799 | J6: 1138 | K6: 46.98596201 | L6: 22.74979356 | M6: 53.17919075 | N6: 24.07101569 | O6: 33.40214699 | P6: 42.52683732 | Q6: 24.07101569 | R6: 6.8 | S6: 7.6 | T6: 33 | U6: 3.9 | V6: 40103.49288 | W6: 2.5 | X6: Agriculture, forestry & fishing | Y6: 318 | Z6: n/a | AA6: n/a | AB6: n/a | AC6: n/a | AD6: -16.1 | AE6: 2.92 | AF6: 34.9 | AG6: 65.1 | AH6: 14.8 | AI6: 9.77 | AJ6: 3.663097059 | AK6: 8.13 | AL6: 18231.057 | AM6: 15011 | AN6: 13660 | AO6: 13096 | AP6: 207 | AQ6: 230.7692308 | AR6: 897 | AS6: 195 | AT6: 216.6666667 | AU6: 900 | AV6: 219 | AW6: 240.9240924 | AX6: 909 | AY6: 55.9 | AZ6: 16.72167217 | BA6: 854 | BB6: 1856.521739 | BC6: 460 | BD6: 139 | BE6: 794.2857143 | BF6: 175 | BG6: n/a | BH6: n/a | BI6: 0 | BJ6: 192.1943729 | BK6: 1556 | BL6: 11.3909224 | BM6: 1624 | BN6: 11.88872621 | BO6: 880 | BP6: 6.442166911 | BQ6: 1940 | BR6: 14.20204978 | BS6: 1026 | BT6: 7.510980966 | BU6: 5129 | BV6: 37.54758419 | BW6: 1505 | BX6: 11.01756955 | BY6: 642.4442609 | BZ6: 363.3360859 | CA6: 513.6251032 | CB6: 800.9909166 | CC6: 423.6168456 | CD6: 156.895128 | CE6: 621.3872832 | CF6: 27.66308836 | CG6: 2117.671346 | CH6: 1430 | CI6: 253.0253025 | CJ6: 0 | CK6: 39.8 | CL6: 3.308945793 | CM6: 427 | CN6: 35.50049884 | CO6: 736 | CP6: 61.19055537 | CQ6: 72 | CR6: 77.28706625 | CS6: 1586.95 | CT6: 655.2229562 | CU6: 58.18 | CV6: 1 | CW6: 4 | CX6: 1 | CY6: 17.70437655 | CZ6: 4681 | DA6: 4344 | DB6: 1944 | DC6: 1723 | DD6: 1178 | DE6: 2151 | DF6: 54.77 | DG6: 70.64 | DH6: 10.87 | DI6: No | DJ6: 49000 | DK6: 111000 | DL6: 0 | DM6: 22075 | DN6: 0 | DO6: 200950 | DP6: 1 | DQ6: 200 | DR6: 0 | DS6: 8 | DT6: 300 | DU6: 25 | DV6: 75 | DW6: 0 | DX6: 0 | DY6: 0 | DZ6: 75 | EA6: 25 | EB6: 66 | EC6: 36.6969697
A7: Bathurst Regional Council | B7: 4 | C7: Regional Town/City | D7: 3816.4 | E7: 42231 | F7: 7.351483261 | G7: 10.9 | H7: 21318 | I7: 50.47950558 | J7: 20913 | K7: 49.52049442 | L7: 27.57926642 | M7: 51.92867799 | N7: 20.4920556 | O7: 43.11998295 | P7: 36.38796145 | Q7: 20.4920556 | R7: 4.2 | S7: 3.3 | T7: 104 | U7: 5 | V7: 54291.23033 | W7: 2.5 | X7: Education and training | Y7: 3205 | Z7: n/a | AA7: n/a | AB7: n/a | AC7: n/a | AD7: -6.91 | AE7: 1.88 | AF7: 75.73 | AG7: 24.27 | AH7: 5.85 | AI7: 3.95 | AJ7: 5.610036972 | AK7: 8.36 | AL7: 77770 | AM7: 80629 | AN7: 88194 | AO7: 102611 | AP7: 13522 | AQ7: 877.9949354 | AR7: 15401 | AS7: 14210 | AT7: 906.4234228 | AU7: 15677 | AV7: 15620 | AW7: 975.2138353 | AX7: 16017 | AY7: 71.1 | AZ7: 17.74989074 | BA7: 1850 | BB7: 1281.163435 | BC7: 1444 | BD7: 5092 | BE7: 3898.928025 | BF7: 1306 | BG7: 10 | BH7: 454.5454545 | BI7: 22 | BJ7: 134.0472294 | BK7: 15972 | BL7: 18.11007552 | BM7: 19546 | BN7: 22.16250539 | BO7: 8620 | BP7: 9.773907522 | BQ7: 5226 | BR7: 5.925573168 | BS7: 16182 | BT7: 18.34818695 | BU7: 14015 | BV7: 15.8911037 | BW7: 8633 | BX7: 9.788647754 | BY7: 378.2055836 | BZ7: 204.1154602 | CA7: 417.4895219 | CB7: 123.7479577 | CC7: 383.178234 | CD7: 45.345836 | CE7: 204.4232909 | CF7: 33.07996495 | CG7: 331.8652175 | CH7: 1134 | CI7: 219.2670288 | CJ7: 23.1741922 | CK7: 3734.418 | CL7: 11.05497866 | CM7: 720.3 | CN7: 2.132300435 | CO7: 29325.7 | CP7: 86.81272091 | CQ7: 16359 | CR7: 39.15194346 | CS7: 1343.3 | CT7: 31.8083872 | CU7: 384.9 | CV7: 1 | CW7: 5 | CX7: 1 | CY7: 7.148776965 | CZ7: 17458 | DA7: 30887 | DB7: 10069 | DC7: 18557 | DD7: 10950 | DE7: 21164 | DF7: 51.74 | DG7: 45.92 | DH7: 9.89 | DI7: Yes | DJ7: 42000 | DK7: 203000 | DL7: 11686 | DM7: 13887 | DN7: 0 | DO7: 320153 | DP7: 1730 | DQ7: 14572 | DR7: 0 | DS7: 9 | DT7: 4631.333333 | DU7: 11.11111111 | DV7: 88.88888889 | DW7: 0 | DX7: 0 | DY7: 0 | DZ7: 77.77777778 | EA7: 22.22222222 | EB7: 388 | EC7: 108.8427835
A8: Bega Valley Shire Council | B8: 4 | C8: Regional Town/City | D8: 6279 | E8: 33475 | F8: -0.01792061169 | G8: 5.3 | H8: 16423 | I8: 49.06049291 | J8: 17052 | K8: 50.93950709 | L8: 22.00448096 | M8: 44.54667662 | N8: 33.44884242 | O8: 29.33532487 | P8: 37.21583271 | Q8: 33.44884242 | R8: 2.8 | S8: 2.9 | T8: 71 | U8: 5.4 | V8: 44785.61769 | W8: 2.3 | X8: Health care/social assistance | Y8: 2895 | Z8: n/a | AA8: n/a | AB8: n/a | AC8: n/a | AD8: -3.15 | AE8: 1.29 | AF8: 74.62 | AG8: 25.38 | AH8: 3.82 | AI8: 5.04 | AJ8: 5.795149913 | AK8: 11.05 | AL8: 78107 | AM8: 77775 | AN8: 83498 | AO8: 87373 | AP8: 15800 | AQ8: 905.8594198 | AR8: 17442 | AS8: 16285 | AT8: 928.2375741 | AU8: 17544 | AV8: 17171 | AW8: 970.6065231 | AX8: 17691 | AY8: 69.7 | AZ8: 22.41817873 | BA8: 1913 | BB8: 1888.450148 | BC8: 1013 | BD8: 2158 | BE8: 2509.302326 | BF8: 860 | BG8: n/a | BH8: n/a | BI8: 0 | BJ8: 142.9092463 | BK8: 8435 | BL8: 10.10203837 | BM8: 34399 | BN8: 41.19739395 | BO8: 10270 | BP8: 12.2996958 | BQ8: 8638 | BR8: 10.34515797 | BS8: 5444 | BT8: 6.519916645 | BU8: 7848 | BV8: 9.399027522 | BW8: 8464 | BX8: 10.13676974 | BY8: 251.9790889 | BZ8: 306.7961165 | CA8: 956.5048544 | CB8: 258.0433159 | CC8: 162.6288275 | CD8: 71.0978342 | CE8: 252.845407 | CF8: 45.28752801 | CG8: 234.4436146 | CH8: 1726 | CI8: 385.9589622 | CJ8: 51.76060396 | CK8: 5542.78 | CL8: 21.5057076 | CM8: 5967.31 | CN8: 23.15286265 | CO8: 14263.45 | CP8: 55.34146855 | CQ8: 5356 | CR8: 71.58168409 | CS8: 1428.47 | CT8: 42.67274085 | CU8: 1016 | CV8: 8 | CW8: 21 | CX8: 4 | CY8: 5.41759522 | CZ8: 10955 | DA8: 11610 | DB8: 9273 | DC8: 11447 | DD8: 26599 | DE8: 7508.5 | DF8: 354 | DG8: 50 | DH8: 4.8 | DI8: Yes | DJ8: 53000 | DK8: 214000 | DL8: 0 | DM8: 53000 | DN8: 0 | DO8: 268000 | DP8: 1 | DQ8: 3864 | DR8: 0 | DS8: 9 | DT8: 3718.666667 | DU8: 44.44444444 | DV8: 55.55555556 | DW8: 0 | DX8: 0 | DY8: 0 | DZ8: 55.55555556 | EA8: 44.44444444 | EB8: 355 | EC8: 94.29577465
A9: Bellingen Shire Council | B9: 11 | C9: Large Rural | D9: 1600.4 | E9: 13010 | F9: -2.685316778 | G9: 8.1 | H9: 6322 | I9: 48.5933897 | J9: 6688 | K9: 51.4066103 | L9: 25.44196772 | M9: 45.34973098 | N9: 29.20830131 | O9: 33.08224443 | P9: 37.70945427 | Q9: 29.20830131 | R9: 3 | S9: 3.1 | T9: 55 | U9: 5 | V9: 45464.67573 | W9: 2.4 | X9: Health care/social assistance | Y9: 1164 | Z9: n/a | AA9: n/a | AB9: n/a | AC9: n/a | AD9: -3.63 | AE9: 2.58 | AF9: 65.98 | AG9: 34.02 | AH9: 6.99 | AI9: 5.04 | AJ9: 4.14593117 | AK9: 15.16 | AL9: 32152 | AM9: 31604 | AN9: 29571 | AO9: 33966 | AP9: 4284 | AQ9: 846.6403162 | AR9: 5060 | AS9: 5133 | AT9: 989.9710704 | AU9: 5185 | AV9: 5138 | AW9: 986.1804223 | AX9: 5210 | AY9: 70.8 | AZ9: 27.54318618 | BA9: 936 | BB9: 2328.358209 | BC9: 402 | BD9: 382 | BE9: 927.184466 | BF9: 412 | BG9: n/a | BH9: n/a | BI9: 0 | BJ9: 223.5173784 | BK9: 4091 | BL9: 13.83450002 | BM9: 6465 | BN9: 21.86263569 | BO9: 4356 | BP9: 14.73064827 | BQ9: 1816 | BR9: 6.141151804 | BS9: 2331 | BT9: 7.882722938 | BU9: 5340 | BV9: 18.05823273 | BW9: 5172 | BX9: 17.49010855 | BY9: 314.4504228 | BZ9: 334.8193697 | CA9: 427.4404304 | CB9: 139.5849347 | CC9: 179.1698693 | CD9: 69.48501153 | CE9: 397.5403536 | CF9: 49.80784012 | CG9: 410.4534973 | CH9: 1298 | CI9: 450.4798464 | CJ9: 70.5 | CK9: 3396.0641 | CL9: 48.94815415 | CM9: 2024.32 | CN9: 29.17693085 | CO9: 1517.71 | CP9: 21.87505914 | CQ9: 2154 | CR9: 63.27991817 | CS9: 598.47 | CT9: 46.00076864 | CU9: 69.25 | CV9: 3 | CW9: 13 | CX9: 2 | CY9: 6.385780169 | CZ9: 2093 | DA9: 3291 | DB9: 3965 | DC9: 5290 | DD9: 2727 | DE9: 5288 | DF9: 51.57 | DG9: 79.89 | DH9: 1.19 | DI9: Yes | DJ9: 65000 | DK9: 96000 | DL9: 0 | DM9: 8181 | DN9: 0 | DO9: 241110 | DP9: 0 | DQ9: 90814 | DR9: 0 | DS9: 7 | DT9: 1861.714286 | DU9: 14.28571429 | DV9: 85.71428571 | DW9: 0 | DX9: 0 | DY9: 0 | DZ9: 71.42857143 | EA9: 28.57142857 | EB9: 123.8 | EC9: 105.088853
A10: Berrigan Shire Council | B10: 10 | C10: Large Rural | D10: 2065.9 | E10: 8416 | F10: -2.037015481 | G10: 4.1 | H10: 4254 | I10: 50.54657795 | J10: 4162 | K10: 49.45342205 | L10: 21.57794677 | M10: 43.12024715 | N10: 35.30180608 | O10: 29.89543726 | P10: 34.80275665 | Q10: 35.30180608 | R10: 2.1 | S10: 2.2 | T10: 48 | U10: 5.9 | V10: 43261.23128 | W10: 2.3 | X10: Agriculture, forestry & fishing | Y10: 915 | Z10: n/a | AA10: n/a | AB10: n/a | AC10: n/a | AD10: 14.68 | AE10: 7.05 | AF10: 55.34 | AG10: 44.66 | AH10: 3.53 | AI10: 25.63 | AJ10: 1.606394779 | AK10: 19.97 | AL10: 18686 | AM10: 17956 | AN10: 18005 | AO10: 23887.15624 | AP10: 2343 | AQ10: 637.7245509 | AR10: 3674 | AS10: 2312 | AT10: 634.9903873 | AU10: 3641 | AV10: 2368 | AW10: 646.6411797 | AX10: 3662 | AY10: 63.6 | AZ10: 28.70016384 | BA10: 1782 | BB10: 1962.555066 | BC10: 908 | BD10: 514 | BE10: 1291.457286 | BF10: 398 | BG10: n/a | BH10: n/a | BI10: 0 | BJ10: 107.4254846 | BK10: 60 | BL10: 0.3332407665 | BM10: 5055 | BN10: 28.07553457 | BO10: 2215 | BP10: 12.30213829 | BQ10: 1545 | BR10: 8.580949736 | BS10: 2187 | BT10: 12.14662594 | BU10: 5179 | BV10: 28.76423216 | BW10: 1764 | BX10: 9.797278534 | BY10: 7.129277567 | BZ10: 263.1891635 | CA10: 543.9638783 | CB10: 183.5788973 | CC10: 259.8621673 | CD10: 56.67775665 | CE10: 209.6007605 | CF10: 68.79752852 | CG10: 615.3754753 | CH10: 1367 | CI10: 216.0021846 | CJ10: 41.25492773 | CK10: 1028.19 | CL10: 33.76872044 | CM10: 216 | CN10: 7.094062007 | CO10: 1800.61 | CP10: 59.13721755 | CQ10: 1569 | CR10: 54.45573295 | CS10: 1385.89 | CT10: 164.6732414 | CU10: 138 | CV10: 3 | CW10: 7 | CX10: 4 | CY10: 3.806321293 | CZ10: 3050 | DA10: 3056 | DB10: 2888 | DC10: 2876 | DD10: 3666 | DE10: 3486 | DF10: 105.1 | DG10: 150.4 | DH10: 0 | DI10: Yes | DJ10: 65000 | DK10: 112000 | DL10: 0 | DM10: 5435 | DN10: 6536 | DO10: 192478 | DP10: 0 | DQ10: 0 | DR10: 0 | DS10: 8 | DT10: 1051.625 | DU10: 12.5 | DV10: 87.5 | DW10: 0 | DX10: 0 | DY10: 0 | DZ10: 50 | EA10: 50 | EB10: 85 | EC10: 99.01176471
A11: Blacktown City Council | B11: 3 | C11: Metropolitan | D11: 240.1 | E11: 339328 | F11: 13.18592247 | G11: 1384.5 | H11: 169595 | I11: 49.97966569 | J11: 169733 | K11: 50.02033431 | L11: 29.97129621 | M11: 55.4557832 | N11: 14.5729206 | O11: 44.73901358 | P11: 40.68806582 | Q11: 14.5729206 | R11: 2.7 | S11: 36.9 | T11: 93 | U11: 6.7 | V11: 54566.82337 | W11: 3.1 | X11: Manufacturing | Y11: 17677 | Z11: n/a | AA11: n/a | AB11: n/a | AC11: n/a | AD11: -2.61 | AE11: 3.22 | AF11: 45.25 | AG11: 54.75 | AH11: 2.58 | AI11: 0 | AJ11: 0 | AK11: 16.93 | AL11: 262070 | AM11: 283861 | AN11: 299013 | AO11: 582851 | AP11: 87550 | AQ11: 851.79 | AR11: 102783 | AS11: 95115 | AT11: 904.4702884 | AU11: 105161 | AV11: 100407 | AW11: 932.9077935 | AX11: 107628 | AY11: 76 | AZ11: 13.65443937 | BA11: 924 | BB11: 4863.157895 | BC11: 190 | BD11: 44638 | BE11: 8908.002395 | BF11: 5011 | BG11: n/a | BH11: n/a | BI11: 0 | BJ11: 219.3539553 | BK11: 55322 | BL11: 18.50153672 | BM11: 10390 | BN11: 3.474765311 | BO11: 63400 | BP11: 21.2030915 | BQ11: 41336 | BR11: 13.82414811 | BS11: 64230 | BT11: 21.48067141 | BU11: 46659 | BV11: 15.60433827 | BW11: 17676 | BX11: 5.911448666 | BY11: 163.0339966 | BZ11: 186.8398717 | CA11: n/a | CB11: 121.8172388 | CC11: 189.2858827 | CD11: 30.61934176 | CE11: 52.091192 | CF11: 27.40121652 | CG11: 137.5041258 | CH11: n/a | CI11: 391.2457725 | CJ11: 63.52367317 | CK11: 83325.13 | CL11: 64.67989035 | CM11: 0 | CN11: 0 | CO11: 45501.82 | CP11: 35.32010965 | CQ11: 41755 | CR11: 58.10423021 | CS11: 1375.85 | CT11: 4.054631507 | CU11: 3654.11 | CV11: 5 | CW11: 39 | CX11: 5 | CY11: 2.862009619 | CZ11: 33095 | DA11: 36450 | DB11: 45172 | DC11: 36124 | DD11: 59866 | DE11: 60743 | DF11: 98.56 | DG11: 81.16 | DH11: 2.64 | DI11: Yes | DJ11: 425000 | DK11: 493000 | DL11: 18957 | DM11: 40778 | DN11: 57804 | DO11: 339015 | DP11: 2 | DQ11: 5890 | DR11: 3 | DS11: 15 | DT11: 22161.6 | DU11: 13.33333333 | DV11: 86.66666667 | DW11: 0 | DX11: 20 | DY11: 13.33333333 | DZ11: 26.66666667 | EA11: 60 | EB11: 1457 | EC11: 232.8949897
A12: Bland Shire Council | B12: 10 | C12: Large Rural | D12: 8557.7 | E12: 5959 | F12: -6.992352115 | G12: 0.7 | H12: 3054 | I12: 51.25020977 | J12: 2905 | K12: 48.74979023 | L12: 28.05839906 | M12: 44.82295687 | N12: 27.11864407 | O12: 36.48263131 | P12: 36.39872462 | Q12: 27.11864407 | R12: 4.1 | S12: 1.2 | T12: 77 | U12: 4.4 | V12: 46522.78177 | W12: 2.4 | X12: Agriculture, forestry & fishing | Y12: 847 | Z12: n/a | AA12: n/a | AB12: n/a | AC12: n/a | AD12: 15.05 | AE12: 9.1 | AF12: 43.79 | AG12: 56.21 | AH12: 7.43 | AI12: 19.85 | AJ12: 1.063467756 | AK12: 14.93 | AL12: 25363 | AM12: 20970 | AN12: 19971 | AO12: 25160 | AP12: 959 | AQ12: 433.54 | AR12: 2212 | AS12: 2206 | AT12: 995.4873646 | AU12: 2216 | AV12: 2269 | AW12: 1037.02011 | AX12: 2188 | AY12: 62.2 | AZ12: 26.23400366 | BA12: 3711 | BB12: 2645.046329 | BC12: 1403 | BD12: 446 | BE12: 1044.496487 | BF12: 427 | BG12: 883 | BH12: 441500 | BI12: 2 | BJ12: 115.197245 | BK12: 4399 | BL12: 22.02693906 | BM12: 1581 | BN12: 7.916478894 | BO12: 1710 | BP12: 8.562415502 | BQ12: 2181 | BR12: 10.92083521 | BS12: 2153 | BT12: 10.78063192 | BU12: 6798 | BV12: 34.03935707 | BW12: 1149 | BX12: 5.753342346 | BY12: 738.2111092 | BZ12: 286.9608995 | CA12: 172.0087263 | CB12: 366.0010069 | CC12: 361.3022319 | CD12: 93.30424568 | CE12: 192.8175868 | CF12: 54.87497902 | CG12: 1140.795435 | CH12: n/a | CI12: 282.9067642 | CJ12: 21.53831035 | CK12: 27.72 | CL12: 2.299422656 | CM12: 0 | CN12: 0 | CO12: 1177.8 | CP12: 97.70057734 | CQ12: 1427 | CR12: 50.86088154 | CS12: 3093.47 | CT12: 519.1256922 | CU12: 1750 | CV12: 2 | CW12: 2 | CX12: 1 | CY12: 6.178889075 | CZ12: 5353 | DA12: 6715 | DB12: 5800 | DC12: 6626 | DD12: 8872 | DE12: 5936 | DF12: 149.46 | DG12: 88.86 | DH12: 2.69 | DI12: Yes | DJ12: 21000 | DK12: 123000 | DL12: 0 | DM12: 2156 | DN12: 0 | DO12: 221481 | DP12: 0 | DQ12: 0 | DR12: 0 | DS12: 9 | DT12: 666 | DU12: 25 | DV12: 75 | DW12: 12.5 | DX12: 0 | DY12: 0 | DZ12: 62.5 | EA12: 37.5 | EB12: 115 | EC12: 51.8173913
A13: Blayney Shire Council | B13: 10 | C13: Large Rural | D13: 1524.9 | E13: 7380 | F13: 2.78551532 | G13: 4.9 | H13: 3732 | I13: 50.56910569 | J13: 3648 | K13: 49.43089431 | L13: 28.94308943 | M13: 47.49322493 | N13: 23.56368564 | O13: 39.48509485 | P13: 36.95121951 | Q13: 23.56368564 | R13: 3 | S13: 1.7 | T13: 92 | U13: 5.1 | V13: 55279.9433 | W13: 2.5 | X13: Agriculture, forestry & fishing | Y13: 724 | Z13: n/a | AA13: n/a | AB13: n/a | AC13: n/a | AD13: 7.12 | AE13: 7.23 | AF13: 64.24 | AG13: 35.76 | AH13: 2.22 | AI13: 19.39 | AJ13: 1.890388366 | AK13: 17.3 | AL13: 14901 | AM13: 15867.4 | AN13: 16165.932 | AO13: 20688.932 | AP13: 1547.691 | AQ13: 552.46 | AR13: 2802 | AS13: 3382 | AT13: 1200.56798 | AU13: 2817 | AV13: 3566 | AW13: 1267.685745 | AX13: 2813 | AY13: 67.2 | AZ13: 21.96942766 | BA13: 2064 | BB13: 2819.672131 | BC13: 732 | BD13: 332 | BE13: 1081.433225 | BF13: 307 | BG13: 2479 | BH13: 1239500 | BI13: 2 | BJ13: 91.05722782 | BK13: 3723.132 | BL13: 23.03072907 | BM13: 2010 | BN13: 12.43355471 | BO13: 1349 | BP13: 8.344709108 | BQ13: 647.7 | BR13: 4.006573825 | BS13: 2791 | BT13: 17.26470209 | BU13: 4421.3 | BV13: 27.34949027 | BW13: 1223.8 | BX13: 7.570240924 | BY13: 504.4894309 | BZ13: 182.7913279 | CA13: 209.6205962 | CB13: 87.76422764 | CC13: 378.1842818 | CD13: 62.73712737 | CE13: 165.8265583 | CF13: 23.84823848 | CG13: 599.0921409 | CH13: n/a | CI13: 358.3362958 | CJ13: 12.20737734 | CK13: 990.68 | CL13: 43.35257333 | CM13: 520 | CN13: 22.75541863 | CO13: 774.49 | CP13: 33.89200803 | CQ13: 4238 | CR13: 28.5449334 | CS13: 730.19 | CT13: 98.94173442 | CU13: 37 | CV13: 1 | CW13: 6 | CX13: 1 | CY13: 1.204065041 | CZ13: 2219 | DA13: 2556 | DB13: 2377 | DC13: 2643 | DD13: 2778.631 | DE13: 2312 | DF13: 120.18 | DG13: 142.09 | DH13: 20.49 | DI13: Yes | DJ13: 8000 | DK13: 98000 | DL13: 0 | DM13: 8185 | DN13: 5101 | DO13: 200000 | DP13: 0 | DQ13: 0 | DR13: 0 | DS13: 7 | DT13: 1058.428571 | DU13: 0 | DV13: 100 | DW13: 0 | DX13: 0 | DY13: 0 | DZ13: 57.14285714 | EA13: 42.85714286 | EB13: 84 | EC13: 87.85714286
A14: Blue Mountains City Council | B14: 7 | C14: Metropolitan Fringe | D14: 1431.2 | E14: 79812 | F14: 2.607219994 | G14: 55.7 | H14: 38726 | I14: 48.52152559 | J14: 41086 | K14: 51.47847441 | L14: 24.69302862 | M14: 49.67172856 | N14: 25.63524282 | O14: 34.66897208 | P14: 39.69578509 | Q14: 25.63524282 | R14: 1.7 | S14: 5.1 | T14: 125 | U14: 3.4 | V14: 59045.77805 | W14: 2.5 | X14: Education and training | Y14: 5279 | Z14: n/a | AA14: n/a | AB14: n/a | AC14: n/a | AD14: -0.88 | AE14: 2.3 | AF14: 83.33 | AG14: 16.67 | AH14: 3.62 | AI14: 1.88 | AJ14: 10.147025 | AK14: 3.59 | AL14: 102737 | AM14: 101660 | AN14: 105259 | AO14: 108718 | AP14: 42824 | AQ14: 1249.132223 | AR14: 34283 | AS14: 43662 | AT14: 1268.617253 | AU14: 34417 | AV14: 45109 | AW14: 1308.22772 | AX14: 34481 | AY14: 78.4 | AZ14: 18.90316406 | BA14: 283 | BB14: 2035.971223 | BC14: 139 | BD14: 4149 | BE14: 3084.758364 | BF14: 1345 | BG14: n/a | BH14: n/a | BI14: 0 | BJ14: 163.8376857 | BK14: 14442 | BL14: 13.72044196 | BM14: 6426 | BN14: 6.104941145 | BO14: 29333 | BP14: 27.86745076 | BQ14: 8672 | BR14: 8.23872543 | BS14: 20629 | BT14: 19.59832413 | BU14: 11165 | BV14: 10.60716898 | BW14: 14592 | BX14: 13.86294759 | BY14: 180.950233 | BZ14: 367.5261865 | CA14: n/a | CB14: 108.65534 | CC14: 258.4699043 | CD14: 80.51420839 | CE14: 182.8296497 | CF14: 36.56091816 | CG14: 139.8912444 | CH14: n/a | CI14: 341.2314028 | CJ14: 38.20996179 | CK14: 10069.75 | CL14: 23.58822602 | CM14: 5425.47 | CN14: 12.70907546 | CO14: 27194.51 | CP14: 63.70269852 | CQ14: 16834 | CR14: 56.64803894 | CS14: 744.76 | CT14: 9.331428858 | CU14: 6556.41 | CV14: 5 | CW14: 18 | CX14: 6 | CY14: 6.930762291 | CZ14: 9625 | DA14: 9375 | DB14: 5381 | DC14: 5611 | DD14: 8394 | DE14: 8630 | DF14: 97.27 | DG14: 43.7 | DH14: 2.52 | DI14: Yes | DJ14: 18000 | DK14: 246000 | DL14: 0 | DM14: 12752 | DN14: 0 | DO14: 365663 | DP14: 2 | DQ14: 12165 | DR14: 0 | DS14: 12 | DT14: 6640.666667 | DU14: 8.333333333 | DV14: 91.66666667 | DW14: 0 | DX14: 0 | DY14: 8.333333333 | DZ14: 58.33333333 | EA14: 33.33333333 | EB14: 524 | EC14: 152.3129771
A15: Bogan Shire Council | B15: 9 | C15: Rural | D15: 14600.5 | E15: 3059 | F15: 1.864801865 | G15: 0.2 | H15: 1533 | I15: 50.11441648 | J15: 1526 | K15: 49.88558352 | L15: 27.88492972 | M15: 48.57796666 | N15: 23.53710363 | O15: 39.68617195 | P15: 36.77672442 | Q15: 23.53710363 | R15: 14.4 | S15: 2 | T15: 40 | U15: 4.7 | V15: 50816.69691 | W15: 2.5 | X15: Agriculture, forestry & fishing | Y15: 419 | Z15: n/a | AA15: n/a | AB15: n/a | AC15: n/a | AD15: 10.68 | AE15: 5.6 | AF15: 59.46 | AG15: 40.54 | AH15: 5.51 | AI15: 5211 | AJ15: 0.005618924538 | AK15: 7.2 | AL15: 14270.4 | AM15: 14965 | AN15: 16667 | AO15: 18472 | AP15: 214 | AQ15: 197.7818854 | AR15: 1082 | AS15: 263 | AT15: 240.1826484 | AU15: 1095 | AV15: 274 | AW15: 250.2283105 | AX15: 1095 | AY15: 56.3 | AZ15: 18.90410959 | BA15: 1627 | BB15: 2476.407915 | BC15: 657 | BD15: 226 | BE15: 911.2903226 | BF15: 248 | BG15: 562 | BH15: 187333.3333 | BI15: 3 | BJ15: 112.2289799 | BK15: 3337 | BL15: 20.02640581 | BM15: 3547 | BN15: 21.28668307 | BO15: 1107 | BP15: 6.643461562 | BQ15: 710 | BR15: 4.260937406 | BS15: 1152 | BT15: 6.913520975 | BU15: 5649 | BV15: 33.90145832 | BW15: 1161 | BX15: 6.967532857 | BY15: 1090.879372 | BZ15: 361.8829683 | CA15: 1039.882314 | CB15: 232.1019941 | CC15: 376.5936581 | CD15: 119.6469434 | CE15: 379.535796 | CF15: 65.38084341 | CG15: 1846.681922 | CH15: 1860 | CI15: 482.1917808 | CJ15: 14.16940452 | CK15: 132.26 | CL15: 13.48216106 | CM15: 0 | CN15: 0 | CO15: 848.74 | CP15: 86.51783894 | CQ15: 1019 | CR15: 47.33850129 | CS15: 1616.63 | CT15: 528.4831644 | CU15: 74.9 | CV15: 1 | CW15: 5 | CX15: 1 | CY15: 3.992154299 | CZ15: 2773 | DA15: 3167 | DB15: 3497 | DC15: 1273 | DD15: 3313 | DE15: 3868 | DF15: 85.65 | DG15: 69.84 | DH15: 2.71 | DI15: Yes | DJ15: 6000 | DK15: 93000 | DL15: 0 | DM15: 0 | DN15: 1558 | DO15: 239231 | DP15: 0 | DQ15: 0 | DR15: 0 | DS15: 9 | DT15: 341.7777778 | DU15: 33.33333333 | DV15: 66.66666667 | DW15: 0 | DX15: 0 | DY15: 0 | DZ15: 33.33333333 | EA15: 66.66666667 | EB15: 90 | EC15: 33.98888889
A16: Bourke Shire Council | B16: 9 | C16: Rural | D16: 41604.5 | E16: 2876 | F16: -6.319218241 | G16: 0.1 | H16: 1518 | I16: 52.78164117 | J16: 1358 | K16: 47.21835883 | L16: 29.20723227 | M16: 53.02503477 | N16: 17.76773296 | O16: 42.31571627 | P16: 39.91655076 | Q16: 17.76773296 | R16: 30.2 | S16: 1.5 | T16: 37 | U16: 8.8 | V16: 47984.64491 | W16: 2.6 | X16: Agriculture, forestry & fishing | Y16: 313 | Z16: n/a | AA16: n/a | AB16: n/a | AC16: n/a | AD16: 6.99 | AE16: 2.72 | AF16: 45.45 | AG16: 54.55 | AH16: 15.86 | AI16: 4.45 | AJ16: 6.836511243 | AK16: 10.08 | AL16: 19566 | AM16: 18907.848 | AN16: 17449 | AO16: 21055 | AP16: 358 | AQ16: 313.4851138 | AR16: 1142 | AS16: 354 | AT16: 309.4405594 | AU16: 1144 | AV16: 352 | AW16: 310.6796117 | AX16: 1133 | AY16: 47.8 | AZ16: 13.85701677 | BA16: 1047 | BB16: 2740.837696 | BC16: 382 | BD16: 102 | BE16: 467.8899083 | BF16: 218 | BG16: n/a | BH16: n/a | BI16: 0 | BJ16: 97.06155896 | BK16: 1819 | BL16: 10.42466617 | BM16: 3808 | BN16: 21.82360021 | BO16: 1185 | BP16: 6.791220127 | BQ16: 644 | BR16: 3.690755917 | BS16: 1419 | BT16: 8.13227119 | BU16: 3478 | BV16: 19.93237435 | BW16: 5096 | BX16: 29.20511204 | BY16: 632.4756606 | BZ16: 412.0305981 | CA16: 936.3699583 | CB16: 223.922114 | CC16: 493.3936022 | CD16: 387.6912378 | CE16: 1771.905424 | CF16: 93.53268428 | CG16: 1209.318498 | CH16: 1957 | CI16: 265.6663725 | CJ16: 55.3133515 | CK16: 470.24 | CL16: 42.16491518 | CM16: 115 | CN16: 10.31168179 | CO16: 530 | CP16: 47.52340303 | CQ16: 981 | CR16: 51.8172888 | CS16: 2453.86 | CT16: 853.2197497 | CU16: 220 | CV16: 1 | CW16: 6 | CX16: 1 | CY16: 4.444367177 | CZ16: 5639 | DA16: 5652 | DB16: 3041.33 | DC16: 3179 | DD16: 3556 | DE16: 3278 | DF16: 108.48 | DG16: 76.21 | DH16: 2.17 | DI16: Yes | DJ16: 47000 | DK16: 132000 | DL16: 0 | DM16: 39342 | DN16: 0 | DO16: 201108 | DP16: 0 | DQ16: 0 | DR16: 0 | DS16: 10 | DT16: 297.3 | DU16: 20 | DV16: 80 | DW16: 10 | DX16: 0 | DY16: 10 | DZ16: 40 | EA16: 50 | EB16: 79 | EC16: 36.40506329
A17: Brewarrina Shire Council | B17: 8 | C17: Rural | D17: 19165.2 | E17: 1917 | F17: 0.3139717425 | G17: 0.1 | H17: 988 | I17: 51.53886281 | J17: 929 | K17: 48.46113719 | L17: 34.06364111 | M17: 50.54773083 | N17: 15.38862806 | O17: 47.36567553 | P17: 37.2456964 | Q17: 15.38862806 | R17: 59.1 | S17: 1.9 | T17: 1 | U17: 8.9 | V17: 46460.17699 | W17: 2.6 | X17: Agriculture, forestry & fishing | Y17: 137 | Z17: n/a | AA17: n/a | AB17: n/a | AC17: n/a | AD17: 15.56 | AE17: 2.45 | AF17: 47.52 | AG17: 52.48 | AH17: 6.9 | AI17: 21.37 | AJ17: 1.824019675 | AK17: 8.33 | AL17: 13304 | AM17: 12812 | AN17: 12361 | AO17: 15567 | AP17: 75 | AQ17: 130.6620209 | AR17: 574 | AS17: 80 | AT17: 139.1304348 | AU17: 575 | AV17: 81 | AW17: 140.625 | AX17: 576 | AY17: 47.9 | AZ17: 9.548611111 | BA17: 912 | BB17: 2706.231454 | BC17: 337 | BD17: 11 | BE17: 180.3278689 | BF17: 61 | BG17: n/a | BH17: n/a | BI17: 0 | BJ17: 192.0131624 | BK17: 1935 | BL17: 15.6540733 | BM17: 1927 | BN17: 15.58935361 | BO17: 671 | BP17: 5.428363401 | BQ17: 884 | BR17: 7.151524958 | BS17: 597 | BT17: 4.829706334 | BU17: 2974 | BV17: 24.05954211 | BW17: 3373 | BX17: 27.28743629 | BY17: 1009.389671 | BZ17: 350.0260824 | CA17: 775.1695357 | CB17: 461.1371935 | CC17: 311.4241002 | CD17: 230.0469484 | CE17: 1759.520083 | CF17: 43.29681794 | CG17: 1551.382368 | CH17: 2861 | CI17: 350.6944444 | CJ17: 34.97224425 | CK17: 0 | CL17: 0 | CM17: 0 | CN17: 0 | CO17: 300 | CP17: 100 | CQ17: 420 | CR17: 49.88066826 | CS17: 1551.7 | CT17: 809.4418362 | CU17: 345 | CV17: 1 | CW17: 3 | CX17: 1 | CY17: 0.684924361 | CZ17: 1899 | DA17: 1946 | DB17: 2096 | DC17: 2523 | DD17: 1599 | DE17: 2418.461075 | DF17: 66.12 | DG17: 77.43 | DH17: 2.14 | DI17: Yes | DJ17: 21000 | DK17: 123000 | DL17: 0 | DM17: 2060 | DN17: 0 | DO17: 180238 | DP17: 0 | DQ17: 0 | DR17: 0 | DS17: 9 | DT17: 214.5555556 | DU17: 11.11111111 | DV17: 88.88888889 | DW17: 22.22222222 | DX17: 0 | DY17: 0 | DZ17: 77.77777778 | EA17: 22.22222222 | EB17: 59.3 | EC17: 32.32715008
A18: Broken Hill City Council | B18: 4 | C18: Regional Town/City | D18: 170.3 | E18: 18856 | F18: -5.531062124 | G18: 111.9 | H18: 9346 | I18: 49.56512516 | J18: 9510 | K18: 50.43487484 | L18: 23.38778108 | M18: 48.58400509 | N18: 28.02821383 | O18: 35.32032244 | P18: 36.65146373 | Q18: 28.02821383 | R18: 7.5 | S18: 2.3 | T18: 8 | U18: 7.1 | V18: 55368.18437 | W18: 2.2 | X18: Health care/social assistance | Y18: 939 | Z18: n/a | AA18: n/a | AB18: n/a | AC18: n/a | AD18: 8.84 | AE18: 2.23 | AF18: 62.12 | AG18: 37.88 | AH18: 10.39 | AI18: 9.01 | AJ18: 3.172797749 | AK18: 8.26 | AL18: 37030 | AM18: 33049 | AN18: 30610 | AO18: 37217 | AP18: 7424 | AQ18: 774.0590137 | AR18: 9591 | AS18: 7964 | AT18: 833.4030975 | AU18: 9556 | AV18: 8154 | AW18: 852.0376176 | AX18: 9570 | AY18: 58 | AZ18: 30.27168234 | BA18: 20 | BB18: 4000 | BC18: 5 | BD18: 3320 | BE18: 5579.831933 | BF18: 595 | BG18: 2362 | BH18: 1181000 | BI18: 2 | BJ18: 21.71449083 | BK18: 6386 | BL18: 20.86246325 | BM18: 1029 | BN18: 3.361646521 | BO18: 3069 | BP18: 10.02613525 | BQ18: 5446 | BR18: 17.79157138 | BS18: 5755 | BT18: 18.80104541 | BU18: 4417 | BV18: 14.42992486 | BW18: 4508 | BX18: 14.72721333 | BY18: 338.6720407 | BZ18: 162.7598642 | CA18: n/a | CB18: 288.8205346 | CC18: 305.2078914 | CD18: 54.57148918 | CE18: 239.0750955 | CF18: 48.52566822 | CG18: 234.2490454 | CH18: n/a | CI18: 264.3678161 | CJ18: 30.0974103 | CK18: 691.24 | CL18: 2.657365932 | CM18: 4761.23 | CN18: 18.3038169 | CO18: 20559.7548 | CP18: 79.03881716 | CQ18: 4570 | CR18: 66.92480278 | CS18: 250.96 | CT18: 13.30929147 | CU18: 3800 | CV18: 1 | CW18: 4 | CX18: 1 | CY18: 5.092225286 | CZ18: 2650 | DA18: 2650 | DB18: 2033 | DC18: 2033 | DD18: 3797 | DE18: 4088.05 | DF18: 92.88 | DG18: 8.37 | DH18: 16.05 | DI18: Yes | DJ18: 27000 | DK18: 219000 | DL18: 0 | DM18: 18655 | DN18: 2549 | DO18: 126589 | DP18: 4 | DQ18: 23000 | DR18: 3 | DS18: 10 | DT18: 1904.8 | DU18: 22.22222222 | DV18: 77.77777778 | DW18: 0 | DX18: 0 | DY18: 11.11111111 | DZ18: 55.55555556 | EA18: 33.33333333 | EB18: 160 | EC18: 117.85
A19: Burwood Council | B19: 2 | C19: Metropolitan | D19: 7.1 | E19: 36139 | F19: 7.307441059 | G19: 5057.8 | H19: 17778 | I19: 49.19339218 | J19: 18361 | K19: 50.80660782 | L19: 20.05036111 | M19: 61.10296356 | N19: 18.84667534 | O19: 42.78203603 | P19: 38.37128864 | Q19: 18.84667534 | R19: 0.4 | S19: 59.2 | T19: 121 | U19: 4.8 | V19: 52869.60953 | W19: 2.8 | X19: Health care/social assistance | Y19: 4259 | Z19: n/a | AA19: n/a | AB19: n/a | AC19: n/a | AD19: -0.11 | AE19: 3.59 | AF19: 76.82 | AG19: 23.18 | AH19: 2.57 | AI19: 8.63 | AJ19: 1.818309628 | AK19: 9.95 | AL19: 40579 | AM19: 41310 | AN19: 42815 | AO19: 50962 | AP19: 11414 | AQ19: 986.6021264 | AR19: 11569 | AS19: 12188 | AT19: 1049.603858 | AU19: 11612 | AV19: 13144 | AW19: 1107.422698 | AX19: 11869 | AY19: 75.4 | AZ19: 16.42935378 | BA19: n/a | BB19: n/a | BC19: 0 | BD19: 4890 | BE19: 5614.23651 | BF19: 871 | BG19: n/a | BH19: n/a | BI19: 0 | BJ19: 323.0967927 | BK19: 11365 | BL19: 26.5997285 | BM19: 2080 | BN19: 4.868230117 | BO19: 7190 | BP19: 16.82816084 | BQ19: 6452 | BR19: 15.10087535 | BS19: 7365 | BT19: 17.23774751 | BU19: 5005 | BV19: 11.71417872 | BW19: 3269 | BX19: 7.651078968 | BY19: 314.4802014 | BZ19: 198.9540386 | CA19: n/a | CB19: 178.5328869 | CC19: 203.7964526 | CD19: 57.55554941 | CE19: 90.45629375 | CF19: 61.42948062 | CG19: 138.4930408 | CH19: n/a | CI19: 382.1720448 | CJ19: 34.00172875 | CK19: 2414.35 | CL19: 18.28953269 | CM19: 2081.36 | CN19: 15.76701877 | CO19: 8705.02 | CP19: 65.94352429 | CQ19: 2473 | CR19: 60.77093909 | CS19: 85.46 | CT19: 2.364758294 | CU19: 37.74 | CV19: 1 | CW19: 2 | CX19: 1 | CY19: 6.147679792 | CZ19: 2497 | DA19: 4392 | DB19: 2205 | DC19: 3047 | DD19: 4799 | DE19: 5282 | DF19: 90.86 | DG19: 125.99 | DH19: 7.92 | DI19: Yes | DJ19: 143000 | DK19: 150000 | DL19: 0 | DM19: 12367 | DN19: 2241 | DO19: 347204 | DP19: 0 | DQ19: 0 | DR19: 0 | DS19: 7 | DT19: 5150.428571 | DU19: 28.57142857 | DV19: 71.42857143 | DW19: 0 | DX19: 42.85714286 | DY19: 0 | DZ19: 85.71428571 | EA19: 14.28571429 | EB19: 170 | EC19: 212.5823529
A20: Byron Shire Council | B20: 4 | C20: Regional Town/City | D20: 565.8 | E20: 32723 | F20: 1.858307913 | G20: 56.8 | H20: 16273 | I20: 49.72954802 | J20: 16450 | K20: 50.27045198 | L20: 23.72948691 | M20: 53.02692296 | N20: 23.24359014 | O20: 32.88818262 | P20: 43.86822724 | Q20: 23.24359014 | R20: 1.8 | S20: 6.3 | T20: 98 | U20: 7.9 | V20: 43983.73984 | W20: 2.4 | X20: Health care/social assistance | Y20: 3985 | Z20: n/a | AA20: n/a | AB20: n/a | AC20: n/a | AD20: 2.61 | AE20: 2.96 | AF20: 72.11 | AG20: 27.89 | AH20: 4 | AI20: 2.38 | AJ20: 11.02961024 | AK20: 14.59 | AL20: 74229 | AM20: 78715 | AN20: 74646 | AO20: 90620 | AP20: 13180 | AQ20: 1020.123839 | AR20: 12920 | AS20: 13565 | AT20: 1035.812462 | AU20: 13096 | AV20: 14043 | AW20: 1069.616879 | AX20: 13129 | AY20: 73.5 | AZ20: 17.2975855 | BA20: 987 | BB20: 1817.679558 | BC20: 543 | BD20: 3592 | BE20: 2477.241379 | BF20: 1450 | BG20: n/a | BH20: n/a | BI20: 0 | BJ20: 317.3071958 | BK20: 1508 | BL20: 2.02020202 | BM20: 26256 | BN20: 35.17402138 | BO20: 8298 | BP20: 11.11646974 | BQ20: 9162 | BR20: 12.27393296 | BS20: 8085 | BT20: 10.8311229 | BU20: 14903 | BV20: 19.964901 | BW20: 6434 | BX20: 8.619349999 | BY20: 46.08379427 | BZ20: 253.5831067 | CA20: 690.0039727 | CB20: 279.9865538 | CC20: 247.0739235 | CD20: 112.367448 | CE20: 196.6201143 | CF20: 55.89340831 | CG20: 455.4289032 | CH20: 1745 | CI20: 330.1850864 | CJ20: 42.86862172 | CK20: 5800.97 | CL20: 28.30481531 | CM20: 3917.31 | CN20: 19.11382683 | CO20: 10776.36 | CP20: 52.58135786 | CQ20: 2930 | CR20: 78.03268856 | CS20: 601.51 | CT20: 18.38187208 | CU20: 274.84 | CV20: 2 | CW20: 15 | CX20: 3 | CY20: 11.9247624 | CZ20: 7273.07 | DA20: 8547.5 | DB20: 6987.007 | DC20: 7703.78 | DD20: 10425.51997 | DE20: 10347.183 | DF20: 100.76 | DG20: 136.8 | DH20: 7.96 | DI20: Yes | DJ20: 49000 | DK20: 205000 | DL20: 0 | DM20: 16283 | DN20: 14653 | DO20: 253182 | DP20: 16 | DQ20: 6728 | DR20: 4 | DS20: 9 | DT20: 3568.777778 | DU20: 22.22222222 | DV20: 77.77777778 | DW20: 0 | DX20: 11.11111111 | DY20: 0 | DZ20: 55.55555556 | EA20: 44.44444444 | EB20: 253 | EC20: 129.3399209
A21: Cabonne Council | B21: 11 | C21: Large Rural | D21: 6023.9 | E21: 13860 | F21: 4.635361619 | G21: 2.3 | H21: 7013 | I21: 50.5988456 | J21: 6847 | K21: 49.4011544 | L21: 27.77777778 | M21: 46.23376623 | N21: 25.98845599 | O21: 36.78932179 | P21: 37.22222222 | Q21: 25.98845599 | R21: 3.1 | S21: 1.8 | T21: 111 | U21: 3.6 | V21: 51307.44849 | W21: 2.6 | X21: Agriculture, forestry & Fishing | Y21: 1553 | Z21: n/a | AA21: n/a | AB21: n/a | AC21: n/a | AD21: 14.01 | AE21: 8.35 | AF21: 60.69 | AG21: 39.31 | AH21: 5.33 | AI21: 40.7 | AJ21: 0.9699833241 | AK21: 24.11 | AL21: 32285 | AM21: 34222 | AN21: 30953 | AO21: 42572 | AP21: 2489 | AQ21: 551.6400709 | AR21: 4512 | AS21: 2645 | AT21: 583.8852097 | AU21: 4530 | AV21: 2694 | AW21: 589.8839501 | AX21: 4567 | AY21: 69.1 | AZ21: 22.31223998 | BA21: 4791 | BB21: 2436.927772 | BC21: 1966 | BD21: 232 | BE21: 529.6803653 | BF21: 438 | BG21: 1708 | BH21: 131384.6154 | BI21: 13 | BJ21: 175.8475613 | BK21: 2590 | BL21: 8.367524957 | BM21: 5255 | BN21: 16.97735276 | BO21: 2380 | BP21: 7.689076988 | BQ21: 2826 | BR21: 9.129971247 | BS21: 3210 | BT21: 10.37056182 | BU21: 7372 | BV21: 23.81675443 | BW21: 7320 | BX21: 23.64875779 | BY21: 186.8686869 | BZ21: 171.7171717 | CA21: 261.3275613 | CB21: 203.8961039 | CC21: 231.6017316 | CD21: 117.8210678 | CE21: 528.1385281 | CF21: 27.92207792 | CG21: 531.8903319 | CH21: 1172 | CI21: 226.8447559 | CJ21: 19.6800816 | CK21: 3126.7916 | CL21: 25.19490651 | CM21: 620.86 | CN21: 5.002734962 | CO21: 8662.76 | CP21: 69.80235853 | CQ21: 5733 | CR21: 24.67481277 | CS21: 1928.77 | CT21: 139.1608947 | CU21: 29 | CV21: 7 | CW21: 8 | CX21: 3 | CY21: 1.594877345 | CZ21: 4983 | DA21: 3181 | DB21: 4226 | DC21: 4646 | DD21: 4226 | DE21: 4646 | DF21: 90.96 | DG21: 191.23 | DH21: 2.78 | DI21: Yes | DJ21: 37000 | DK21: 145000 | DL21: 0 | DM21: 9026 | DN21: 1515 | DO21: 236458 | DP21: 0 | DQ21: 0 | DR21: 0 | DS21: 12 | DT21: 1148 | DU21: 25 | DV21: 75 | DW21: 0 | DX21: 0 | DY21: 0 | DZ21: 66.66666667 | EA21: 33.33333333 | EB21: 161 | EC21: 86.08695652
A22: Camden Council | B22: 6 | C22: Metropolitan Fringe | D22: 201.3 | E22: 72256 | F22: 30.79666202 | G22: 333.3 | H22: 36124 | I22: 49.99446413 | J22: 36132 | K22: 50.00553587 | L22: 30.66042958 | M22: 54.19895926 | N22: 15.14061116 | O22: 44.70355403 | P22: 40.15583481 | Q22: 15.14061116 | R22: 2 | S22: 10.2 | T22: 133 | U22: 2.3 | V22: 60605.12599 | W22: 3 | X22: Manufacturing | Y22: 4996 | Z22: n/a | AA22: n/a | AB22: n/a | AC22: n/a | AD22: -2.15 | AE22: 2.51 | AF22: 33.58 | AG22: 66.42 | AH22: 3.67 | AI22: 3.02 | AJ22: 5.436474823 | AK22: 16.72 | AL22: 78283 | AM22: 78459 | AN22: 83377 | AO22: 218130 | AP22: 26879 | AQ22: 1194.35681 | AR22: 22505 | AS22: 29901 | AT22: 1222.095067 | AU22: 24467 | AV22: 34247 | AW22: 1229.121057 | AX22: 27863 | AY22: 81.3 | AZ22: 10.31116534 | BA22: 651 | BB22: 2906.25 | BC22: 224 | BD22: 7657 | BE22: 4654.711246 | BF22: 1645 | BG22: n/a | BH22: n/a | BI22: 0 | BJ22: 219.2742787 | BK22: 25827 | BL22: 30.9888053 | BM22: 2287 | BN22: 2.744081687 | BO22: 11715 | BP22: 14.05636946 | BQ22: 7961 | BR22: 9.552091957 | BS22: 15243 | BT22: 18.28947842 | BU22: 12720 | BV22: 15.26222958 | BW22: 7590 | BX22: 9.106943595 | BY22: 357.4374446 | BZ22: 162.1318645 | CA22: n/a | CB22: 110.1777015 | CC22: 210.9582595 | CD22: 31.65135075 | CE22: 105.0431798 | CF22: 27.23649247 | CG22: 176.040744 | CH22: n/a | CI22: 325.3059613 | CJ22: 69.5351222 | CK22: 15274.2 | CL22: 50.87465693 | CM22: 6767.66 | CN22: 22.54143462 | CO22: 7981.34 | CP22: 26.58390844 | CQ22: 11847 | CR22: 61.23744397 | CS22: 615.49 | CT22: 8.518185341 | CU22: 473.19 | CV22: 2 | CW22: 15 | CX22: 2 | CY22: 3.488651461 | CZ22: 3504 | DA22: 4493 | DB22: 5090 | DC22: 5273 | DD22: 4135 | DE22: 4669 | DF22: 88.56 | DG22: 31.61 | DH22: 1.27 | DI22: Yes | DJ22: 70000 | DK22: 174000 | DL22: 0 | DM22: 0 | DN22: 0 | DO22: 309934 | DP22: 1 | DQ22: 11200 | DR22: 0 | DS22: 9 | DT22: 7453.777778 | DU22: 55.55555556 | DV22: 44.44444444 | DW22: 0 | DX22: 0 | DY22: 0 | DZ22: 88.88888889 | EA22: 11.11111111 | EB22: 347 | EC22: 208.2305476
A23: Campbelltown City Council | B23: 7 | C23: Metropolitan Fringe | D23: 312.1 | E23: 158941 | F23: 4.492889874 | G23: 501.6 | H23: 78386 | I23: 49.31767134 | J23: 80555 | K23: 50.68232866 | L23: 28.03052705 | M23: 54.93044589 | N23: 17.03902706 | O23: 43.56081817 | P23: 39.40015477 | Q23: 17.03902706 | R23: 3.2 | S23: 25.2 | T23: 58 | U23: 6.6 | V23: 52049.66582 | W23: 2.9 | X23: Manufacturing | Y23: 7966 | Z23: n/a | AA23: n/a | AB23: n/a | AC23: n/a | AD23: 9.65 | AE23: 4.61 | AF23: 67.34 | AG23: 32.66 | AH23: 3.41 | AI23: 7.29 | AJ23: 3.371110006 | AK23: 10.71 | AL23: 128698 | AM23: 137192 | AN23: 138079 | AO23: 179468 | AP23: 48532 | AQ23: 934.7457627 | AR23: 51920 | AS23: 54851 | AT23: 1049.398305 | AU23: 52269 | AV23: 57508 | AW23: 1081.831521 | AX23: 53158 | AY23: 74.2 | AZ23: 13.95086346 | BA23: 719 | BB23: 11234.375 | BC23: 64 | BD23: 18599 | BE23: 6586.048159 | BF23: 2824 | BG23: 25 | BH23: 12500 | BI23: 2 | BJ23: 138.5335639 | BK23: 26790 | BL23: 19.40193657 | BM23: 6508 | BN23: 4.713243868 | BO23: 24806 | BP23: 17.96507796 | BQ23: 22284 | BR23: 16.13858733 | BS23: 32898 | BT23: 23.8254912 | BU23: 16938 | BV23: 12.26689069 | BW23: 7855 | BX23: 5.688772369 | BY23: 168.5531109 | BZ23: 156.0704916 | CA23: n/a | CB23: 140.2029684 | CC23: 206.9824652 | CD23: 40.94601141 | CE23: 49.42085428 | CF23: 35.5792401 | CG23: 106.5678459 | CH23: n/a | CI23: 319.1241205 | CJ23: 68.17245316 | CK23: 30463 | CL23: 47.73642561 | CM23: 15655 | CN23: 24.53184988 | CO23: 17697 | CP23: 27.73172452 | CQ23: 23214 | CR23: 61.45262529 | CS23: 718.77 | CT23: 4.522244103 | CU23: 1100 | CV23: 3 | CW23: 23 | CX23: 4 | CY23: 3.117754387 | CZ23: 13933 | DA23: 16243 | DB23: 27348 | DC23: 16945 | DD23: 20445 | DE23: 20122 | DF23: 101.61 | DG23: 106.9 | DH23: 2.18 | DI23: Yes | DJ23: 141000 | DK23: 413000 | DL23: 0 | DM23: 16283 | DN23: 29487 | DO23: 350000 | DP23: 1 | DQ23: 0 | DR23: 0 | DS23: 15 | DT23: 10438.13333 | DU23: 20 | DV23: 80 | DW23: 0 | DX23: 33.33333333 | DY23: 6.666666667 | DZ23: 33.33333333 | EA23: 60 | EB23: 592 | EC23: 268.4814189
A24: City of Canada Bay Council | B24: 3 | C24: Metropolitan | D24: 19.9 | E24: 88819 | F24: 16.86864301 | G24: 4397.4 | H24: 43445 | I24: 48.9140837 | J24: 45374 | K24: 51.0859163 | L24: 21.46275009 | M24: 59.13261802 | N24: 19.40463189 | O24: 37.32534705 | P24: 43.27002105 | Q24: 19.40463189 | R24: 0.4 | S24: 35.8 | T24: 138 | U24: 2.6 | V24: 72364.67236 | W24: 2.5 | X24: Professional | Y24: 9017 | Z24: n/a | AA24: n/a | AB24: n/a | AC24: n/a | AD24: 6.04 | AE24: 3.5 | AF24: 78.86 | AG24: 21.14 | AH24: 1.31 | AI24: 24.82 | AJ24: 0.8090912434 | AK24: 12.84 | AL24: 72653 | AM24: 73758 | AN24: 76667 | AO24: 98569 | AP24: 27962 | AQ24: 837.1355009 | AR24: 33402 | AS24: 29295 | AT24: 861.9218548 | AU24: 33988 | AV24: 30228 | AW24: 879.2321117 | AX24: 34380 | AY24: 78.5 | AZ24: 11.54159395 | BA24: n/a | BB24: n/a | BC24: 0 | BD24: 4882 | BE24: 2709.211987 | BF24: 1802 | BG24: n/a | BH24: n/a | BI24: 0 | BJ24: 457.9740816 | BK24: 7071 | BL24: 9.223003378 | BM24: 5224 | BN24: 6.813883418 | BO24: 19205 | BP24: 25.04989109 | BQ24: 11596 | BR24: 15.12515163 | BS24: 20876 | BT24: 27.22944683 | BU24: 7645 | BV24: 9.971695775 | BW24: 5050 | BX24: 6.586927883 | BY24: 79.61134442 | BZ24: 216.2262579 | CA24: n/a | CB24: 130.557651 | CC24: 235.0398 | CD24: 58.81624427 | CE24: 56.85720398 | CF24: 51.93708553 | CG24: 86.07392562 | CH24: n/a | CI24: 401.1343805 | CJ24: 47.58987241 | CK24: 10933.3 | CL24: 32.85050949 | CM24: 5259.53 | CN24: 15.802936 | CO24: 17089.15 | CP24: 51.3465545 | CQ24: 7456 | CR24: 56.33126391 | CS24: 207 | CT24: 2.33058242 | CU24: 128.68 | CV24: 3 | CW24: 7 | CX24: 2 | CY24: 5.821051802 | CZ24: 5957 | DA24: 5988 | DB24: 6439 | DC24: 6030 | DD24: 12600 | DE24: 13078 | DF24: 96.35 | DG24: 115.84 | DH24: 3.58 | DI24: Yes | DJ24: 5000 | DK24: 202000 | DL24: 0 | DM24: 14780 | DN24: 2191 | DO24: 302594 | DP24: 0 | DQ24: 0 | DR24: 0 | DS24: 9 | DT24: 9720 | DU24: 33.33333333 | DV24: 66.66666667 | DW24: 0 | DX24: 44.44444444 | DY24: 0 | DZ24: 77.77777778 | EA24: 22.22222222 | EB24: 324 | EC24: 274.132716
A25: Carrathool Shire Council | B25: 9 | C25: Rural | D25: 18932.5 | E25: 2733 | F25: -7.793522267 | G25: 0.1 | H25: 1440 | I25: 52.68935236 | J25: 1293 | K25: 47.31064764 | L25: 23.05159166 | M25: 55.14087084 | N25: 21.8075375 | O25: 36.07757044 | P25: 42.11489206 | Q25: 21.8075375 | R25: 6.8 | S25: 3.8 | T25: 76 | U25: 2.5 | V25: 41159.96258 | W25: 2.5 | X25: Agriculture, forestry & fishing | Y25: 414 | Z25: n/a | AA25: n/a | AB25: n/a | AC25: n/a | AD25: 17.04 | AE25: 6.19 | AF25: 46.05 | AG25: 53.95 | AH25: 4.81 | AI25: 21.29 | AJ25: 1.784266018 | AK25: 11 | AL25: 12633 | AM25: 13749 | AN25: 16372 | AO25: 20406 | AP25: 340 | AQ25: 388.1278539 | AR25: 876 | AS25: 334 | AT25: 393.4040047 | AU25: 849 | AV25: 347 | AW25: 367.1957672 | AX25: 945 | AY25: 59.4 | AZ25: 18.73015873 | BA25: 2605 | BB25: 2960.227273 | BC25: 880 | BD25: 197 | BE25: 980.0995025 | BF25: 201 | BG25: n/a | BH25: n/a | BI25: 0 | BJ25: 148.6530391 | BK25: 3155 | BL25: 19.27070608 | BM25: 2097 | BN25: 12.80845346 | BO25: 518 | BP25: 3.163938431 | BQ25: 1116 | BR25: 6.816516003 | BS25: 1336 | BT25: 8.160273638 | BU25: 4474 | BV25: 27.3271439 | BW25: 3676 | BX25: 22.45296848 | BY25: 1154.409074 | BZ25: 189.5353092 | CA25: 620.9293816 | CB25: 408.3424808 | CC25: 488.8401025 | CD25: 146.3593121 | CE25: 1345.042078 | CF25: 122.9418222 | CG25: 1637.028906 | CH25: 1296 | CI25: 357.6719577 | CJ25: 0 | CK25: 0 | CL25: 0 | CM25: 0 | CN25: 0 | CO25: 413 | CP25: 100 | CQ25: 889 | CR25: 49.31584949 | CS25: 2619.66 | CT25: 958.5290889 | CU25: 23.65 | CV25: 2 | CW25: 6 | CX25: 1 | CY25: 6.898280278 | CZ25: 3780 | DA25: 3400 | DB25: 3772 | DC25: 3696 | DD25: 3355 | DE25: 3696 | DF25: 90.77 | DG25: 121.61 | DH25: 2.73 | DI25: Yes | DJ25: 34000 | DK25: 103000 | DL25: 0 | DM25: 6952 | DN25: 0 | DO25: 220164 | DP25: 0 | DQ25: 0 | DR25: 0 | DS25: 10 | DT25: 279.5 | DU25: 10 | DV25: 90 | DW25: 0 | DX25: 0 | DY25: 0 | DZ25: 40 | EA25: 60 | EB25: 97 | EC25: 28.17525773
A26: Central Darling Shire Council | B26: 9 | C26: Rural | D26: 53493.8 | E26: 2088 | F26: 3.417533432 | G26: 0 | H26: 1118 | I26: 53.5440613 | J26: 970 | K26: 46.4559387 | L26: 27.3467433 | M26: 52.72988506 | N26: 19.92337165 | O26: 37.2605364 | P26: 42.81609195 | Q26: 19.92337165 | R26: 38.2 | S26: 2.9 | T26: 2 | U26: 7.7 | V26: 45064.37768 | W26: 2.4 | X26: Agriculture, forestry & fishing | Y26: 169 | Z26: n/a | AA26: n/a | AB26: n/a | AC26: n/a | AD26: 3.34 | AE26: 0.71 | AF26: 39.05 | AG26: 60.95 | AH26: 24.75 | AI26: 21.2 | AJ26: 1.00066309 | AK26: 0.25 | AL26: 16474 | AM26: 14339 | AN26: 16035 | AO26: 17300 | AP26: 314 | AQ26: 291.2801484 | AR26: 1078 | AS26: 324 | AT26: 292.4187726 | AU26: 1108 | AV26: 302 | AW26: 273.3031674 | AX26: 1105 | AY26: 50.2 | AZ26: 12.57918552 | BA26: 428 | BB26: 1156.756757 | BC26: 370 | BD26: 41 | BE26: 294.9640288 | BF26: 139 | BG26: n/a | BH26: n/a | BI26: 0 | BJ26: 184.9259922 | BK26: 2307 | BL26: 14.38727783 | BM26: 1183 | BN26: 7.377611475 | BO26: 315 | BP26: 1.96445276 | BQ26: 108 | BR26: 0.6735266604 | BS26: 547 | BT26: 3.411287808 | BU26: 11485 | BV26: 71.62457125 | BW26: 90 | BX26: 0.561272217 | BY26: 1104.885057 | BZ26: 150.862069 | CA26: 419.0613027 | CB26: 51.72413793 | CC26: 261.9731801 | CD26: 147.5095785 | CE26: 43.10344828 | CF26: 0 | CG26: 5500.478927 | CH26: 2054 | CI26: 391.8552036 | CJ26: 0 | CK26: 0 | CL26: 0 | CM26: 0 | CN26: 0 | CO26: 1464 | CP26: 100 | CQ26: 781 | CR26: 32.61432269 | CS26: 2395.82 | CT26: 1147.423372 | CU26: 1 | CV26: 0 | CW26: 7 | CX26: 0 | CY26: 0 | CZ26: 7137 | DA26: 5706 | DB26: 5232 | DC26: 6708 | DD26: 4577 | DE26: 6080 | DF26: 75.28 | DG26: 0 | DH26: 18.14 | DI26: No | DJ26: 0 | DK26: 0 | DL26: 0 | DM26: 0 | DN26: 0 | DO26: 197282 | DP26: 0 | DQ26: 0 | DR26: 0 | DS26: 9 | DT26: 229.4444444 | DU26: 22.22222222 | DV26: 77.77777778 | DW26: 0 | DX26: 0 | DY26: 11.11111111 | DZ26: 22.22222222 | EA26: 66.66666667 | EB26: 47 | EC26: 44.42553191
A27: Cessnock City Council | B27: 4 | C27: Regional Town/City | D27: 1965.4 | E27: 55862 | F27: 9.891017823 | G27: 28 | H27: 28074 | I27: 50.25598797 | J27: 27788 | K27: 49.74401203 | L27: 27.43188572 | M27: 51.60932297 | N27: 20.95879131 | O27: 40.63048226 | P27: 38.41072643 | Q27: 20.95879131 | R27: 4.8 | S27: 1.7 | T27: 28 | U27: 9.7 | V27: 58710.03308 | W27: 2.6 | X27: Manufacturing | Y27: 2647 | Z27: n/a | AA27: n/a | AB27: n/a | AC27: n/a | AD27: -2.94 | AE27: 3.17 | AF27: 64.08 | AG27: 35.92 | AH27: 2.46 | AI27: 5.01 | AJ27: 2.452221467 | AK27: 6.65 | AL27: 69339 | AM27: 72004 | AN27: 74690 | AO27: 86317 | AP27: 21262 | AQ27: 1013.779621 | AR27: 20973 | AS27: 22332 | AT27: 1052.205051 | AU27: 21224 | AV27: 23262 | AW27: 1054.153261 | AX27: 22067 | AY27: 67 | AZ27: 21.23986043 | BA27: 3469 | BB27: 2684.98452 | BC27: 1292 | BD27: 4642 | BE27: 3022.135417 | BF27: 1536 | BG27: 1095 | BH27: 182500 | BI27: 6 | BJ27: 126.1950394 | BK27: 13512 | BL27: 18.0907752 | BM27: 3276 | BN27: 4.386129335 | BO27: 13570 | BP27: 18.16842951 | BQ27: 6931 | BR27: 9.279689383 | BS27: 11704 | BT27: 15.67010309 | BU27: 18191 | BV27: 24.35533539 | BW27: 7506 | BX27: 10.04953809 | BY27: 241.8817801 | BZ27: 242.920053 | CA27: n/a | CB27: 124.07361 | CC27: 209.516308 | CD27: 58.64451685 | CE27: 134.3668326 | CF27: 32.31176829 | CG27: 325.6417601 | CH27: n/a | CI27: 462.545883 | CJ27: 20.51122371 | CK27: 6541.49 | CL27: 21.56959209 | CM27: 1752 | CN27: 5.776959888 | CO27: 22033.88 | CP27: 72.65344802 | CQ27: 14308 | CR27: 61.69927992 | CS27: 1016.01 | CT27: 18.18785579 | CU27: 653.12 | CV27: 3 | CW27: 22 | CX27: 2 | CY27: 3.873849844 | CZ27: 14499 | DA27: 14583 | DB27: 8856 | DC27: 12466 | DD27: 14154 | DE27: 10008 | DF27: 141.43 | DG27: 64.14 | DH27: 2 | DI27: Yes | DJ27: 47000 | DK27: 260000 | DL27: 0 | DM27: 7829 | DN27: 0 | DO27: 286257 | DP27: 2 | DQ27: 1110 | DR27: 0 | DS27: 13 | DT27: 4229.153846 | DU27: 23.07692308 | DV27: 76.92307692 | DW27: 0 | DX27: 0 | DY27: 15.38461538 | DZ27: 46.15384615 | EA27: 38.46153846 | EB27: 291 | EC27: 191.9656357
A28: Clarence Valley Council | B28: 4 | C28: Regional Town/City | D28: 10428.8 | E28: 51040 | F28: -1.947977101 | G28: 4.9 | H28: 25242 | I28: 49.45532915 | J28: 25798 | K28: 50.54467085 | L28: 23.72648903 | M28: 44.83738245 | N28: 31.43612853 | O28: 32.40595611 | P28: 36.15791536 | Q28: 31.43612853 | R28: 5.7 | S28: 1.9 | T28: 13 | U28: 5.7 | V28: 45028.03187 | W28: 2.4 | X28: Health care/social assistance | Y28: 3868 | Z28: n/a | AA28: n/a | AB28: n/a | AC28: n/a | AD28: -4.67 | AE28: 5.23 | AF28: 67.95 | AG28: 32.05 | AH28: 5.99 | AI28: 2.59 | AJ28: 12.69229463 | AK28: 10.35 | AL28: 123506 | AM28: 134540 | AN28: 134565 | AO28: 129154 | AP28: 18640 | AQ28: 843.6297805 | AR28: 22095 | AS28: 19138 | AT28: 857.7062699 | AU28: 22313 | AV28: 19633 | AW28: 878.4340045 | AX28: 22350 | AY28: 65 | AZ28: 27.10514541 | BA28: 2752 | BB28: 1278.810409 | BC28: 2152 | BD28: 3403 | BE28: 2310.251188 | BF28: 1473 | BG28: n/a | BH28: n/a | BI28: 0 | BJ28: 159.4123111 | BK28: 20952 | BL28: 15.57711609 | BM28: 29081 | BN28: 21.62075759 | BO28: 14261 | BP28: 10.60257983 | BQ28: 10899 | BR28: 8.103044496 | BS28: 11222 | BT28: 8.343184268 | BU28: 36116 | BV28: 26.85104643 | BW28: 11974 | BX28: 8.902271291 | BY28: 410.5015674 | BZ28: 279.4083072 | CA28: 521.0619122 | CB28: 213.5384013 | CC28: 219.8667712 | CD28: 48.70689655 | CE28: 234.6003135 | CF28: 33.22884013 | CG28: 707.6018809 | CH28: 1583 | CI28: 260.7606264 | CJ28: 62.71222029 | CK28: 7959.5328 | CL28: 26.30790207 | CM28: 10591 | CN28: 35.00544539 | CO28: 11704.76 | CP28: 38.68665254 | CQ28: 13414 | CR28: 52.08943496 | CS28: 2456.79 | CT28: 48.13460031 | CU28: 646 | CV28: 7 | CW28: 26 | CX28: 4 | CY28: 5.464811912 | CZ28: 17359 | DA28: 19261 | DB28: 15862 | DC28: 20934 | DD28: 16644 | DE28: 25649 | DF28: 64.89 | DG28: 30.51 | DH28: 3.86 | DI28: Yes | DJ28: 5000 | DK28: 196000 | DL28: 0 | DM28: 4730 | DN28: 3216 | DO28: 263239 | DP28: 2 | DQ28: 7750 | DR28: 2 | DS28: 9 | DT28: 5667 | DU28: 33.33333333 | DV28: 66.66666667 | DW28: 0 | DX28: 0 | DY28: 0 | DZ28: 77.77777778 | EA28: 22.22222222 | EB28: 550 | EC28: 92.8
A29: Cobar Shire Council | B29: 10 | C29: Large Rural | D29: 45571 | E29: 4975 | F29: -3.697251258 | G29: 0.1 | H29: 2690 | I29: 54.07035176 | J29: 2285 | K29: 45.92964824 | L29: 28.52261307 | M29: 54.69346734 | N29: 16.7839196 | O29: 43.47738693 | P29: 39.73869347 | Q29: 16.7839196 | R29: 12.8 | S29: 3.2 | T29: 60 | U29: 2.6 | V29: 68809.6434 | W29: 2.4 | X29: Mining | Y29: 437 | Z29: n/a | AA29: n/a | AB29: n/a | AC29: n/a | AD29: 1.4 | AE29: 3.19 | AF29: 50.14 | AG29: 49.86 | AH29: 7.23 | AI29: 8.34 | AJ29: 2.742489119 | AK29: 5.29 | AL29: 25249 | AM29: 24811 | AN29: 27862 | AO29: 29575 | AP29: 1022 | AQ29: 500.24 | AR29: 2043 | AS29: 2362 | AT29: 1158.979392 | AU29: 2038 | AV29: 2530 | AW29: 1240.196078 | AX29: 2040 | AY29: 62.2 | AZ29: 14.75490196 | BA29: 633 | BB29: 1551.470588 | BC29: 408 | BD29: 373 | BE29: 1027.548209 | BF29: 363 | BG29: 1562 | BH29: 55785.71429 | BI29: 28 | BJ29: 43.55575638 | BK29: 2499 | BL29: 8.969205369 | BM29: 4240 | BN29: 15.21785945 | BO29: 670 | BP29: 2.404708923 | BQ29: 5220 | BR29: 18.73519489 | BS29: 2840 | BT29: 10.19309454 | BU29: 7463 | BV29: 26.7855861 | BW29: 4930 | BX29: 17.69435073 | BY29: 502.3115578 | BZ29: 134.6733668 | CA29: 730.6532663 | CB29: 1049.246231 | CC29: 570.8542714 | CD29: 121.6080402 | CE29: 990.9547739 | CF29: 88.44221106 | CG29: 1500.100503 | CH29: 1286 | CI29: 270.0980392 | CJ29: 50.35411927 | CK29: 0 | CL29: 0 | CM29: 0 | CN29: 0 | CO29: 1494.68 | CP29: 100 | CQ29: 1832 | CR29: 45.6379822 | CS29: 2319.98 | CT29: 466.3276382 | CU29: 121 | CV29: 1 | CW29: 4 | CX29: 3 | CY29: 5.501909548 | CZ29: 4020 | DA29: 7530.3 | DB29: 3403 | DC29: 8060 | DD29: 3749 | DE29: 7063 | DF29: 53.08 | DG29: 79.57 | DH29: 16.14 | DI29: Yes | DJ29: 6000 | DK29: 146000 | DL29: 0 | DM29: 6183 | DN29: 0 | DO29: 232688 | DP29: 0 | DQ29: 0 | DR29: 0 | DS29: 12 | DT29: 425.9166667 | DU29: 33.33333333 | DV29: 66.66666667 | DW29: 8.333333333 | DX29: 0 | DY29: 0 | DZ29: 50 | EA29: 50 | EB29: 131 | EC29: 37.97709924
A30: Coffs Harbour City Council | B30: 5 | C30: Regional Town/City | D30: 1173.7 | E30: 72971 | F30: 1.805321093 | G30: 61.7 | H30: 35799 | I30: 49.0592153 | J30: 37172 | K30: 50.9407847 | L30: 25.27031286 | M30: 48.338381 | N30: 26.39130614 | O30: 35.88685916 | P30: 37.7218347 | Q30: 26.39130614 | R30: 4.1 | S30: 5.7 | T30: 70 | U30: 4.6 | V30: 47056.36307 | W30: 2.4 | X30: Health care/social assistance | Y30: 5603 | Z30: n/a | AA30: n/a | AB30: n/a | AC30: n/a | AD30: -0.73 | AE30: 4.1 | AF30: 58.73 | AG30: 41.27 | AH30: 5.96 | AI30: 1.79 | AJ30: 19.14797954 | AK30: 8.17 | AL30: 159987 | AM30: 164528 | AN30: 163307 | AO30: 237615 | AP30: 25943 | AQ30: 905.7677536 | AR30: 28642 | AS30: 28269 | AT30: 986.4261288 | AU30: 28658 | AV30: 30904 | AW30: 1070.305465 | AX30: 28874 | AY30: 71.1 | AZ30: 21.3375355 | BA30: 1390 | BB30: 1944.055944 | BC30: 715 | BD30: 7537 | BE30: 4326.636051 | BF30: 1742 | BG30: n/a | BH30: n/a | BI30: 0 | BJ30: 160.0440297 | BK30: 39574 | BL30: 24.23288653 | BM30: 50281 | BN30: 30.7892497 | BO30: 24213 | BP30: 14.82667614 | BQ30: 5365 | BR30: 3.285223536 | BS30: 12420 | BT30: 7.605307795 | BU30: 18982 | BV30: 11.62350665 | BW30: 12472 | BX30: 7.637149663 | BY30: 542.3250332 | BZ30: 331.8167491 | CA30: 631.2370668 | CB30: 73.5223582 | CC30: 170.2046018 | CD30: 57.81748914 | CE30: 170.9172137 | CF30: 31.54677886 | CG30: 260.1307369 | CH30: 1402 | CI30: 588.7303456 | CJ30: 68.89979204 | CK30: 14547.8395 | CL30: 38.55570787 | CM30: 12869.62 | CN30: 34.10797246 | CO30: 10314.54 | CP30: 27.33631966 | CQ30: 9460 | CR30: 70.25437852 | CS30: 871.636 | CT30: 11.94496444 | CU30: 1634 | CV30: 4 | CW30: 14 | CX30: 3 | CY30: 5.050609146 | CZ30: 23104 | DA30: 25545 | DB30: 13853 | DC30: 14786 | DD30: 14342 | DE30: 14117 | DF30: 101.59 | DG30: 9.01 | DH30: 0 | DI30: Yes | DJ30: 42000 | DK30: 203000 | DL30: 0 | DM30: 19159 | DN30: 1226 | DO30: 304681 | DP30: 3 | DQ30: 9256 | DR30: 5 | DS30: 9 | DT30: 8042.444444 | DU30: 33.33333333 | DV30: 66.66666667 | DW30: 0 | DX30: 0 | DY30: 0 | DZ30: 88.88888889 | EA30: 11.11111111 | EB30: 495 | EC30: 147.4161616
A31: Coolamon Shire Council | B31: 9 | C31: Rural | D31: 2430.9 | E31: 4342 | F31: 2.915382792 | G31: 1.8 | H31: 2140 | I31: 49.2860433 | J31: 2202 | K31: 50.7139567 | L31: 26.60064486 | M31: 43.66651313 | N31: 29.73284201 | O31: 35.3984339 | P31: 34.86872409 | Q31: 29.73284201 | R31: 2.6 | S31: 1.2 | T31: 80 | U31: 2.5 | V31: 46796.2563 | W31: 2.6 | X31: Agriculture, forestry & fishing | Y31: 317 | Z31: n/a | AA31: n/a | AB31: n/a | AC31: n/a | AD31: 17.44 | AE31: 5.49 | AF31: 49.09 | AG31: 50.91 | AH31: 5.76 | AI31: 816.33 | AJ31: 0.02208643157 | AK31: 19.2 | AL31: 11626 | AM31: 11173 | AN31: 11214 | AO31: 14402 | AP31: 514 | AQ31: 298.8372093 | AR31: 1720 | AS31: 548 | AT31: 316.9462117 | AU31: 1729 | AV31: 563 | AW31: 322.8211009 | AX31: 1744 | AY31: 63.6 | AZ31: 24.13990826 | BA31: 1534 | BB31: 1729.425028 | BC31: 887 | BD31: 95 | BE31: 400.8438819 | BF31: 237 | BG31: n/a | BH31: n/a | BI31: 0 | BJ31: 235.8043294 | BK31: 580 | BL31: 5.172106296 | BM31: 972 | BN31: 8.667736758 | BO31: 791 | BP31: 7.053682896 | BQ31: 1821 | BR31: 16.23863028 | BS31: 1100 | BT31: 9.809167113 | BU31: 3540 | BV31: 31.56768325 | BW31: 2410 | BX31: 21.4909934 | BY31: 133.5789959 | BZ31: 182.1741133 | CA31: 129.4334408 | CB31: 419.3919853 | CC31: 253.3394749 | CD31: 94.42653155 | CE31: 555.0437586 | CF31: 48.13450023 | CG31: 815.2924919 | CH31: n/a | CI31: 257.4541284 | CJ31: 37.23395377 | CK31: 239.73 | CL31: 21.40178906 | CM31: 159.69 | CN31: 14.25625368 | CO31: 720.73 | CP31: 64.34285 | CQ31: 1705 | CR31: 45.71792423 | CS31: 1338.45 | CT31: 308.2565638 | CU31: 13 | CV31: 3 | CW31: 7 | CX31: 1 | CY31: 5.386688162 | CZ31: 3169 | DA31: 3229 | DB31: 1894 | DC31: 2154 | DD31: 3067 | DE31: 3051 | DF31: 100.52 | DG31: 187.38 | DH31: 0.47 | DI31: Yes | DJ31: 10000 | DK31: 87000 | DL31: 0 | DM31: 6076 | DN31: 0 | DO31: 193035 | DP31: 0 | DQ31: 0 | DR31: 0 | DS31: 9 | DT31: 478.6666667 | DU31: 33.33333333 | DV31: 66.66666667 | DW31: 0 | DX31: 0 | DY31: 0 | DZ31: 77.77777778 | EA31: 22.22222222 | EB31: 63 | EC31: 68.92063492
A32: Coonamble Shire Council | B32: 9 | C32: Rural | D32: 9915.9 | E32: 4262 | F32: -1.021830005 | G32: 0.4 | H32: 2184 | I32: 51.24354763 | J32: 2078 | K32: 48.75645237 | L32: 25.78601595 | M32: 50.02346316 | N32: 24.19052088 | O32: 39.81698733 | P32: 35.99249179 | Q32: 24.19052088 | R32: 29.2 | S32: 1 | T32: 6 | U32: 7.1 | V32: 42253.52113 | W32: 2.4 | X32: Agriculture, forestry & fishing | Y32: 659 | Z32: n/a | AA32: n/a | AB32: n/a | AC32: n/a | AD32: 8.29 | AE32: 7.7 | AF32: 57.16 | AG32: 42.84 | AH32: 6.52 | AI32: 121.78 | AJ32: 0.2986434501 | AK32: 20.1 | AL32: 18324 | AM32: 17274 | AN32: 18122 | AO32: 22290 | AP32: 459 | AQ32: 291.9847328 | AR32: 1572 | AS32: 497 | AT32: 336.0378634 | AU32: 1479 | AV32: 493 | AW32: 331.986532 | AX32: 1485 | AY32: 53.2 | AZ32: 20.2020202 | BA32: 3758 | BB32: 4255.94564 | BC32: 883 | BD32: 132 | BE32: 150.3416856 | BF32: 878 | BG32: n/a | BH32: n/a | BI32: 0 | BJ32: 208.7324369 | BK32: 4968 | BL32: 27.42024506 | BM32: 2634 | BN32: 14.53802848 | BO32: 785 | BP32: 4.332707804 | BQ32: 429 | BR32: 2.367811017 | BS32: 1431 | BT32: 7.898222762 | BU32: 3854 | BV32: 21.27166354 | BW32: 4017 | BX32: 22.17132134 | BY32: 1165.64993 | BZ32: 184.1858282 | CA32: 433.8338808 | CB32: 100.6569686 | CC32: 335.7578602 | CD32: 184.1858282 | CE32: 942.5152511 | CF32: 52.08822149 | CG32: 904.2702956 | CH32: 1279 | CI32: 299.6632997 | CJ32: 14.89361702 | CK32: 200 | CL32: 6.993006993 | CM32: 0 | CN32: 0 | CO32: 2660 | CP32: 93.00699301 | CQ32: 1726 | CR32: 52.91871249 | CS32: 1657.04 | CT32: 388.7939934 | CU32: 30 | CV32: 3 | CW32: 3 | CX32: 3 | CY32: 3.503284843 | CZ32: 2758.279 | DA32: 2014 | DB32: 2916 | DC32: 1449 | DD32: 2639 | DE32: 1449 | DF32: 182.13 | DG32: 80.99 | DH32: 1.01 | DI32: Yes | DJ32: 16000 | DK32: 83000 | DL32: 0 | DM32: 9987 | DN32: 0 | DO32: 247145 | DP32: 0 | DQ32: 0 | DR32: 0 | DS32: 7 | DT32: 613.1428571 | DU32: 0 | DV32: 100 | DW32: 28.57142857 | DX32: 14.28571429 | DY32: 0 | DZ32: 57.14285714 | EA32: 42.85714286 | EB32: 91 | EC32: 46.83516484
A33: Cowra Shire Council | B33: 11 | C33: Large Rural | D33: 2808.7 | E33: 12476 | F33: -3.623020471 | G33: 4.5 | H33: 6378 | I33: 51.12215454 | J33: 6098 | K33: 48.87784546 | L33: 24.25456877 | M33: 44.65373517 | N33: 31.09169606 | O33: 33.74479 | P33: 35.16351395 | Q33: 31.09169606 | R33: 6.5 | S33: 2.2 | T33: 24 | U33: 8.3 | V33: 42719.33854 | W33: 2.4 | X33: Agriculture, forestry & fishing | Y33: 1264 | Z33: n/a | AA33: n/a | AB33: n/a | AC33: n/a | AD33: 4.45 | AE33: 2.53 | AF33: 76.93 | AG33: 23.07 | AH33: 7.64 | AI33: 3.83 | AJ33: 6.927071041 | AK33: 9.22 | AL33: 29850 | AM33: 31407 | AN33: 32386 | AO33: 34678 | AP33: 1949 | AQ33: 385.0256815 | AR33: 5062 | AS33: 2054 | AT33: 404.6493302 | AU33: 5076 | AV33: 2129 | AW33: 417.3691433 | AX33: 5101 | AY33: 57.8 | AZ33: 29.03352284 | BA33: 2711 | BB33: 1644.026683 | BC33: 1649 | BD33: 1228 | BE33: 3017.199017 | BF33: 407 | BG33: 20 | BH33: 10000 | BI33: 2 | BJ33: 149.8774704 | BK33: 3858 | BL33: 11.91255481 | BM33: 9782 | BN33: 30.20440931 | BO33: 4017 | BP33: 12.40350769 | BQ33: 2053 | BR33: 6.339158896 | BS33: 3492 | BT33: 10.78243686 | BU33: 3480 | BV33: 10.74538381 | BW33: 5704 | BX33: 17.61254863 | BY33: 309.2337288 | BZ33: 321.9781981 | CA33: 730.2821417 | CB33: 164.5559474 | CC33: 279.897403 | CD33: 53.78326387 | CE33: 457.1978198 | CF33: 25.64924655 | CG33: 278.9355563 | CH33: 1713 | CI33: 390.5116644 | CJ33: 25.43031761 | CK33: 1506.57248 | CL33: 23.28949638 | CM33: 173.71 | CN33: 2.685312834 | CO33: 4788.61 | CP33: 74.02519079 | CQ33: 4779 | CR33: 39.75797302 | CS33: 1266.4 | CT33: 101.5068932 | CU33: 48 | CV33: 1 | CW33: 1 | CX33: 1 | CY33: 2.835444053 | CZ33: 4624 | DA33: 5907 | DB33: 6101 | DC33: 4538 | DD33: 7814 | DE33: 8223 | DF33: 95.03 | DG33: 82.51 | DH33: 1.93 | DI33: Yes | DJ33: 50000 | DK33: 123000 | DL33: 0 | DM33: 11293 | DN33: 0 | DO33: 214781 | DP33: 0 | DQ33: 0 | DR33: 0 | DS33: 9 | DT33: 1397.111111 | DU33: 33.33333333 | DV33: 66.66666667 | DW33: 0 | DX33: 0 | DY33: 0 | DZ33: 33.33333333 | EA33: 66.66666667 | EB33: 168 | EC33: 74.26190476
A34: Dungog Shire Council | B34: 10 | C34: Large Rural | D34: 2250 | E34: 9195 | F34: 6.349757113 | G34: 4 | H34: 4621 | I34: 50.25557368 | J34: 4574 | K34: 49.74442632 | L34: 24.35019032 | M34: 48.18923328 | N34: 27.4605764 | O34: 32.80043502 | P34: 39.73898858 | Q34: 27.4605764 | R34: 3.2 | S34: 1.1 | T34: 97 | U34: 4.7 | V34: 56151.24153 | W34: 2.5 | X34: Agriculture, forestry & fishing | Y34: 974 | Z34: n/a | AA34: n/a | AB34: n/a | AC34: n/a | AD34: -10.07 | AE34: 5.43 | AF34: 40.57 | AG34: 59.43 | AH34: 3.57 | AI34: 14.62 | AJ34: 1.429877253 | AK34: 9.38 | AL34: 14223 | AM34: 19456 | AN34: 19274 | AO34: 21833 | AP34: 2530 | AQ34: 744.9941107 | AR34: 3396 | AS34: 2645 | AT34: 768.0023229 | AU34: 3444 | AV34: 2768 | AW34: 794.033276 | AX34: 3486 | AY34: 68.1 | AZ34: 22.43258749 | BA34: 2110 | BB34: 2159.672467 | BC34: 977 | BD34: 318 | BE34: 866.4850136 | BF34: 367 | BG34: n/a | BH34: n/a | BI34: 0 | BJ34: 250.2089455 | BK34: 2283 | BL34: 11.8449725 | BM34: 696 | BN34: 3.611082287 | BO34: 1724 | BP34: 8.944692332 | BQ34: 1380 | BR34: 7.159904535 | BS34: 1524 | BT34: 7.907025008 | BU34: 10714 | BV34: 55.58783854 | BW34: 953 | BX34: 4.944484798 | BY34: 248.2871126 | BZ34: 187.4932028 | CA34: n/a | CB34: 150.0815661 | CC34: 165.7422512 | CD34: 75.69331158 | CE34: 103.6432844 | CF34: 21.53344209 | CG34: 1165.198477 | CH34: n/a | CI34: 330.464716 | CJ34: 43.89101122 | CK34: 1617.52 | CL34: 28.03832927 | CM34: 480 | CN34: 8.320390504 | CO34: 3671.44 | CP34: 63.64128023 | CQ34: 2448 | CR34: 60.03917728 | CS34: 725.16 | CT34: 78.86460033 | CU34: 71.41 | CV34: 2 | CW34: 7 | CX34: 1 | CY34: 3.160957042 | CZ34: 2852 | DA34: 5686 | DB34: 2803 | DC34: 5662 | DD34: 3431 | DE34: 5726 | DF34: 59.92 | DG34: 184.64 | DH34: 11.91 | DI34: Yes | DJ34: 7000 | DK34: 96000 | DL34: 0 | DM34: 7370 | DN34: 0 | DO34: 211919 | DP34: 3 | DQ34: 1900 | DR34: 0 | DS34: 9 | DT34: 1012 | DU34: 33.33333333 | DV34: 66.66666667 | DW34: 0 | DX34: 0 | DY34: 0 | DZ34: 55.55555556 | EA34: 44.44444444 | EB34: 67 | EC34: 137.238806
A35: Eurobodalla Shire Council | B35: 4 | C35: Regional Town/City | D35: 3428.2 | E35: 37882 | F35: 1.1751509 | G35: 11 | H35: 18701 | I35: 49.36645372 | J35: 19181 | K35: 50.63354628 | L35: 21.40066522 | M35: 40.64199356 | N35: 37.95734122 | O35: 28.05026134 | P35: 33.99239744 | Q35: 37.95734122 | R35: 5.1 | S35: 3.7 | T35: 53 | U35: 7 | V35: 43052.83757 | W35: 2.3 | X35: Retail Trade | Y35: 2761 | Z35: n/a | AA35: n/a | AB35: n/a | AC35: n/a | AD35: 9.14 | AE35: 1.87 | AF35: 72.1 | AG35: 27.9 | AH35: 3.04 | AI35: 2.92 | AJ35: 12.85831904 | AK35: 13.08 | AL35: 97019.89508 | AM35: 97421.8823 | AN35: 101765.2029 | AO35: 125249.857 | AP35: 18533 | AQ35: 795.5442995 | AR35: 23296 | AS35: 19048 | AT35: 816.3545194 | AU35: 23333 | AV35: 20361 | AW35: 865.7623948 | AX35: 23518 | AY35: 66.9 | AZ35: 21.31984012 | BA35: 383 | BB35: 1353.35689 | BC35: 283 | BD35: 3818 | BE35: 3096.512571 | BF35: 1233 | BG35: n/a | BH35: n/a | BI35: 0 | BJ35: 194.8438433 | BK35: 111 | BL35: 0.1074956421 | BM35: 35704 | BN35: 34.57679644 | BO35: 13453 | BP35: 13.02827813 | BQ35: 14263 | BR35: 13.81270579 | BS35: 10022 | BT35: 9.705597521 | BU35: 20704 | BV35: 20.05035832 | BW35: 9003 | BX35: 8.718768158 | BY35: 2.930151523 | BZ35: 355.1290851 | CA35: 856.3169843 | CB35: 376.5112718 | CC35: 264.5583655 | CD35: 86.1886912 | CE35: 237.6590465 | CF35: 48.0967214 | CG35: 546.5392535 | CH35: 1607 | CI35: 214.5165405 | CJ35: 63.4247725 | CK35: 6356.628 | CL35: 29.7901241 | CM35: 5734.96 | CN35: 26.87669785 | CO35: 9246.45 | CP35: 43.33317806 | CQ35: 9107 | CR35: 52.48604372 | CS35: 1008.022 | CT35: 26.60952431 | CU35: 1550 | CV35: 3 | CW35: 15 | CX35: 3 | CY35: 5.485270049 | CZ35: 10373 | DA35: 17777 | DB35: 7082 | DC35: 7082 | DD35: 22172 | DE35: 22172 | DF35: 100 | DG35: 76.22 | DH35: 5.4 | DI35: Yes | DJ35: 94000 | DK35: 189000 | DL35: 0 | DM35: 38237 | DN35: 27183 | DO35: 283669 | DP35: 8 | DQ35: 11550 | DR35: 1 | DS35: 9 | DT35: 4182.555556 | DU35: 33.33333333 | DV35: 66.66666667 | DW35: 0 | DX35: 0 | DY35: 0 | DZ35: 66.66666667 | EA35: 33.33333333 | EB35: 457 | EC35: 82.89277899
A36: Fairfield City Council | B36: 3 | C36: Metropolitan | D36: 101.5 | E36: 204442 | F36: 5.088335227 | G36: 2000.6 | H36: 101029 | I36: 49.41694955 | J36: 103413 | K36: 50.58305045 | L36: 26.73863492 | M36: 54.53086939 | N36: 18.73049569 | O36: 41.698379 | P36: 39.57112531 | Q36: 18.73049569 | R36: 0.7 | S36: 69.9 | T36: 5 | U36: 9 | V36: 46753.61699 | W36: 3.2 | X36: Manufacturing | Y36: 13938 | Z36: n/a | AA36: n/a | AB36: n/a | AC36: n/a | AD36: 7.96 | AE36: 3.05 | AF36: 76.13 | AG36: 23.87 | AH36: 3.07 | AI36: 115.02 | AJ36: 0.2207626679 | AK36: 3.25 | AL36: 149544 | AM36: 150615 | AN36: 150932 | AO36: 195987 | AP36: 40318 | AQ36: 708.1159878 | AR36: 56937 | AS36: 42514 | AT36: 744.4751865 | AU36: 57106 | AV36: 43505 | AW36: 757.9400338 | AX36: 57399 | AY36: 67.6 | AZ36: 22.03174271 | BA36: 231 | BB36: 2062.5 | BC36: 112 | BD36: 30924 | BE36: 7228.611501 | BF36: 4278 | BG36: n/a | BH36: n/a | BI36: 0 | BJ36: 228.2445808 | BK36: 36029 | BL36: 23.87101476 | BM36: 8078 | BN36: 5.352079082 | BO36: 39515 | BP36: 26.18066414 | BQ36: 18838 | BR36: 12.48111732 | BS36: 23168 | BT36: 15.34995892 | BU36: 16520 | BV36: 10.94532637 | BW36: 8784 | BX36: 5.819839398 | BY36: 176.2309115 | BZ36: 193.2822023 | CA36: n/a | CB36: 92.14349302 | CC36: 113.3230941 | CD36: 39.51242895 | CE36: 42.96573111 | CF36: 39.67384393 | CG36: 80.80531398 | CH36: n/a | CI36: 478.3532814 | CJ36: 28.46084384 | CK36: 24885.19 | CL36: 29.12234909 | CM36: 995.1 | CN36: 1.164533989 | CO36: 59570.2 | CP36: 69.71311692 | CQ36: 9017 | CR36: 74.84797768 | CS36: 680.6 | CT36: 3.329061543 | CU36: 959 | CV36: 3 | CW36: 23 | CX36: 5 | CY36: 2.742797468 | CZ36: 26689 | DA36: 28650 | DB36: 28461 | DC36: 29839 | DD36: 32195 | DE36: 29751 | DF36: 108.21 | DG36: 0 | DH36: 2.19 | DI36: Yes | DJ36: 58000 | DK36: 344000 | DL36: 0 | DM36: 14597 | DN36: 0 | DO36: 394511 | DP36: 8 | DQ36: 14950 | DR36: 0 | DS36: 13 | DT36: 15623.76923 | DU36: 15.38461538 | DV36: 84.61538462 | DW36: 0 | DX36: 53.84615385 | DY36: 0 | DZ36: 92.30769231 | EA36: 7.692307692 | EB36: 739 | EC36: 276.64682
A37: Forbes Shire Council | B37: 10 | C37: Large Rural | D37: 4718.1 | E37: 9754 | F37: 0.1026272578 | G37: 2.1 | H37: 4846 | I37: 49.68218167 | J37: 4908 | K37: 50.31781833 | L37: 27.1785934 | M37: 46.51425056 | N37: 26.30715604 | O37: 39.19417675 | P37: 34.49866721 | Q37: 26.30715604 | R37: 9.6 | S37: 1.5 | T37: 44 | U37: 5.9 | V37: 46648.95187 | W37: 2.4 | X37: Agriculture, forestry & fishing | Y37: 1121 | Z37: n/a | AA37: n/a | AB37: n/a | AC37: n/a | AD37: 5.77 | AE37: 6.51 | AF37: 68.44 | AG37: 31.56 | AH37: 7.03 | AI37: 4.02 | AJ37: 4.266537464 | AK37: 16.52 | AL37: 33819 | AM37: 35047 | AN37: 33062 | AO37: 38048 | AP37: 2342 | AQ37: 713.5892748 | AR37: 3282 | AS37: 2361 | AT37: 716.1055505 | AU37: 3297 | AV37: 2430 | AW37: 736.5868445 | AX37: 3299 | AY37: 60.3 | AZ37: 25.00757805 | BA37: 3239 | BB37: 2268.207283 | BC37: 1428 | BD37: 1144 | BE37: 2635.9447 | BF37: 434 | BG37: n/a | BH37: n/a | BI37: 0 | BJ37: 107.4928858 | BK37: 3076 | BL37: 9.303732382 | BM37: 5953 | BN37: 18.0055653 | BO37: 1739 | BP37: 5.259814893 | BQ37: 950 | BR37: 2.87338939 | BS37: 3023 | BT37: 9.1434275 | BU37: 8353 | BV37: 25.26465429 | BW37: 9968 | BX37: 30.14941625 | BY37: 315.3578019 | BZ37: 178.2858315 | CA37: 530.7566127 | CB37: 97.39594013 | CC37: 309.9241337 | CD37: 79.55710478 | CE37: 1021.939717 | CF37: 35.6776707 | CG37: 856.3666188 | CH37: 1364 | CI37: 392.2400727 | CJ37: 50.85464673 | CK37: 2451.14 | CL37: 17.42891598 | CM37: 2500 | CN37: 17.77633671 | CO37: 9112.5 | CP37: 64.79474731 | CQ37: 3291 | CR37: 28.92008639 | CS37: 1869.17 | CT37: 191.6311257 | CU37: 48 | CV37: 1 | CW37: 1 | CX37: 1 | CY37: 3.707094525 | CZ37: 5178 | DA37: 4479 | DB37: 7159 | DC37: 3465 | DD37: 6757 | DE37: 4391 | DF37: 153.88 | DG37: 51.04 | DH37: 1.61 | DI37: Yes | DJ37: 38000 | DK37: 116000 | DL37: 0 | DM37: 22640 | DN37: 0 | DO37: 234520 | DP37: 1 | DQ37: 3734 | DR37: 0 | DS37: 9 | DT37: 1084.333333 | DU37: 11.11111111 | DV37: 88.88888889 | DW37: 0 | DX37: 0 | DY37: 0 | DZ37: 44.44444444 | EA37: 55.55555556 | EB37: 114 | EC37: 85.56140351
A38: Gilgandra Shire Council | B38: 9 | C38: Rural | D38: 4832 | E38: 4368 | F38: -6.446776612 | G38: 0.9 | H38: 2102 | I38: 48.12271062 | J38: 2266 | K38: 51.87728938 | L38: 24.22161172 | M38: 44.82600733 | N38: 30.95238095 | O38: 32.53205128 | P38: 36.51556777 | Q38: 30.95238095 | R38: 12.2 | S38: 1.6 | T38: 16 | U38: 4.7 | V38: 44444.44444 | W38: 2.4 | X38: Agriculture, forestry & fishing | Y38: 588 | Z38: n/a | AA38: n/a | AB38: n/a | AC38: n/a | AD38: 9.64 | AE38: 3.49 | AF38: 70.78 | AG38: 29.22 | AH38: 5.76 | AI38: 11.91 | AJ38: 2.018676188 | AK38: 8.51 | AL38: 23829 | AM38: 25550 | AN38: 26321 | AO38: 29662 | AP38: 661 | AQ38: 500.7575758 | AR38: 1320 | AS38: 722 | AT38: 540.4191617 | AU38: 1336 | AV38: 796 | AW38: 593.5868755 | AX38: 1341 | AY38: 56.2 | AZ38: 29.75391499 | BA38: 3162 | BB38: 3884.520885 | BC38: 814 | BD38: 214 | BE38: 968.3257919 | BF38: 221 | BG38: n/a | BH38: n/a | BI38: 0 | BJ38: 100.3350745 | BK38: 8939 | BL38: 33.96147563 | BM38: 2527 | BN38: 9.600699062 | BO38: 714 | BP38: 2.712662893 | BQ38: 7318 | BR38: 27.80289503 | BS38: 808 | BT38: 3.069792181 | BU38: 2499 | BV38: 9.494320125 | BW38: 3516 | BX38: 13.35815509 | BY38: 2046.474359 | BZ38: 163.4615385 | CA38: 367.2161172 | CB38: 1675.3663 | CC38: 184.981685 | CD38: 211.3095238 | CE38: 804.9450549 | CF38: 59.29487179 | CG38: 572.1153846 | CH38: 1487 | CI38: 279.6420582 | CJ38: 55.23310375 | CK38: 500.9392 | CL38: 19.21892483 | CM38: 1082 | CN38: 41.5117776 | CO38: 1023.55 | CP38: 39.26929757 | CQ38: 1542 | CR38: 45.93267882 | CS38: 1361.41 | CT38: 311.6781136 | CU38: 5 | CV38: 1 | CW38: 3 | CX38: 1 | CY38: 6.14514652 | CZ38: 3743 | DA38: 4230 | DB38: 4771 | DC38: 5111 | DD38: 4025 | DE38: 4553 | DF38: 88.4 | DG38: 131.09 | DH38: 1.39 | DI38: Yes | DJ38: 22000 | DK38: 122000 | DL38: 0 | DM38: 21700 | DN38: 0 | DO38: 225000 | DP38: 0 | DQ38: 0 | DR38: 0 | DS38: 9 | DT38: 493.3333333 | DU38: 22.22222222 | DV38: 77.77777778 | DW38: 0 | DX38: 0 | DY38: 0 | DZ38: 66.66666667 | EA38: 33.33333333 | EB38: 177 | EC38: 24.6779661
A39: Glen Innes Severn Council | B39: 10 | C39: Large Rural | D39: 5480.4 | E39: 8999 | F39: -2.787080048 | G39: 1.6 | H39: 4459 | I39: 49.54994999 | J39: 4540 | K39: 50.45005001 | L39: 23.44704967 | M39: 45.70507834 | N39: 30.84787199 | O39: 33.19257695 | P39: 35.95955106 | Q39: 30.84787199 | R39: 5.6 | S39: 1.6 | T39: 20 | U39: 11.7 | V39: 40809.32785 | W39: 2.3 | X39: Agriculture, forestry & fishing | Y39: 1056 | Z39: n/a | AA39: n/a | AB39: n/a | AC39: n/a | AD39: 6.76 | AE39: 3.76 | AF39: 58 | AG39: 42 | AH39: 5.91 | AI39: 3.41 | AJ39: 8.589200838 | AK39: 8.75 | AL39: 24074 | AM39: 24543 | AN39: 25178 | AO39: 26686.4 | AP39: 2157 | AQ39: 584.0779854 | AR39: 3693 | AS39: 2451 | AT39: 657.9865772 | AU39: 3725 | AV39: 2694 | AW39: 721.4783074 | AX39: 3734 | AY39: 59.3 | AZ39: 32.75307981 | BA39: 2653 | BB39: 2585.769981 | BC39: 1026 | BD39: 558 | BE39: 1430.769231 | BF39: 390 | BG39: 0.372 | BH39: 372 | BI39: 1 | BJ39: 129.8394213 | BK39: 2417 | BL39: 9.599650489 | BM39: 4268 | BN39: 16.9513067 | BO39: 1658 | BP39: 6.585113988 | BQ39: 5180 | BR39: 20.57351656 | BS39: 2373 | BT39: 9.424894749 | BU39: 5498 | BV39: 21.83652395 | BW39: 3784 | BX39: 15.02899357 | BY39: 268.5853984 | BZ39: 184.2426936 | CA39: 353.372597 | CB39: 575.6195133 | CC39: 263.6959662 | CD39: 120.9023225 | CE39: 420.4911657 | CF39: 73.23035893 | CG39: 610.956773 | CH39: 1122 | CI39: 287.6272094 | CJ39: 41.47457171 | CK39: 1367.34 | CL39: 13.48549314 | CM39: 1595 | CN39: 15.73080694 | CO39: 7177 | CP39: 70.78369993 | CQ39: 1149 | CR39: 82.43119266 | CS39: 1167.39 | CT39: 129.7244138 | CU39: 118 | CV39: 2 | CW39: 5 | CX39: 4 | CY39: 8.129569952 | CZ39: 1924.875 | DA39: 1982.119609 | DB39: 2274 | DC39: 2047 | DD39: 3585 | DE39: 3584 | DF39: 100.03 | DG39: 144.59 | DH39: 12.08 | DI39: Yes | DJ39: 16000 | DK39: 135000 | DL39: 0 | DM39: 10368 | DN39: 0 | DO39: 210287 | DP39: 0 | DQ39: 0 | DR39: 0 | DS39: 7 | DT39: 1280.857143 | DU39: 14.28571429 | DV39: 85.71428571 | DW39: 0 | DX39: 0 | DY39: 14.28571429 | DZ39: 57.14285714 | EA39: 28.57142857 | EB39: 129.9 | EC39: 69.27636644
A40: Goulburn Mulwaree Council | B40: 4 | C40: Regional Town/City | D40: 3220 | E40: 29550 | F40: 4.236481005 | G40: 9.1 | H40: 14943 | I40: 50.56852792 | J40: 14607 | K40: 49.43147208 | L40: 24.78849408 | M40: 49.88494078 | N40: 25.32656514 | O40: 36.17258883 | P40: 38.50084602 | Q40: 25.32656514 | R40: 2.8 | S40: 3.3 | T40: 61 | U40: 4.9 | V40: 51719.85081 | W40: 2.4 | X40: Health care/social assistance | Y40: 2169 | Z40: n/a | AA40: n/a | AB40: n/a | AC40: n/a | AD40: 6.2 | AE40: 4.94 | AF40: 75.98 | AG40: 24.02 | AH40: 2.99 | AI40: 5.38 | AJ40: 7.50759727 | AK40: 26.48 | AL40: 56627 | AM40: 57923 | AN40: 57262 | AO40: 66154 | AP40: 10596 | AQ40: 880.798005 | AR40: 12030 | AS40: 11023 | AT40: 886.8061142 | AU40: 12430 | AV40: 11149 | AW40: 886.5298982 | AX40: 12576 | AY40: 66.5 | AZ40: 19.0442112 | BA40: 2339 | BB40: 1625.434329 | BC40: 1439 | BD40: 4247 | BE40: 4955.659277 | BF40: 857 | BG40: n/a | BH40: n/a | BI40: 0 | BJ40: 136.6608039 | BK40: 11356 | BL40: 20.10445251 | BM40: 16375 | BN40: 28.98999734 | BO40: 6174 | BP40: 10.93033549 | BQ40: 2445 | BR40: 4.32858281 | BS40: 6207 | BT40: 10.98875808 | BU40: 10238 | BV40: 18.12516597 | BW40: 3690 | BX40: 6.532707799 | BY40: 384.2978003 | BZ40: 208.9340102 | CA40: 494.4500846 | CB40: 82.74111675 | CC40: 210.0507614 | CD40: 59.69543147 | CE40: 124.8730964 | CF40: 41.28595601 | CG40: 346.463621 | CH40: 1385 | CI40: 237.7544529 | CJ40: 30.54792203 | CK40: 4928.682 | CL40: 30.97140744 | CM40: 1864.61 | CN40: 11.71704647 | CO40: 9120.37 | CP40: 57.31160893 | CQ40: 9869 | CR40: 45.03787035 | CS40: 1176.72 | CT40: 39.8213198 | CU40: 1232 | CV40: 1 | CW40: 5 | CX40: 1 | CY40: 6.151979695 | CZ40: 4279 | DA40: 5102 | DB40: 5106 | DC40: 5725 | DD40: 14014 | DE40: 14294 | DF40: 98.04 | DG40: 59.48 | DH40: 3.08 | DI40: Yes | DJ40: 24000 | DK40: 205000 | DL40: 0 | DM40: 4837 | DN40: 359 | DO40: 287199 | DP40: 2 | DQ40: 21022 | DR40: 2 | DS40: 9 | DT40: 3264 | DU40: 22.22222222 | DV40: 77.77777778 | DW40: 11.11111111 | DX40: 0 | DY40: 22.22222222 | DZ40: 33.33333333 | EA40: 44.44444444 | EB40: 257 | EC40: 114.9805447
A41: Greater Hume Shire Council | B41: 11 | C41: Large Rural | D41: 5749.3 | E41: 10378 | F41: -0.2115384615 | G41: 1.8 | H41: 5188 | I41: 49.99036423 | J41: 5190 | K41: 50.00963577 | L41: 28.02081326 | M41: 45.0953941 | N41: 26.88379264 | O41: 36.74118327 | P41: 36.37502409 | Q41: 26.88379264 | R41: 2.1 | S41: 1.7 | T41: 96 | U41: 4.1 | V41: 45317.22054 | W41: 2.5 | X41: Agriculture, forestry & fishing | Y41: 1324 | Z41: n/a | AA41: n/a | AB41: n/a | AC41: n/a | AD41: 5.17 | AE41: 6.09 | AF41: 52.84 | AG41: 47.16 | AH41: 6.87 | AI41: 9.26 | AJ41: 3.282836803 | AK41: 9.53 | AL41: 31584 | AM41: 27398 | AN41: 28145 | AO41: 34735 | AP41: 1813 | AQ41: 509.2696629 | AR41: 3560 | AS41: 1887 | AT41: 525.4803676 | AU41: 3591 | AV41: 2125 | AW41: 586.6924351 | AX41: 3622 | AY41: 67.5 | AZ41: 25.45554942 | BA41: 4470 | BB41: 1913.527397 | BC41: 2336 | BD41: 142 | BE41: 287.4493927 | BF41: 494 | BG41: n/a | BH41: n/a | BI41: 0 | BJ41: 228.2888407 | BK41: 4296 | BL41: 15.2638124 | BM41: 4710 | BN41: 16.73476639 | BO41: 1722 | BP41: 6.118315864 | BQ41: 3316 | BR41: 11.78184402 | BS41: 2562 | BT41: 9.102860188 | BU41: 7279 | BV41: 25.86249778 | BW41: 4260 | BX41: 15.13590336 | BY41: 413.952592 | BZ41: 165.9279245 | CA41: 318.7512045 | CB41: 319.5220659 | CC41: 246.8683754 | CD41: 135.0934669 | CE41: 410.4837156 | CF41: 50.78049721 | CG41: 701.3875506 | CH41: 1297 | CI41: 175.0414136 | CJ41: 29.1160995 | CK41: 1017.55 | CL41: 17.1913647 | CM41: 0 | CN41: 0 | CO41: 4901.41 | CP41: 82.8086353 | CQ41: n/a | CR41: n/a | CS41: 2071.71 | CT41: 199.6251686 | CU41: 117.5 | CV41: 5 | CW41: 15 | CX41: 3 | CY41: 3.256889574 | CZ41: 5003 | DA41: 5217 | DB41: 4123 | DC41: 4181 | DD41: 4582 | DE41: 4341 | DF41: 100.6 | DG41: 1683.2 | DH41: 0.7 | DI41: Yes | DJ41: 27000 | DK41: 103000 | DL41: 0 | DM41: 5785 | DN41: 0 | DO41: 202000 | DP41: 0 | DQ41: 0 | DR41: 0 | DS41: 9 | DT41: 1139.777778 | DU41: 55.55555556 | DV41: 44.44444444 | DW41: 0 | DX41: 0 | DY41: 0 | DZ41: 33.33333333 | EA41: 66.66666667 | EB41: 107 | EC41: 96.99065421
A42: Griffith City Council | B42: 4 | C42: Regional Town/City | D42: 1639.9 | E42: 25986 | F42: 1.101038789 | G42: 15.7 | H42: 13330 | I42: 51.29685215 | J42: 12656 | K42: 48.70314785 | L42: 28.51535442 | M42: 51.34687909 | N42: 20.13776649 | O42: 42.36511968 | P42: 37.49711383 | Q42: 20.13776649 | R42: 4.1 | S42: 20.6 | T42: 73 | U42: 3.3 | V42: 44763.82278 | W42: 2.7 | X42: Manufacturing | Y42: 2736 | Z42: n/a | AA42: n/a | AB42: n/a | AC42: n/a | AD42: 10.81 | AE42: 3.19 | AF42: 71.65 | AG42: 28.35 | AH42: 6.88 | AI42: 6.12 | AJ42: 5.474935232 | AK42: 6.47 | AL42: 45946 | AM42: 48384 | AN42: 49228 | AO42: 65071 | AP42: 7287 | AQ42: 871.7549946 | AR42: 8359 | AS42: 7485 | AT42: 890.0118906 | AU42: 8410 | AV42: 7718 | AW42: 917.389754 | AX42: 8413 | AY42: 63.1 | AZ42: 17.17579936 | BA42: 4890 | BB42: 3410.041841 | BC42: 1434 | BD42: 2498 | BE42: 2381.315539 | BF42: 1049 | BG42: n/a | BH42: n/a | BI42: 0 | BJ42: 89.0910797 | BK42: 7980 | BL42: 16.21028683 | BM42: 14176 | BN42: 28.79661981 | BO42: 4192 | BP42: 8.515478996 | BQ42: 4537 | BR42: 9.216299667 | BS42: 8472 | BT42: 17.20971805 | BU42: 6809 | BV42: 13.83155928 | BW42: 3062 | BX42: 6.220037377 | BY42: 307.0884322 | BZ42: 161.3176326 | CA42: 481.9518202 | CB42: 174.5940122 | CC42: 326.021704 | CD42: 63.57269299 | CE42: 117.8326791 | CF42: 35.13430309 | CG42: 262.0257061 | CH42: 1551 | CI42: 277.7843813 | CJ42: 14.6556338 | CK42: 1467 | CL42: 12.11195509 | CM42: 1755 | CN42: 14.48976222 | CO42: 8890 | CP42: 73.39828269 | CQ42: 3474 | CR42: 61.57079646 | CS42: 1288.29 | CT42: 49.57631032 | CU42: 435.87 | CV42: 1 | CW42: 6 | CX42: 1 | CY42: 5.525783114 | CZ42: 7716 | DA42: 6711 | DB42: 7149 | DC42: 7107 | DD42: 7151 | DE42: 7145 | DF42: 100 | DG42: 726 | DH42: 16.1 | DI42: Yes | DJ42: 106000 | DK42: 260000 | DL42: 0 | DM42: 18625 | DN42: 10238 | DO42: 269593 | DP42: 6 | DQ42: 25486 | DR42: 0 | DS42: 12 | DT42: 2150.916667 | DU42: 33.33333333 | DV42: 66.66666667 | DW42: 0 | DX42: 25 | DY42: 0 | DZ42: 58.33333333 | EA42: 41.66666667 | EB42: 282 | EC42: 92.14893617
A43: Gunnedah Shire Council | B43: 11 | C43: Large Rural | D43: 4987.4 | E43: 12805 | F43: 5.286959382 | G43: 2.6 | H43: 6406 | I43: 50.02733307 | J43: 6399 | K43: 49.97266693 | L43: 27.49707146 | M43: 48.9418196 | N43: 23.56110894 | O43: 40.61694651 | P43: 35.82194455 | Q43: 23.56110894 | R43: 11.3 | S43: 1.4 | T43: 43 | U43: 8.2 | V43: 54669.70387 | W43: 2.5 | X43: Agriculture, forestry & fishing | Y43: 1549 | Z43: n/a | AA43: n/a | AB43: n/a | AC43: n/a | AD43: 15.92 | AE43: 6.29 | AF43: 59.1 | AG43: 40.9 | AH43: 4.57 | AI43: 16.61 | AJ43: 1.967812214 | AK43: 23.25 | AL43: 30825 | AM43: 34413 | AN43: 36388 | AO43: 51551 | AP43: 2947 | AQ43: 653.7267081 | AR43: 4508 | AS43: 3223 | AT43: 705.0973529 | AU43: 4571 | AV43: 3557 | AW43: 774.270788 | AX43: 4594 | AY43: 60.7 | AZ43: 20.89682194 | BA43: 4494 | BB43: 3998.220641 | BC43: 1124 | BD43: 1936 | BE43: 4199.566161 | BF43: 461 | BG43: 1468 | BH43: 293600 | BI43: 5 | BJ43: 138.9841423 | BK43: 1862 | BL43: 5.117071562 | BM43: 5592 | BN43: 15.36770364 | BO43: 3701 | BP43: 10.17093547 | BQ43: 5205 | BR43: 14.30416621 | BS43: 4424 | BT43: 12.15785424 | BU43: 12883 | BV43: 35.40452897 | BW43: 2721 | BX43: 7.477739914 | BY43: 145.4119485 | BZ43: 289.0277235 | CA43: 382.3506443 | CB43: 406.481843 | CC43: 345.490043 | CD43: 54.35376806 | CE43: 212.4951191 | CF43: 40.45294807 | CG43: 1006.091371 | CH43: 1154 | CI43: 435.7858076 | CJ43: 49.15690314 | CK43: 1500.47 | CL43: 25.86713971 | CM43: 534 | CN43: 9.205817249 | CO43: 3766.21 | CP43: 64.92704304 | CQ43: 5053 | CR43: 44.73367604 | CS43: 1469.96 | CT43: 114.7957829 | CU43: 518 | CV43: 1 | CW43: 15 | CX43: 3 | CY43: 2.627411168 | CZ43: 5058.6 | DA43: 5310 | DB43: 4565 | DC43: 4616 | DD43: 4101 | DE43: 3826 | DF43: 107.19 | DG43: 94.75 | DH43: 2.53 | DI43: Yes | DJ43: 45000 | DK43: 107000 | DL43: 0 | DM43: 14831 | DN43: 104 | DO43: 230694 | DP43: 0 | DQ43: 0 | DR43: 0 | DS43: 9 | DT43: 1425.111111 | DU43: 44.44444444 | DV43: 55.55555556 | DW43: 11.11111111 | DX43: 11.11111111 | DY43: 0 | DZ43: 44.44444444 | EA43: 55.55555556 | EB43: 170 | EC43: 75.32352941
A44: Gwydir Shire Council | B44: 10 | C44: Large Rural | D44: 9262.4 | E44: 5068 | F44: -5.799256506 | G44: 0.5 | H44: 2604 | I44: 51.38121547 | J44: 2464 | K44: 48.61878453 | L44: 22.75059195 | M44: 44.39621152 | N44: 32.85319653 | O44: 30.38674033 | P44: 36.76006314 | Q44: 32.85319653 | R44: 3.8 | S44: 1 | T44: 38 | U44: 6.9 | V44: 43506.92156 | W44: 2.3 | X44: Agriculture, forestry & fishing | Y44: 702 | Z44: n/a | AA44: n/a | AB44: n/a | AC44: n/a | AD44: 2.57 | AE44: 2.11 | AF44: 55.62 | AG44: 44.38 | AH44: 5.32 | AI44: 4.21 | AJ44: 5.549313132 | AK44: 4.48 | AL44: 30867 | AM44: 32701 | AN44: 35659 | AO44: 28609 | AP44: 723 | AQ44: 428.5714286 | AR44: 1687 | AS44: 699 | AT44: 412.87 | AU44: 1693 | AV44: 948 | AW44: 552.4475524 | AX44: 1716 | AY44: 57.4 | AZ44: 37.76223776 | BA44: 5213 | BB44: 4633.777778 | BC44: 1125 | BD44: 142 | BE44: 645.4545455 | BF44: 220 | BG44: n/a | BH44: n/a | BI44: 0 | BJ44: 205.0623402 | BK44: 6760 | BL44: 18.95734597 | BM44: 3297 | BN44: 9.245912673 | BO44: 2189 | BP44: 6.138702712 | BQ44: 4747 | BR44: 13.3122073 | BS44: 7434 | BT44: 20.84747189 | BU44: 5609 | BV44: 15.72954934 | BW44: 5623 | BX44: 15.76881012 | BY44: 1333.859511 | BZ44: 431.925809 | CA44: 415.7458564 | CB44: 936.6614049 | CC44: 1466.850829 | CD44: 234.8066298 | CE44: 1109.510655 | CF44: 46.17205998 | CG44: 1106.748224 | CH44: 1257 | CI44: 312.3543124 | CJ44: 72.7298347 | CK44: 1578.1808 | CL44: 30.67835644 | CM44: 175 | CN44: 3.401836074 | CO44: 3391.1 | CP44: 65.91980749 | CQ44: 2403 | CR44: 33.91089109 | CS44: 2018.66 | CT44: 398.3149171 | CU44: 131 | CV44: 2 | CW44: 13 | CX44: 2 | CY44: 3.720994475 | CZ44: 9252 | DA44: 8880 | DB44: 6600 | DC44: 7084 | DD44: 2947 | DE44: 2947 | DF44: 100 | DG44: 102.48 | DH44: 3.05 | DI44: Yes | DJ44: 12000 | DK44: 130000 | DL44: 0 | DM44: 16649 | DN44: 828 | DO44: 323120 | DP44: 0 | DQ44: 0 | DR44: 0 | DS44: 9 | DT44: 564.4444444 | DU44: 44.44444444 | DV44: 55.55555556 | DW44: 0 | DX44: 0 | DY44: 0 | DZ44: 22.22222222 | EA44: 77.77777778 | EB44: 156 | EC44: 32.48717949
A45: Hawkesbury City Council | B45: 6 | C45: Metropolitan Fringe | D45: 2774.6 | E45: 66134 | F45: 4.062814703 | G45: 23.6 | H45: 33100 | I45: 50.04989869 | J45: 33034 | K45: 49.95010131 | L45: 27.62572958 | M45: 53.86336831 | N45: 18.51090211 | O45: 41.75461941 | P45: 39.73447848 | Q45: 18.51090211 | R45: 2.6 | S45: 5.3 | T45: 118 | U45: 6.2 | V45: 54660.52934 | W45: 2.8 | X45: Construction | Y45: 6372 | Z45: n/a | AA45: n/a | AB45: n/a | AC45: n/a | AD45: -10.16 | AE45: 3.64 | AF45: 70.51 | AG45: 29.49 | AH45: 5.44 | AI45: 9.61 | AJ45: 1.619397241 | AK45: 8.4 | AL45: 68352 | AM45: 68827 | AN45: 79814 | AO45: 86126 | AP45: 23299 | AQ45: 1018.446475 | AR45: 22877 | AS45: 23968 | AT45: 1034.798377 | AU45: 23162 | AV45: 24796 | AW45: 1061.0184 | AX45: 23370 | AY45: 75.4 | AZ45: 13.87676508 | BA45: 1510 | BB45: 2594.501718 | BC45: 582 | BD45: 2910 | BE45: 1928.429423 | BF45: 1509 | BG45: n/a | BH45: n/a | BI45: 0 | BJ45: 293.0069699 | BK45: 10171 | BL45: 12.74337835 | BM45: 14040 | BN45: 17.59089884 | BO45: 15169 | BP45: 19.00543764 | BQ45: 3322 | BR45: 4.162177062 | BS45: 12341 | BT45: 15.46219961 | BU45: 13128 | BV45: 16.44824216 | BW45: 11643 | BX45: 14.58766632 | BY45: 153.7938126 | BZ45: 229.3676475 | CA45: 131.0067439 | CB45: 50.23134847 | CC45: 186.6059818 | CD45: 81.28950313 | CE45: 176.0516527 | CF45: 36.87966855 | CG45: 198.5060634 | CH45: n/a | CI45: 461.5318785 | CJ45: 33.90561375 | CK45: 6738.55 | CL45: 19.82135178 | CM45: 4280.61 | CN45: 12.59135521 | CO45: 22977.27 | CP45: 67.58732243 | CQ45: 16331 | CR45: 64.46151503 | CS45: 1041.26 | CT45: 15.74470015 | CU45: 289.43 | CV45: 2 | CW45: 25 | CX45: 2 | CY45: 3.744216288 | CZ45: 13708 | DA45: 25082 | DB45: 11042 | DC45: 12801 | DD45: 9968 | DE45: 12353 | DF45: 80.69 | DG45: 100.26 | DH45: 2.19 | DI45: Yes | DJ45: 43000 | DK45: 261000 | DL45: 0 | DM45: 15590 | DN45: 15432 | DO45: 283823 | DP45: 0 | DQ45: 3878 | DR45: 0 | DS45: 12 | DT45: 5460.583333 | DU45: 33.33333333 | DV45: 66.66666667 | DW45: 0 | DX45: 0 | DY45: 16.66666667 | DZ45: 41.66666667 | EA45: 41.66666667 | EB45: 272 | EC45: 243.1397059
A46: Hay Shire Council | B46: 9 | C46: Rural | D46: 11326 | E46: 2999 | F46: -11.00890208 | G46: 0.3 | H46: 1560 | I46: 52.01733911 | J46: 1439 | K46: 47.98266089 | L46: 25.50850283 | M46: 47.68256085 | N46: 26.80893631 | O46: 35.77859286 | P46: 37.41247082 | Q46: 26.80893631 | R46: 5.8 | S46: 2.9 | T46: 21 | U46: 6.2 | V46: 43647.7007 | W46: 2.4 | X46: Agriculture, forestry & fishing | Y46: 382 | Z46: n/a | AA46: n/a | AB46: n/a | AC46: n/a | AD46: -5.13 | AE46: 3.54 | AF46: 48.65 | AG46: 51.35 | AH46: 14.41 | AI46: 9.04 | AJ46: 2.642756017 | AK46: 10.58 | AL46: 10592 | AM46: 10655 | AN46: 11533 | AO46: 10978 | AP46: 704 | AQ46: 534.1426404 | AR46: 1318 | AS46: 744 | AT46: 563.6363636 | AU46: 1320 | AV46: 721 | AW46: 547.4563402 | AX46: 1317 | AY46: 58.5 | AZ46: 20.5770691 | BA46: 1086 | BB46: 2896 | BC46: 375 | BD46: 303 | BE46: 1449.760766 | BF46: 209 | BG46: n/a | BH46: n/a | BI46: 0 | BJ46: 80.54917773 | BK46: 1559 | BL46: 13.51773173 | BM46: 2668 | BN46: 23.13361658 | BO46: 763 | BP46: 6.615798144 | BQ46: 1581 | BR46: 13.70848868 | BS46: 1687 | BT46: 14.62759039 | BU46: 2487 | BV46: 21.56420706 | BW46: 788 | BX46: 6.832567415 | BY46: 519.8399466 | BZ46: 254.4181394 | CA46: 706.2354118 | CB46: 527.1757252 | CC46: 562.5208403 | CD46: 183.3944648 | CE46: 262.7542514 | CF46: 91.69723241 | CG46: 829.2764255 | CH46: 1442 | CI46: 217.919514 | CJ46: 12.65347031 | CK46: 667 | CL46: 13.28685259 | CM46: 0 | CN46: 0 | CO46: 4353 | CP46: 86.71314741 | CQ46: 1317 | CR46: 37.10601719 | CS46: 942.26 | CT46: 314.1913971 | CU46: 128.78 | CV46: 1 | CW46: 4 | CX46: 1 | CY46: 8.734911637 | CZ46: 1722 | DA46: 2405 | DB46: 2130 | DC46: 2275 | DD46: 2070 | DE46: 2205 | DF46: 93.88 | DG46: 95.69 | DH46: 8.42 | DI46: Yes | DJ46: 61000 | DK46: 90000 | DL46: 0 | DM46: 57086 | DN46: 0 | DO46: 185212 | DP46: 0 | DQ46: 0 | DR46: 0 | DS46: 8 | DT46: 373.625 | DU46: 12.5 | DV46: 87.5 | DW46: 0 | DX46: 0 | DY46: 0 | DZ46: 50 | EA46: 50 | EB46: 54 | EC46: 55.53703704
A47: The Hills Shire Council | B47: 7 | C47: Metropolitan Fringe | D47: 400.5 | E47: 192230 | F47: 8.920203754 | G47: 468.7 | H47: 95219 | I47: 49.5 | J47: 97011 | K47: 50.5 | L47: 27.81407689 | M47: 52.81225615 | N47: 19.37366696 | O47: 39.7 | P47: 40.9 | Q47: 19.4 | R47: 0.4 | S47: 28.5 | T47: 149 | U47: 4.1 | V47: 69934.11166 | W47: 3.1 | X47: Retail Trade | Y47: 20365 | Z47: n/a | AA47: n/a | AB47: n/a | AC47: n/a | AD47: 16.01 | AE47: 10.47 | AF47: 47.33 | AG47: 52.67 | AH47: 2.46 | AI47: 0 | AJ47: 0 | AK47: 34.82 | AL47: 130106 | AM47: 130606 | AN47: 132743 | AO47: 283465 | AP47: 58601 | AQ47: 1081.438695 | AR47: 54188 | AS47: 60858 | AT47: 1006.549568 | AU47: 60462 | AV47: 62051 | AW47: 1000.435315 | AX47: 62024 | AY47: 87.4 | AZ47: 12.74506643 | BA47: 564 | BB47: 1536.784741 | BC47: 367 | BD47: 7360 | BE47: 1946.060286 | BF47: 3782 | BG47: n/a | BH47: n/a | BI47: 0 | BJ47: 489.5257141 | BK47: 7507 | BL47: 5.655288791 | BM47: 5000 | BN47: 3.766676962 | BO47: 31935 | BP47: 24.05776576 | BQ47: 32175 | BR47: 24.23856625 | BS47: 25700 | BT47: 19.36071959 | BU47: 24792 | BV47: 18.67669105 | BW47: 5634 | BX47: 4.244291601 | BY47: 39.05217708 | BZ47: 166.1291162 | CA47: n/a | CB47: 167.3776206 | CC47: 133.6940124 | CD47: 26.01050825 | CE47: 29.30864069 | CF47: 34.44311502 | CG47: 128.9705041 | CH47: 1531 | CI47: 387.5918999 | CJ47: 41.60950381 | CK47: 15696 | CL47: 18.82736781 | CM47: 18456.97 | CN47: 22.13915411 | CO47: 49215.04 | CP47: 59.03349007 | CQ47: 22154 | CR47: 56.82827968 | CS47: 1021.55 | CT47: 5.31420694 | CU47: 1325.63 | CV47: 1 | CW47: 34 | CX47: 5 | CY47: 6.588264059 | CZ47: 25486 | DA47: 13177 | DB47: 33428.713 | DC47: 14440.243 | DD47: 13906 | DE47: 10165 | DF47: 136.8 | DG47: 263.06 | DH47: 0 | DI47: Yes | DJ47: 118000 | DK47: 342000 | DL47: 0 | DM47: 0 | DN47: 0 | DO47: 391836 | DP47: 0 | DQ47: 0 | DR47: 0 | DS47: 12 | DT47: 15641.91667 | DU47: 25 | DV47: 75 | DW47: 0 | DX47: 0 | DY47: 8.333333333 | DZ47: 75 | EA47: 16.66666667 | EB47: 532 | EC47: 361.3345865
A48: The Council of the Shire of Hornsby | B48: 3 | C48: Metropolitan | D48: 462.1 | E48: 170563 | F48: 5.145608325 | G48: 364.9 | H48: 83624 | I48: 49.02821831 | J48: 86939 | K48: 50.97178169 | L48: 25.77464046 | M48: 53.52215897 | N48: 20.70320058 | O48: 38.1823725 | P48: 41.11442693 | Q48: 20.70320058 | R48: 0.4 | S48: 28.4 | T48: 143 | U48: 5.4 | V48: 69958.41587 | W48: 2.9 | X48: Health care/social assistance | Y48: 14566 | Z48: n/a | AA48: n/a | AB48: n/a | AC48: n/a | AD48: 10.73 | AE48: 4.02 | AF48: 66.82 | AG48: 33.18 | AH48: 1.83 | AI48: 14.95 | AJ48: 1.445749584 | AK48: 13.25 | AL48: 122544 | AM48: 120538 | AN48: 121830.3406 | AO48: 191475 | AP48: 61650 | AQ48: 1131.940364 | AR48: 54464 | AS48: 63250 | AT48: 1154.913633 | AU48: 54766 | AV48: 64003 | AW48: 1151.298748 | AX48: 55592 | AY48: 85 | AZ48: 13.64764714 | BA48: 552 | BB48: 1786.407767 | BC48: 309 | BD48: 7997 | BE48: 3088.837389 | BF48: 2589 | BG48: n/a | BH48: n/a | BI48: 0 | BJ48: 406.0299505 | BK48: 17668 | BL48: 14.50217516 | BM48: 4126 | BN48: 3.386686366 | BO48: 35998 | BP48: 29.54773044 | BQ48: 19878 | BR48: 16.31617828 | BS48: 27457 | BT48: 22.53714192 | BU48: 9354 | BV48: 7.677911844 | BW48: 7349 | BX48: 6.032175983 | BY48: 103.5863581 | BZ48: 211.0539801 | CA48: n/a | CB48: 116.5434473 | CC48: 160.9786413 | CD48: 24.19047507 | CE48: 43.08671869 | CF48: 44.47623459 | CG48: 54.84190592 | CH48: n/a | CI48: 422.0031659 | CJ48: 46.94973406 | CK48: 15497.47 | CL48: 21.73131503 | CM48: 17501.74 | CN48: 24.54180105 | CO48: 38314.8 | CP48: 53.72689794 | CQ48: 14395 | CR48: 68.36541842 | CS48: 664.2 | CT48: 3.894162274 | CU48: 860 | CV48: 4 | CW48: 31 | CX48: 5 | CY48: 6.994623687 | CZ48: 8524 | DA48: 10775 | DB48: 7638 | DC48: 9253.94157 | DD48: 7752.021 | DE48: 8700.071202 | DF48: 89.1 | DG48: 0 | DH48: 0.66 | DI48: Yes | DJ48: 1000 | DK48: 297000 | DL48: 0 | DM48: 9102 | DN48: 0 | DO48: 371380 | DP48: 2 | DQ48: 1900 | DR48: 0 | DS48: 10 | DT48: 16861.4 | DU48: 10 | DV48: 90 | DW48: 0 | DX48: 10 | DY48: 30 | DZ48: 40 | EA48: 30 | EB48: 513 | EC48: 332.4814815
A49: The Council of the Municipality of Hunters Hill | B49: 2 | C49: Metropolitan | D49: 5.7 | E49: 14741 | F49: 1.893965577 | G49: 2569.3 | H49: 7489 | I49: 50.80388033 | J49: 7252 | K49: 49.19611967 | L49: 29.40777424 | M49: 47.16776338 | N49: 23.42446238 | O49: 39.37996065 | P49: 37.19557696 | Q49: 23.42446238 | R49: 0.4 | S49: 18.2 | T49: 146 | U49: 5 | V49: 102068.9655 | W49: 2.6 | X49: Professional | Y49: 1917 | Z49: n/a | AA49: n/a | AB49: n/a | AC49: n/a | AD49: -5.68 | AE49: 7.57 | AF49: 89.96 | AG49: 10.04 | AH49: 2.84 | AI49: 20.56 | AJ49: 0.503743091 | AK49: 16.39 | AL49: 13834 | AM49: 14630 | AN49: 15105 | AO49: 18770 | AP49: 7705 | AQ49: 1633.453466 | AR49: 4717 | AS49: 7893 | AT49: 1669.063227 | AU49: 4729 | AV49: 8178 | AW49: 1714.824911 | AX49: 4769 | AY49: 80.8 | AZ49: 8.534283917 | BA49: n/a | BB49: n/a | BC49: 0 | BD49: 224 | BE49: 961.3733906 | BF49: 233 | BG49: n/a | BH49: n/a | BI49: 0 | BJ49: 655.2176767 | BK49: 4703 | BL49: 31.11067011 | BM49: 787 | BN49: 5.206059403 | BO49: 2996 | BP49: 19.81874711 | BQ49: 1733 | BR49: 11.4639148 | BS49: 2615 | BT49: 17.29840577 | BU49: 1952 | BV49: 12.91261494 | BW49: 331 | BX49: 2.189587881 | BY49: 319.0421274 | BZ49: 203.2426565 | CA49: n/a | CB49: 117.5632589 | CC49: 177.3963775 | CD49: 53.38850824 | CE49: 22.45437894 | CF49: 44.09470185 | CG49: 132.4197816 | CH49: n/a | CI49: 502.6210946 | CJ49: 41.29794281 | CK49: 1466.32 | CL49: 26.75766423 | CM49: 932.31 | CN49: 17.0129562 | CO49: 3081.38 | CP49: 56.22956204 | CQ49: 2018 | CR49: 51.04318292 | CS49: 65 | CT49: 4.409470185 | CU49: 102.6 | CV49: 1 | CW49: 6 | CX49: 0 | CY49: 8.227189472 | CZ49: 1696 | DA49: 1503 | DB49: 1834 | DC49: 1729 | DD49: 1229 | DE49: 1475 | DF49: 83.32 | DG49: 102.17 | DH49: 1.85 | DI49: Yes | DJ49: 21000 | DK49: 169000 | DL49: 0 | DM49: 0 | DN49: 0 | DO49: 226157 | DP49: 0 | DQ49: 0 | DR49: 0 | DS49: 7 | DT49: 2098.428571 | DU49: 28.57142857 | DV49: 71.42857143 | DW49: 0 | DX49: 0 | DY49: 14.28571429 | DZ49: 71.42857143 | EA49: 14.28571429 | EB49: 57 | EC49: 258.6140351
A50: Inverell Shire Council | B50: 11 | C50: Large Rural | D50: 8594.9 | E50: 16936 | F50: 1.394958989 | G50: 2 | H50: 8295 | I50: 48.97850732 | J50: 8641 | K50: 51.02149268 | L50: 27.5212565 | M50: 46.37458668 | N50: 26.10415683 | O50: 38.29711856 | P50: 35.59872461 | Q50: 26.10415683 | R50: 6.5 | S50: 2.2 | T50: 18 | U50: 10 | V50: 43812.18363 | W50: 2.5 | X50: Retail Trade | Y50: 1639 | Z50: n/a | AA50: n/a | AB50: n/a | AC50: n/a | AD50: 18.79 | AE50: 11.21 | AF50: 62.51 | AG50: 37.49 | AH50: 5.31 | AI50: 24.49 | AJ50: 1.373169554 | AK50: 24.77 | AL50: 32303 | AM50: 33790 | AN50: 30281 | AO50: 40379 | AP50: 4430 | AQ50: 746.4195451 | AR50: 5935 | AS50: 4556 | AT50: 765.7142857 | AU50: 5950 | AV50: 4704 | AW50: 786.6220736 | AX50: 5980 | AY50: 60.6 | AZ50: 27.17391304 | BA50: 3381 | BB50: 2519.374069 | BC50: 1342 | BD50: 1836 | BE50: 3290.322581 | BF50: 558 | BG50: n/a | BH50: n/a | BI50: 0 | BJ50: 108.6935206 | BK50: 2836 | BL50: 9.365608798 | BM50: 6900 | BN50: 22.78656583 | BO50: 3612 | BP50: 11.92827185 | BQ50: 1906 | BR50: 6.294376011 | BS50: 3009 | BT50: 9.936924144 | BU50: 8103 | BV50: 26.75935405 | BW50: 3915 | BX50: 12.92889931 | BY50: 167.4539443 | BZ50: 213.2735002 | CA50: 363.0727444 | CB50: 112.5413321 | CC50: 177.668871 | CD50: 44.34341049 | CE50: 231.1643836 | CF50: 54.91261219 | CG50: 478.4482759 | CH50: 1133 | CI50: 307.0234114 | CJ50: 41.42857143 | CK50: 3300 | CL50: 40.54054054 | CM50: 0 | CN50: 0 | CO50: 4840 | CP50: 59.45945946 | CQ50: 5304 | CR50: 49.543379 | CS50: 2139.623 | CT50: 126.3357936 | CU50: 260.3 | CV50: 2 | CW50: 15 | CX50: 1 | CY50: 8.519426075 | CZ50: 6748 | DA50: 6554 | DB50: 7551 | DC50: 7503 | DD50: 7866 | DE50: 7621 | DF50: 103.21 | DG50: 111.25 | DH50: 1.09 | DI50: Yes | DJ50: 20000 | DK50: 126000 | DL50: 0 | DM50: 2611 | DN50: 398 | DO50: 287311 | DP50: 1 | DQ50: 9121 | DR50: 0 | DS50: 9 | DT50: 1871.777778 | DU50: 22.22222222 | DV50: 77.77777778 | DW50: 0 | DX50: 0 | DY50: 0 | DZ50: 33.33333333 | EA50: 66.66666667 | EB50: 198 | EC50: 85.53535354
A51: Junee Shire Council | B51: 10 | C51: Large Rural | D51: 2030 | E51: 6230 | F51: -0.8435460767 | G51: 3.1 | H51: 3571 | I51: 57.31942215 | J51: 2659 | K51: 42.68057785 | L51: 24.67094703 | M51: 54.8635634 | N51: 20.46548957 | O51: 38.71589085 | P51: 40.81861958 | Q51: 20.46548957 | R51: 6.6 | S51: 1.1 | T51: 34 | U51: 3.5 | V51: 47931.38244 | W51: 2.5 | X51: Agriculture, forestry & fishing | Y51: 527 | Z51: n/a | AA51: n/a | AB51: n/a | AC51: n/a | AD51: 4.04 | AE51: 1.03 | AF51: 53.82 | AG51: 46.18 | AH51: 8.75 | AI51: 6.7 | AJ51: 3.53398343 | AK51: 3.07 | AL51: 12858 | AM51: 13112 | AN51: 13088 | AO51: 15132 | AP51: 1152 | AQ51: 572.8493287 | AR51: 2011 | AS51: 1199 | AT51: 593.2706581 | AU51: 2021 | AV51: 1329 | AW51: 649.2427943 | AX51: 2047 | AY51: 64 | AZ51: 22.9604299 | BA51: 1745 | BB51: 2400.275103 | BC51: 727 | BD51: 335 | BE51: 1691.919192 | BF51: 198 | BG51: n/a | BH51: n/a | BI51: 0 | BJ51: 184.6892872 | BK51: 2835 | BL51: 21.66106357 | BM51: 1069 | BN51: 8.167787286 | BO51: 939 | BP51: 7.174511002 | BQ51: 1832 | BR51: 13.99755501 | BS51: 2003 | BT51: 15.30409535 | BU51: 4888 | BV51: 37.34718826 | BW51: -478 | BX51: -3.652200489 | BY51: 455.0561798 | BZ51: 150.7223114 | CA51: 121.3483146 | CB51: 294.0609952 | CC51: 321.5088283 | CD51: 50.24077047 | CE51: -76.72552167 | CF51: 65.48956661 | CG51: 784.5906902 | CH51: N/A | CI51: 259.8925256 | CJ51: 29.38793016 | CK51: 440.8472 | CL51: 24.89470577 | CM51: 211 | CN51: 11.91520081 | CO51: 1119 | CP51: 63.19009342 | CQ51: 1780 | CR51: 44.32280263 | CS51: 879.172096 | CT51: 141.1191165 | CU51: 16.37 | CV51: 1 | CW51: 2 | CX51: 1 | CY51: 3.647833066 | CZ51: 1216 | DA51: 1424 | DB51: 1233 | DC51: 1424 | DD51: 1357 | DE51: 1567 | DF51: 86.6 | DG51: 204.35 | DH51: 6.39 | DI51: Yes | DJ51: 17000 | DK51: 94000 | DL51: 0 | DM51: 3021 | DN51: 0 | DO51: 189895.25 | DP51: 0 | DQ51: 0 | DR51: 0 | DS51: 9 | DT51: 699.6666667 | DU51: 33.33333333 | DV51: 66.66666667 | DW51: 0 | DX51: 0 | DY51: 0 | DZ51: 66.66666667 | EA51: 33.33333333 | EB51: 63.06 | EC51: 98.7947986
A52: Kempsey Shire Council | B52: 4 | C52: Regional Town/City | D52: 3375.7 | E52: 29684 | F52: 1.203504824 | G52: 8.8 | H52: 14966 | I52: 50.41773346 | J52: 14718 | K52: 49.58226654 | L52: 25.04379464 | M52: 45.17585231 | N52: 29.78035305 | O52: 34.12612855 | P52: 36.09351839 | Q52: 29.78035305 | R52: 11.1 | S52: 1.9 | T52: 4 | U52: 9.6 | V52: 44704.86111 | W52: 2.4 | X52: Health care/social assistance | Y52: 2151 | Z52: n/a | AA52: n/a | AB52: n/a | AC52: n/a | AD52: -0.41 | AE52: 2.06 | AF52: 72.67 | AG52: 27.33 | AH52: 6.52 | AI52: 3.04 | AJ52: 12.38412133 | AK52: 8.41 | AL52: 79536 | AM52: 76032 | AN52: 66900 | AO52: 69136 | AP52: 9600 | AQ52: 780.0438775 | AR52: 12307 | AS52: 10553 | AT52: 855.6023999 | AU52: 12334 | AV52: 11621 | AW52: 938.1609752 | AX52: 12387 | AY52: 60.9 | AZ52: 31.40389118 | BA52: 2671 | BB52: 1865.223464 | BC52: 1432 | BD52: 1729 | BE52: 2131.935882 | BF52: 811 | BG52: n/a | BH52: n/a | BI52: 0 | BJ52: 142.3284112 | BK52: 9390 | BL52: 14.03587444 | BM52: 22967 | BN52: 34.3303438 | BO52: 9636 | BP52: 14.40358744 | BQ52: 4382 | BR52: 6.550074738 | BS52: 3683 | BT52: 5.505231689 | BU52: 13840 | BV52: 20.68759342 | BW52: 3002 | BX52: 4.487294469 | BY52: 316.3320307 | BZ52: 324.6193235 | CA52: 738.0406953 | CB52: 147.6216143 | CC52: 124.073575 | CD52: 35.67578493 | CE52: 101.1319229 | CF52: 29.78035305 | CG52: 466.2444414 | CH52: 1537 | CI52: 342.2943408 | CJ52: 45.75708062 | CK52: 3743.8472 | CL52: 26.08293463 | CM52: 2785.42 | CN52: 19.40568723 | CO52: 7824.36 | CP52: 54.51137814 | CQ52: 7809 | CR52: 50.70075758 | CS52: 1188.4 | CT52: 40.03503571 | CU52: 523.29 | CV52: 4 | CW52: 15 | CX52: 4 | CY52: 7.163657189 | CZ52: 20273 | DA52: 29702 | DB52: 8786 | DC52: 11133 | DD52: 16267 | DE52: 16824 | DF52: 96.69 | DG52: 105.57 | DH52: 8.95 | DI52: Yes | DJ52: 31000 | DK52: 205000 | DL52: 0 | DM52: 8448 | DN52: 0 | DO52: 278400 | DP52: 0 | DQ52: 0 | DR52: 0 | DS52: 9 | DT52: 3293.666667 | DU52: 37.5 | DV52: 62.5 | DW52: 0 | DX52: 0 | DY52: 12.5 | DZ52: 62.5 | EA52: 25 | EB52: 307 | EC52: 96.69055375
A53: The Council of the Municipality of Kiama | B53: 4 | C53: Regional Town/City | D53: 257.7 | E53: 21505 | F53: 4.185843709 | G53: 82.7 | H53: 10644 | I53: 49.49546617 | J53: 10861 | K53: 50.50453383 | L53: 23.54801209 | M53: 46.27295978 | N53: 30.17902813 | O53: 32.47151825 | P53: 37.34945362 | Q53: 30.17902813 | R53: 1.4 | S53: 3.7 | T53: 129 | U53: 3.1 | V53: 59666.92401 | W53: 2.5 | X53: Education and training | Y53: 1675 | Z53: n/a | AA53: n/a | AB53: n/a | AC53: n/a | AD53: 2.61 | AE53: 4.73 | AF53: 59.83 | AG53: 40.17 | AH53: 2.16 | AI53: 4.85 | AJ53: 3.606453062 | AK53: 8.66 | AL53: 55661 | AM53: 51924 | AN53: 53177 | AO53: 68513 | AP53: 11543 | AQ53: 1277.870032 | AR53: 9033 | AS53: 11950 | AT53: 1304.300371 | AU53: 9162 | AV53: 12538 | AW53: 1341.536486 | AX53: 9346 | AY53: 77.7 | AZ53: 18.863685 | BA53: 559 | BB53: 2368.644068 | BC53: 236 | BD53: 1104 | BE53: 2177.514793 | BF53: 507 | BG53: n/a | BH53: n/a | BI53: 0 | BJ53: 317.2731269 | BK53: 14428 | BL53: 27.15481602 | BM53: 1375 | BN53: 2.587875799 | BO53: 6030 | BP53: 11.34901169 | BQ53: 12961 | BR53: 24.3937878 | BS53: 7278.379866 | BT53: 13.69857681 | BU53: 4195 | BV53: 7.895373801 | BW53: 6865 | BX53: 12.92055808 | BY53: 670.913741 | BZ53: 280.399907 | CA53: n/a | CB53: 602.6970472 | CC53: 338.4505867 | CD53: 63.93861893 | CE53: 319.2280865 | CF53: 61.52057661 | CG53: 195.0709137 | CH53: n/a | CI53: 468.4356944 | CJ53: 61.48116525 | CK53: 2568.23 | CL53: 24.05475526 | CM53: 3806.5 | CN53: 35.65273589 | CO53: 4301.88 | CP53: 40.29260251 | CQ53: 1387 | CR53: 83.13677812 | CS53: 272.339 | CT53: 12.66398512 | CU53: 224.01 | CV53: 6 | CW53: 20 | CX53: 2 | CY53: 6.467565682 | CZ53: 3783 | DA53: 4000 | DB53: 3922 | DC53: 4000 | DD53: 4509 | DE53: 4429 | DF53: 101.81 | DG53: 244.08 | DH53: 1.55 | DI53: Yes | DJ53: 57000 | DK53: 123000 | DL53: 247 | DM53: 40698 | DN53: 11795 | DO53: 290937 | DP53: 0 | DQ53: 0 | DR53: 0 | DS53: 9 | DT53: 2368.222222 | DU53: 11.11111111 | DV53: 88.88888889 | DW53: 0 | DX53: 0 | DY53: 0 | DZ53: 55.55555556 | EA53: 44.44444444 | EB53: 270 | EC53: 79.64814815
A54: Ku-ring-gai Council | B54: 3 | C54: Metropolitan | D54: 85.4 | E54: 122859 | F54: 10.28635548 | G54: 1416.6 | H54: 59208 | I54: 48.19182966 | J54: 63651 | K54: 51.80817034 | L54: 27.87260193 | M54: 49.08879284 | N54: 23.03860523 | O54: 38.58406792 | P54: 38.37732685 | Q54: 23.03860523 | R54: 0.1 | S54: 21 | T54: 153 | U54: 2.6 | V54: 96514.00692 | W54: 2.9 | X54: Professional | Y54: 13412 | Z54: n/a | AA54: n/a | AB54: n/a | AC54: n/a | AD54: 5.98 | AE54: 2.58 | AF54: 72.15 | AG54: 27.85 | AH54: 3.16 | AI54: 6.58 | AJ54: 3.473818732 | AK54: 10.51 | AL54: 100828 | AM54: 110734 | AN54: 114056.5346 | AO54: 156027.022 | AP54: 52330 | AQ54: 1278.37 | AR54: 40423 | AS54: 53803 | AT54: 1313.742247 | AU54: 40954 | AV54: 54211 | AW54: 1312.329032 | AX54: 41309 | AY54: 86.9 | AZ54: 7.911108959 | BA54: n/a | BB54: n/a | BC54: 0 | BD54: 4035 | BE54: 3928.919182 | BF54: 1027 | BG54: n/a | BH54: n/a | BI54: 0 | BJ54: 476.0834709 | BK54: 22709 | BL54: 19.91030157 | BM54: 4939 | BN54: 4.330308664 | BO54: 26413.53462 | BP54: 23.15828261 | BQ54: 11362 | BR54: 9.96172647 | BS54: 26816 | BT54: 23.51114742 | BU54: 13835 | BV54: 12.12994946 | BW54: 7982 | BX54: 6.998283813 | BY54: 184.8379036 | BZ54: 214.9906366 | CA54: n/a | CB54: 92.4799974 | CC54: 218.2664681 | CD54: 40.20055511 | CE54: 64.96878536 | CF54: 36.0738733 | CG54: 112.6087629 | CH54: n/a | CI54: 466.0727686 | CJ54: 54.01462792 | CK54: 12545.45 | CL54: 22.5043128 | CM54: 17202.66 | CN54: 30.85852174 | CO54: 25998.77 | CP54: 46.6371834 | CQ54: 4448 | CR54: 86.56315138 | CS54: 477.7 | CT54: 3.888197039 | CU54: 1461.7723 | CV54: 1 | CW54: 24 | CX54: 4 | CY54: 7.330427563 | CZ54: 9367 | DA54: 9892 | DB54: 11105 | DC54: 10971 | DD54: 11066.415 | DE54: 10300 | DF54: 107.44 | DG54: 81.89 | DH54: 5.58 | DI54: Yes | DJ54: 44000 | DK54: 224000 | DL54: 0 | DM54: 19680 | DN54: 0 | DO54: 352167 | DP54: 8 | DQ54: 12071 | DR54: 0 | DS54: 10 | DT54: 12097.8 | DU54: 50 | DV54: 50 | DW54: 10 | DX54: 10 | DY54: 10 | DZ54: 60 | EA54: 30 | EB54: 408.68 | EC54: 300.6239601
A55: Kyogle Council | B55: 10 | C55: Large Rural | D55: 3584 | E55: 9537 | F55: -2.921416938 | G55: 2.7 | H55: 4899 | I55: 51.36835483 | J55: 4638 | K55: 48.63164517 | L55: 23.55038272 | M55: 46.44018035 | N55: 30.00943693 | O55: 32.05410506 | P55: 37.93645801 | Q55: 30.00943693 | R55: 5.3 | S55: 2.6 | T55: 11 | U55: 9.5 | V55: 43932.30104 | W55: 2.4 | X55: Agriculture, forestry & fishing | Y55: 1021 | Z55: n/a | AA55: n/a | AB55: n/a | AC55: n/a | AD55: 4.46 | AE55: 8.93 | AF55: 52.15 | AG55: 47.85 | AH55: 7.51 | AI55: 19.34 | AJ55: 1.654014165 | AK55: 16.15 | AL55: 24615 | AM55: 24967 | AN55: 25462 | AO55: 30365 | AP55: 2051 | AQ55: 708.218232 | AR55: 2896 | AS55: 2064 | AT55: 710.0103199 | AU55: 2907 | AV55: 2292 | AW55: 785.2004111 | AX55: 2919 | AY55: 63.1 | AZ55: 38.81466256 | BA55: 2945 | BB55: 1456.478734 | BC55: 2022 | BD55: 259 | BE55: 1079.166667 | BF55: 240 | BG55: n/a | BH55: n/a | BI55: 0 | BJ55: 204.1403748 | BK55: 2298 | BL55: 9.025214044 | BM55: 3331 | BN55: 13.0822402 | BO55: 1844 | BP55: 7.242164795 | BQ55: 725 | BR55: 2.84738041 | BS55: 2442 | BT55: 9.590762705 | BU55: 11671 | BV55: 45.83693347 | BW55: 3151 | BX55: 12.37530438 | BY55: 240.9562756 | BZ55: 193.3522072 | CA55: 272.9369823 | CB55: 76.0197127 | CC55: 256.0553633 | CD55: 76.33427703 | CE55: 330.3973996 | CF55: 59.34780329 | CG55: 1223.760092 | CH55: 1266 | CI55: 294.9640288 | CJ55: 45.90039373 | CK55: 886.92 | CL55: 25.49932293 | CM55: 632.33 | CN55: 18.17975338 | CO55: 1958.96 | CP55: 56.32092369 | CQ55: 1758 | CR55: 55.38071066 | CS55: 1217.33 | CT55: 127.6428646 | CU55: 21 | CV55: 3 | CW55: 4 | CX55: 1 | CY55: 4.624619901 | CZ55: 4490 | DA55: 4516 | DB55: 4629 | DC55: 4638 | DD55: 4912 | DE55: 4767.8 | DF55: 103.02 | DG55: 105.04 | DH55: 12.17 | DI55: Yes | DJ55: 21000 | DK55: 123000 | DL55: 0 | DM55: 7177 | DN55: 2808 | DO55: 140508 | DP55: 1 | DQ55: 2800 | DR55: 0 | DS55: 9 | DT55: 1059 | DU55: 33.33333333 | DV55: 66.66666667 | DW55: 0 | DX55: 0 | DY55: 0 | DZ55: 44.44444444 | EA55: 55.55555556 | EB55: 113 | EC55: 84.39823009
A56: Lachlan Shire Council | B56: 10 | C56: Large Rural | D56: 14965.4 | E56: 6767 | F56: -1.527939464 | G56: 0.5 | H56: 3384 | I56: 50.0073888 | J56: 3383 | K56: 49.9926112 | L56: 26.51100931 | M56: 47.76119403 | N56: 25.72779666 | O56: 37.29865524 | P56: 36.9735481 | Q56: 25.72779666 | R56: 16.5 | S56: 1.5 | T56: 39 | U56: 6.5 | V56: 41685.3429 | W56: 2.4 | X56: Agriculture, forestry & fishing | Y56: 1045 | Z56: n/a | AA56: n/a | AB56: n/a | AC56: n/a | AD56: 7.07 | AE56: 3.32 | AF56: 46.22 | AG56: 53.78 | AH56: 6.56 | AI56: 0 | AJ56: 0 | AK56: 18.99 | AL56: 35827 | AM56: 30291 | AN56: 30088 | AO56: 33042 | AP56: 926 | AQ56: 404.8972453 | AR56: 2287 | AS56: 954 | AT56: 417.8712221 | AU56: 2283 | AV56: 975 | AW56: 426.3226935 | AX56: 2287 | AY56: 56.8 | AZ56: 21.03191955 | BA56: 3807 | BB56: 2654.811715 | BC56: 1434 | BD56: 236 | BE56: 515.2838428 | BF56: 458 | BG56: 30 | BH56: 30000 | BI56: 1 | BJ56: 134.1053546 | BK56: 5041 | BL56: 16.75418772 | BM56: 7255 | BN56: 24.11260303 | BO56: 1685 | BP56: 5.600239298 | BQ56: 3100 | BR56: 10.30311087 | BS56: 3557 | BT56: 11.82198883 | BU56: 7367 | BV56: 24.48484446 | BW56: 2083 | BX56: 6.923025791 | BY56: 744.938673 | BZ56: 249.0025122 | CA56: 827.6932171 | CB56: 458.105512 | CC56: 525.6391311 | CD56: 244.4214571 | CE56: 307.8173489 | CF56: 29.40741835 | CG56: 1088.665583 | CH56: 2798 | CI56: 243.5505028 | CJ56: 10.71428571 | CK56: 0 | CL56: 0 | CM56: 0 | CN56: 0 | CO56: 2500 | CP56: 100 | CQ56: 2547 | CR56: 30.42884458 | CS56: 3981.53 | CT56: 588.3744643 | CU56: 268.5 | CV56: 4 | CW56: 8 | CX56: 2 | CY56: 2.524604699 | CZ56: 6332.566843 | DA56: 14775.058 | DB56: 5296 | DC56: 12260 | DD56: 5184 | DE56: 6577 | DF56: 78.82 | DG56: 757.5 | DH56: 6.15 | DI56: Yes | DJ56: 86000 | DK56: 133000 | DL56: 0 | DM56: 14305 | DN56: 63217 | DO56: 243000 | DP56: 0 | DQ56: 0 | DR56: 0 | DS56: 10 | DT56: 677.5 | DU56: 0 | DV56: 100 | DW56: 0 | DX56: 0 | DY56: 0 | DZ56: 10 | EA56: 90 | EB56: 129 | EC56: 52.45736434
A57: Lake Macquarie City Council | B57: 5 | C57: Regional Town/City | D57: 648 | E57: 204166 | F57: 2.453368929 | G57: 312.8 | H57: 100841 | I57: 49.39167148 | J57: 103325 | K57: 50.60832852 | L57: 24.52808009 | M57: 49.7443257 | N57: 25.72759421 | O57: 36.28322052 | P57: 37.98918527 | Q57: 25.72759421 | R57: 3 | S57: 3.8 | T57: 106 | U57: 5.6 | V57: 58322.78036 | W57: 2.5 | X57: Health care/social assistance | Y57: 11754 | Z57: n/a | AA57: n/a | AB57: n/a | AC57: n/a | AD57: 4.18 | AE57: 2.67 | AF57: 63.31 | AG57: 36.69 | AH57: 3.89 | AI57: 7.44 | AJ57: 4.07887994 | AK57: 10 | AL57: 194422 | AM57: 206495 | AN57: 198207 | AO57: 291005 | AP57: 83316 | AQ57: 1093.586748 | AR57: 76186 | AS57: 86835 | AT57: 1130.001952 | AU57: 76845 | AV57: 92845 | AW57: 1194.255431 | AX57: 77743 | AY57: 72.4 | AZ57: 22.58081113 | BA57: 89 | BB57: 1893.617021 | BC57: 47 | BD57: 16028 | BE57: 4378.038787 | BF57: 3661 | BG57: 791 | BH57: 43944.44444 | BI57: 18 | BJ57: 165.5097 | BK57: 31020 | BL57: 15.65030498 | BM57: 10350 | BN57: 5.221813559 | BO57: 58449 | BP57: 29.4888677 | BQ57: 19544 | BR57: 9.860398472 | BS57: 35625 | BT57: 17.97363363 | BU57: 30782 | BV57: 15.5302285 | BW57: 12437 | BX57: 6.274753162 | BY57: 151.93519 | BZ57: 286.2817511 | CA57: n/a | CB57: 95.72602686 | CC57: 174.4903657 | CD57: 50.69404308 | CE57: 60.91611728 | CF57: 37.26869312 | CG57: 150.7694719 | CH57: n/a | CI57: 389.2954993 | CJ57: 40.75185107 | CK57: 20387.0045 | CL57: 19.74940207 | CM57: 20900.2 | CN57: 20.2465474 | CO57: 61941.26 | CP57: 60.00405053 | CQ57: 33768 | CR57: 64.60117619 | CS57: 1342.62 | CT57: 6.576119432 | CU57: 1664.48 | CV57: 17 | CW57: 36 | CX57: 10 | CY57: 6.702590049 | CZ57: 16719 | DA57: 17549 | DB57: 16554 | DC57: 17294 | DD57: 37539 | DE57: 35634 | DF57: 105.35 | DG57: 84.18 | DH57: 3.02 | DI57: Yes | DJ57: 115000 | DK57: 376000 | DL57: 1282 | DM57: 29452 | DN57: 4093 | DO57: 376920 | DP57: 0 | DQ57: 0 | DR57: 0 | DS57: 13 | DT57: 15590.46154 | DU57: 30.76923077 | DV57: 69.23076923 | DW57: 0 | DX57: 0 | DY57: 0 | DZ57: 69.23076923 | EA57: 30.76923077 | EB57: 961 | EC57: 212.4516129
A58: Lane Cove Municipal Council | B58: 2 | C58: Metropolitan | D58: 10.5 | E58: 35959 | F58: 10.63967263 | G58: 3321.4 | H58: 17635 | I58: 49.04196446 | J58: 18324 | K58: 50.95803554 | L58: 24.16641175 | M58: 56.85920076 | N58: 18.9743875 | O58: 38.56892572 | P58: 42.45668678 | Q58: 18.9743875 | R58: 0.2 | S58: 21.7 | T58: 151 | U58: 3.1 | V58: 90379.88357 | W58: 2.5 | X58: Professional | Y58: 4328 | Z58: n/a | AA58: n/a | AB58: n/a | AC58: n/a | AD58: 5.28 | AE58: 3.52 | AF58: 76.96 | AG58: 23.04 | AH58: 1.71 | AI58: 0 | AJ58: 0 | AK58: 7.98 | AL58: 36842 | AM58: 38268 | AN58: 37869 | AO58: 48479 | AP58: 14972 | AQ58: 1140.115748 | AR58: 13132 | AS58: 15781 | AT58: 1174.356303 | AU58: 13438 | AV58: 16622 | AW58: 1158.973644 | AX58: 14342 | AY58: 85.5 | AZ58: 7.174731558 | BA58: n/a | BB58: n/a | BC58: 0 | BD58: 5306 | BE58: 4515.744681 | BF58: 1175 | BG58: n/a | BH58: n/a | BI58: 0 | BJ58: 369.7019989 | BK58: 7893 | BL58: 20.84290581 | BM58: 2289 | BN58: 6.044521904 | BO58: 7638 | BP58: 20.16953181 | BQ58: 4658 | BR58: 12.3002984 | BS58: 9402 | BT58: 24.82769548 | BU58: 3776 | BV58: 9.971216562 | BW58: 2213 | BX58: 5.843830046 | BY58: 219.4999861 | BZ58: 212.4085764 | CA58: n/a | CB58: 129.5364165 | CC58: 261.4644456 | CD58: 63.65583025 | CE58: 61.54231208 | CF58: 82.59406546 | CG58: 105.0084819 | CH58: n/a | CI58: 405.8708688 | CJ58: 52.61751797 | CK58: 3206 | CL58: 22.83475783 | CM58: 3984.4855 | CN58: 28.37952635 | CO58: 6849.5145 | CP58: 48.78571581 | CQ58: 3865 | CR58: 52.26627146 | CS58: 101.61 | CT58: 2.825718179 | CU58: 212 | CV58: 3 | CW58: 11 | CX58: 2 | CY58: 16.63188631 | CZ58: 13949 | DA58: 10254 | DB58: 4026 | DC58: 2168.50198 | DD58: 4026.15502 | DE58: 1884.510341 | DF58: 213.64 | DG58: 158.33 | DH58: 1.81 | DI58: Yes | DJ58: 45000 | DK58: 201000 | DL58: 0 | DM58: 15180 | DN58: 0 | DO58: 335833 | DP58: 0 | DQ58: 0 | DR58: 0 | DS58: 9 | DT58: 3867.444444 | DU58: 33.33333333 | DV58: 66.66666667 | DW58: 0 | DX58: 22.22222222 | DY58: 11.11111111 | DZ58: 55.55555556 | EA58: 33.33333333 | EB58: 185 | EC58: 194.372973
A59: Leeton Shire Council | B59: 11 | C59: Large Rural | D59: 1167 | E59: 11645 | F59: -2.192172014 | G59: 9.9 | H59: 5747 | I59: 49.35165307 | J59: 5898 | K59: 50.64834693 | L59: 33.50794332 | M59: 45.28123658 | N59: 21.21082009 | O59: 44.38814942 | P59: 34.40103049 | Q59: 21.21082009 | R59: 5.9 | S59: 5.9 | T59: 50 | U59: 3.6 | V59: 47010.49749 | W59: 2.6 | X59: Manufacturing | Y59: 875 | Z59: n/a | AA59: n/a | AB59: n/a | AC59: n/a | AD59: 13.71 | AE59: 4.81 | AF59: 75.83 | AG59: 24.17 | AH59: 3.09 | AI59: 25.04 | AJ59: 1.468140971 | AK59: 20.66 | AL59: 23271 | AM59: 26110 | AN59: 23335 | AO59: 27602 | AP59: 3090 | AQ59: 785.0609756 | AR59: 3936 | AS59: 3212 | AT59: 813.7826197 | AU59: 3947 | AV59: 3333 | AW59: 843.3704453 | AX59: 3952 | AY59: 62.8 | AZ59: 23.53238866 | BA59: 2700 | BB59: 3358.208955 | BC59: 804 | BD59: 396 | BE59: 771.9298246 | BF59: 513 | BG59: n/a | BH59: n/a | BI59: 0 | BJ59: 72.22077135 | BK59: 1227 | BL59: 5.258195843 | BM59: 7045 | BN59: 30.19070066 | BO59: 2539 | BP59: 10.88065138 | BQ59: 2841 | BR59: 12.17484465 | BS59: 3969 | BT59: 17.00878509 | BU59: 4033 | BV59: 17.28305121 | BW59: 1681 | BX59: 7.203771159 | BY59: 105.3671103 | BZ59: 218.0334908 | CA59: 534.1348218 | CB59: 243.967368 | CC59: 340.8329755 | CD59: 70.84585659 | CE59: 144.3537999 | CF59: 45.85659081 | CG59: 346.3288965 | CH59: 1272 | CI59: 242.4089069 | CJ59: 40.73684416 | CK59: 1322.9 | CL59: 27.21512477 | CM59: 0 | CN59: 0 | CO59: 3538 | CP59: 72.78487523 | CQ59: 2719 | CR59: 55.48461035 | CS59: 900.96 | CT59: 77.36882782 | CU59: 185.75 | CV59: 2 | CW59: 6 | CX59: 1 | CY59: 3.422670674 | CZ59: 3890 | DA59: 3949 | DB59: 5039 | DC59: 3740 | DD59: 4608 | DE59: 4608 | DF59: 100 | DG59: 73.95 | DH59: 4.37 | DI59: Yes | DJ59: 33000 | DK59: 120000 | DL59: 0 | DM59: 19264 | DN59: 0 | DO59: 216776 | DP59: 0 | DQ59: 0 | DR59: 0 | DS59: 9 | DT59: 1288.333333 | DU59: 12.5 | DV59: 87.5 | DW59: 0 | DX59: 0 | DY59: 12.5 | DZ59: 62.5 | EA59: 25 | EB59: 134 | EC59: 86.90298507
A60: Lismore City Council | B60: 4 | C60: Regional Town/City | D60: 1287.8 | E60: 44741 | F60: -1.980501698 | G60: 34.7 | H60: 22166 | I60: 49.54292483 | J60: 22575 | K60: 50.45707517 | L60: 25.2341253 | M60: 51.53215172 | N60: 23.23372298 | O60: 37.04208668 | P60: 39.72419034 | Q60: 23.23372298 | R60: 4.5 | S60: 4.3 | T60: 66 | U60: 8.4 | V60: 46016.96913 | W60: 2.4 | X60: Health care/social assistance | Y60: 3882 | Z60: n/a | AA60: n/a | AB60: n/a | AC60: n/a | AD60: 4.39 | AE60: 1.45 | AF60: 77.75 | AG60: 22.25 | AH60: 10.71 | AI60: 4.35 | AJ60: 6.297427811 | AK60: 5.16 | AL60: 97203 | AM60: 101940 | AN60: 98079 | AO60: 112005 | AP60: 16034 | AQ60: 1057.233285 | AR60: 15166 | AS60: 16496 | AT60: 1081.563074 | AU60: 15252 | AV60: 16905 | AW60: 1106.203377 | AX60: 15282 | AY60: 71 | AZ60: 23.89085198 | BA60: 4237 | BB60: 2209.07195 | BC60: 1918 | BD60: 5324 | BE60: 4389.11789 | BF60: 1213 | BG60: n/a | BH60: n/a | BI60: 0 | BJ60: 111.2901169 | BK60: 1362 | BL60: 1.389554873 | BM60: 25704 | BN60: 26.22402236 | BO60: 12915 | BP60: 13.17628575 | BQ60: 4238 | BR60: 4.323739759 | BS60: 18135 | BT60: 18.50189253 | BU60: 21020 | BV60: 21.4452595 | BW60: 14643 | BX60: 14.93924523 | BY60: 30.44187658 | BZ60: 288.6614068 | CA60: 500.9275609 | CB60: 94.72296104 | CC60: 405.3329161 | CD60: 73.57904383 | CE60: 327.2836995 | CF60: 163.9435864 | CG60: 469.8151584 | CH60: 1633 | CI60: 280.4606727 | CJ60: 65.17577035 | CK60: 8551.38 | CL60: 35.34244401 | CM60: 6771.99 | CN60: 27.98831036 | CO60: 8872.41 | CP60: 36.66924563 | CQ60: 7533 | CR60: 62.04464151 | CS60: 1218.64 | CT60: 27.23765674 | CU60: 695.23 | CV60: 3 | CW60: 7 | CX60: 3 | CY60: 9.084441564 | CZ60: 35077 | DA60: 46681 | DB60: 13868 | DC60: 14174 | DD60: 10869 | DE60: 10975 | DF60: 99.03 | DG60: 98.21 | DH60: 21.55 | DI60: Yes | DJ60: 118000 | DK60: 255000 | DL60: 0 | DM60: 9000 | DN60: 0 | DO60: 277200 | DP60: 0 | DQ60: 0 | DR60: 0 | DS60: 11 | DT60: 4057.181818 | DU60: 27.27272727 | DV60: 72.72727273 | DW60: 0 | DX60: 0 | DY60: 0 | DZ60: 72.72727273 | EA60: 27.27272727 | EB60: 431.82 | EC60: 103.6103006
A61: City of Lithgow Council | B61: 4 | C61: Regional Town/City | D61: 4511.9 | E61: 21416 | F61: 2.078169685 | G61: 4.7 | H61: 11033 | I61: 51.51755697 | J61: 10383 | K61: 48.48244303 | L61: 23.55248412 | M61: 49.91595069 | N61: 26.53156518 | O61: 35.01587598 | P61: 38.45255883 | Q61: 26.53156518 | R61: 4.5 | S61: 3 | T61: 22 | U61: 8.4 | V61: 59617.54781 | W61: 2.4 | X61: Mining | Y61: 1278 | Z61: n/a | AA61: n/a | AB61: n/a | AC61: n/a | AD61: -7.75 | AE61: 4.08 | AF61: 67.23 | AG61: 32.77 | AH61: 5.13 | AI61: 2.91 | AJ61: 6.607131645 | AK61: 8.82 | AL61: 37877 | AM61: 39900.878 | AN61: 45528 | AO61: 48368 | AP61: 6066.031 | AQ61: 644.56 | AR61: 9411 | AS61: 6219 | AT61: 659.7 | AU61: 9427 | AV61: 13052.4 | AW61: 1377.998311 | AX61: 9472 | AY61: 63.4 | AZ61: 26.85810811 | BA61: 1675 | BB61: 1350.806452 | BC61: 1240 | BD61: 1669 | BE61: 3427.104723 | BF61: 487 | BG61: 1997 | BH61: 153615.3846 | BI61: 13 | BJ61: 79.84603907 | BK61: 38.2 | BL61: 0.08390441047 | BM61: 17606.8 | BN61: 38.6724653 | BO61: 4936 | BP61: 10.84167985 | BQ61: 5359 | BR61: 11.77077842 | BS61: 6318 | BT61: 13.87717449 | BU61: 4264 | BV61: 9.365665085 | BW61: 7006 | BX61: 15.38833245 | BY61: 1.783713112 | BZ61: 230.4818827 | CA61: 693.0799402 | CB61: 250.2334703 | CC61: 295.0130743 | CD61: 129.0530445 | CE61: 327.138588 | CF61: 75.9245424 | CG61: 199.103474 | CH61: 1566 | CI61: 405.7221284 | CJ61: 25.54867199 | CK61: 1140.5 | CL61: 12.30180132 | CM61: 0 | CN61: 0 | CO61: 8130.5 | CP61: 87.69819868 | CQ61: 9956 | CR61: 36.20811174 | CS61: 904.33 | CT61: 42.22683975 | CU61: 92.6307 | CV61: 1 | CW61: 12 | CX61: 5 | CY61: 3.614820695 | CZ61: 13333.37 | DA61: 13787 | DB61: 10301 | DC61: 13590.2 | DD61: 10854 | DE61: 13767 | DF61: 78.84 | DG61: 53.84 | DH61: 10.89 | DI61: No | DJ61: 7000 | DK61: 111000 | DL61: 0 | DM61: 5131 | DN61: 0 | DO61: 245000 | DP61: 1 | DQ61: 12450 | DR61: 0 | DS61: 9 | DT61: 2361 | DU61: 11.11111111 | DV61: 88.88888889 | DW61: 0 | DX61: 0 | DY61: 0 | DZ61: 77.77777778 | EA61: 22.22222222 | EB61: 169 | EC61: 126.7218935
A62: Liverpool City Council | B62: 7 | C62: Metropolitan Fringe | D62: 305.4 | E62: 204594 | F62: 12.25330707 | G62: 654.6 | H62: 101807 | I62: 49.76050129 | J62: 102787 | K62: 50.23949871 | L62: 29.61230535 | M62: 55.76409865 | N62: 14.623596 | O62: 44.67579694 | P62: 40.70060706 | Q62: 14.623596 | R62: 1.5 | S62: 49.8 | T62: 88 | U62: 5.4 | V62: 53453.02982 | W62: 3.2 | X62: Manufacturing | Y62: 13316 | Z62: n/a | AA62: n/a | AB62: n/a | AC62: n/a | AD62: -2.63 | AE62: 1.76 | AF62: 45.62 | AG62: 54.38 | AH62: 4.25 | AI62: 3.7 | AJ62: 4.963006373 | AK62: 7.8 | AL62: 151429 | AM62: 168456 | AN62: 173065 | AO62: 329655 | AP62: 61363 | AQ62: 1044.369937 | AR62: 58756 | AS62: 61445 | AT62: 1016.75 | AU62: 60432 | AV62: 67850 | AW62: 1099.319507 | AX62: 61720 | AY62: 72.6 | AZ62: 15.00162022 | BA62: 471 | BB62: 3098.684211 | BC62: 152 | BD62: 19566 | BE62: 6082.064035 | BF62: 3217 | BG62: n/a | BH62: n/a | BI62: 0 | BJ62: 228.8415301 | BK62: 34194 | BL62: 19.75789443 | BM62: 5601 | BN62: 3.236356282 | BO62: 43057 | BP62: 24.87909167 | BQ62: 23815 | BR62: 13.76072574 | BS62: 32568 | BT62: 18.81836304 | BU62: 25710 | BV62: 14.85569006 | BW62: 8120 | BX62: 4.691878774 | BY62: 167.1310009 | BZ62: 210.4509419 | CA62: n/a | CB62: 116.401263 | CC62: 159.1835538 | CD62: 27.37616939 | CE62: 39.68835841 | CF62: 39.5172879 | CG62: 125.6635092 | CH62: n/a | CI62: 381.5942968 | CJ62: 66.25031897 | CK62: 39456 | CL62: 50.63655031 | CM62: 13861 | CN62: 17.7887577 | CO62: 24603 | CP62: 31.57469199 | CQ62: 27120 | CR62: 48.58767773 | CS62: 893.337 | CT62: 4.366389044 | CU62: 1627.08 | CV62: 3 | CW62: 29 | CX62: 5 | CY62: 3.71467394 | CZ62: 33251 | DA62: 39345 | DB62: 17670 | DC62: 16021 | DD62: 17737 | DE62: 16735 | DF62: 105.99 | DG62: 90.48 | DH62: 3.59 | DI62: Yes | DJ62: 70000 | DK62: 315000 | DL62: 0 | DM62: 14130 | DN62: 10321 | DO62: 510075 | DP62: 7 | DQ62: 28294 | DR62: 3 | DS62: 11 | DT62: 18175.27273 | DU62: 27.27272727 | DV62: 72.72727273 | DW62: 0 | DX62: 45.45454545 | DY62: 0 | DZ62: 81.81818182 | EA62: 18.18181818 | EB62: 690 | EC62: 296.5130435
A63: Liverpool Plains Shire Council | B63: 10 | C63: Large Rural | D63: 5082.3 | E63: 7759 | F63: -2.291902783 | G63: 1.5 | H63: 3915 | I63: 50.45753319 | J63: 3844 | K63: 49.54246681 | L63: 24.10104395 | M63: 47.33857456 | N63: 28.56038149 | O63: 34.30854492 | P63: 37.13107359 | Q63: 28.56038149 | R63: 10.9 | S63: 1.4 | T63: 19 | U63: 8.6 | V63: 46840.95861 | W63: 2.4 | X63: Agriculture, forestry & fishing | Y63: 975 | Z63: n/a | AA63: n/a | AB63: n/a | AC63: n/a | AD63: -1.16 | AE63: 8.7 | AF63: 53.84 | AG63: 46.16 | AH63: 8.79 | AI63: 22.85 | AJ63: 1.997392877 | AK63: 13.6 | AL63: 20870 | AM63: 23308 | AN63: 24299 | AO63: 30001 | AP63: 1634 | AQ63: 567.7553857 | AR63: 2878 | AS63: 1770 | AT63: 609.0846524 | AU63: 2906 | AV63: 1812 | AW63: 623.5375086 | AX63: 2906 | AY63: 60.4 | AZ63: 29.559532 | BA63: 3971 | BB63: 4035.569106 | BC63: 984 | BD63: 458 | BE63: 1293.785311 | BF63: 354 | BG63: 279 | BH63: 69750 | BI63: 4 | BJ63: 216.9750199 | BK63: 2561 | BL63: 10.53952838 | BM63: 4370 | BN63: 17.98427919 | BO63: 2809 | BP63: 11.56014651 | BQ63: 1602 | BR63: 6.592863904 | BS63: 2095 | BT63: 8.621753982 | BU63: 9643 | BV63: 39.68476069 | BW63: 1219 | BX63: 5.016667353 | BY63: 330.0683078 | BZ63: 362.0311896 | CA63: 392.0608326 | CB63: 206.4699059 | CC63: 270.0090218 | CD63: 171.1560768 | CE63: 157.1078747 | CF63: 48.71761825 | CG63: 1242.814796 | CH63: 1507 | CI63: 313.1452168 | CJ63: 49.94542773 | CK63: 1300.628 | CL63: 36.34574155 | CM63: 696.1 | CN63: 19.45234971 | CO63: 1581.76 | CP63: 44.20190874 | CQ63: 3832 | CR63: 37.31392115 | CS63: 1394.25 | CT63: 179.6945483 | CU63: 90 | CV63: 2 | CW63: 9 | CX63: 3 | CY63: 4.210078618 | CZ63: 5781 | DA63: 4688 | DB63: 7480 | DC63: 6537 | DD63: 0 | DE63: 6769 | DF63: 0 | DG63: 551.6 | DH63: 17.1 | DI63: No | DJ63: 27000 | DK63: 101000 | DL63: 10320 | DM63: 15494 | DN63: 13912 | DO63: 243590 | DP63: 0 | DQ63: 0 | DR63: 0 | DS63: 7 | DT63: 1117 | DU63: 14.28571429 | DV63: 85.71428571 | DW63: 0 | DX63: 0 | DY63: 0 | DZ63: 42.85714286 | EA63: 57.14285714 | EB63: 101 | EC63: 76.82178218
A64: Lockhart Shire Council | B64: 9 | C64: Rural | D64: 2895.9 | E64: 3025 | F64: -8.305547135 | G64: 1.1 | H64: 1567 | I64: 51.80165289 | J64: 1458 | K64: 48.19834711 | L64: 26.01652893 | M64: 43.17355372 | N64: 30.80991736 | O64: 33.02479339 | P64: 36.16528926 | Q64: 30.80991736 | R64: 2.6 | S64: 1.2 | T64: 102 | U64: 2.3 | V64: 42904.29043 | W64: 2.5 | X64: Agriculture, forestry & fishing | Y64: 293 | Z64: n/a | AA64: n/a | AB64: n/a | AC64: n/a | AD64: 25.09 | AE64: 7.56 | AF64: 30.86 | AG64: 69.14 | AH64: 3.94 | AI64: 62.95 | AJ64: 0.7796174249 | AK64: 13.09 | AL64: 7509 | AM64: 8606 | AN64: 9346 | AO64: 12597 | AP64: 289 | AQ64: 250.87 | AR64: 1152 | AS64: 295 | AT64: 258.5451358 | AU64: 1141 | AV64: 309 | AW64: 270.1048951 | AX64: 1144 | AY64: 65.7 | AZ64: 26.31118881 | BA64: 1840 | BB64: 1626.878868 | BC64: 1131 | BD64: 94 | BE64: 429.2237443 | BF64: 219 | BG64: n/a | BH64: n/a | BI64: 0 | BJ64: 278.0188386 | BK64: 1945 | BL64: 20.81104216 | BM64: 762 | BN64: 8.153220629 | BO64: 1726 | BP64: 18.46779371 | BQ64: 321 | BR64: 3.434624438 | BS64: 881 | BT64: 9.426492617 | BU64: 2770 | BV64: 29.63834796 | BW64: 941 | BX64: 10.06847849 | BY64: 642.9752066 | BZ64: 570.5785124 | CA64: 155.7024793 | CB64: 106.1157025 | CC64: 291.2396694 | CD64: 96.19834711 | CE64: 311.0743802 | CF64: 35.70247934 | CG64: 915.7024793 | CH64: n/a | CI64: 291.0839161 | CJ64: 33.49591912 | CK64: 305.74 | CL64: 21.63918182 | CM64: 192.2 | CN64: 13.6032274 | CO64: 914.7 | CP64: 64.7391889 | CQ64: 1130 | CR64: 41.7825863 | CS64: 1368.21 | CT64: 452.3008264 | CU64: 37 | CV64: 2 | CW64: 8 | CX64: 0 | CY64: 2.875041322 | CZ64: 1669 | DA64: 1457 | DB64: 1658 | DC64: 1361 | DD64: 1543 | DE64: 1354 | DF64: 113.96 | DG64: 168.49 | DH64: 0.8 | DI64: Yes | DJ64: 24000 | DK64: 94000 | DL64: 0 | DM64: 12909 | DN64: 0 | DO64: 180656 | DP64: 0 | DQ64: 0 | DR64: 0 | DS64: 9 | DT64: 342.2222222 | DU64: 11.11111111 | DV64: 88.88888889 | DW64: 0 | DX64: 0 | DY64: 0 | DZ64: 55.55555556 | EA64: 44.44444444 | EB64: 49 | EC64: 61.73469388
A65: Maitland City Council | B65: 5 | C65: Regional Town/City | D65: 391.5 | E65: 76607 | F65: 10.77739538 | G65: 192 | H65: 38227 | I65: 49.90013967 | J65: 38380 | K65: 50.09986033 | L65: 28.30942342 | M65: 53.01865365 | N65: 18.67192293 | O65: 41.66851593 | P65: 39.65956114 | Q65: 18.67192293 | R65: 3.5 | S65: 3.1 | T65: 107 | U65: 6.3 | V65: 61671.10739 | W65: 2.7 | X65: Manufacturing | Y65: 4802 | Z65: n/a | AA65: n/a | AB65: n/a | AC65: n/a | AD65: -3.84 | AE65: 3.23 | AF65: 53.64 | AG65: 46.36 | AH65: 2.43 | AI65: 3.57 | AJ65: 5.055514008 | AK65: 13.56 | AL65: 74571 | AM65: 80376 | AN65: 90284 | AO65: 139484 | AP65: 26941 | AQ65: 980.3857351 | AR65: 27480 | AS65: 29769 | AT65: 1055.713171 | AU65: 28198 | AV65: 32871 | AW65: 1130.636673 | AX65: 29073 | AY65: 73.5 | AZ65: 17.08801981 | BA65: 2028 | BB65: 2969.253294 | BC65: 683 | BD65: 11485 | BE65: 6218.191662 | BF65: 1847 | BG65: 349 | BH65: 174500 | BI65: 2 | BJ65: 122.9309544 | BK65: 14678 | BL65: 16.25758717 | BM65: 2876 | BN65: 3.185503522 | BO65: 19255 | BP65: 21.32714545 | BQ65: 7557 | BR65: 8.370253866 | BS65: 19342 | BT65: 21.42350804 | BU65: 21107 | BV65: 23.37845022 | BW65: 5469 | BX65: 6.057551726 | BY65: 191.6012897 | BZ65: 251.3477881 | CA65: n/a | CB65: 98.6463378 | CC65: 252.4834545 | CD65: 37.54226115 | CE65: 71.39034292 | CF65: 40.68818776 | CG65: 275.5231245 | CH65: 1640 | CI65: 413.785987 | CJ65: 31.07792567 | CK65: 8266.041584 | CL65: 19.63255823 | CM65: 4271.01 | CN65: 10.14401533 | CO65: 29566.69 | CP65: 70.22342644 | CQ65: 21548 | CR65: 46.46858619 | CS65: 696.7 | CT65: 9.094469174 | CU65: 641 | CV65: 2 | CW65: 16 | CX65: 4 | CY65: 6.192671688 | CZ65: 8089 | DA65: 10866 | DB65: 5627 | DC65: 8451 | DD65: 9552 | DE65: 10630 | DF65: 89.86 | DG65: 215.7 | DH65: 10.08 | DI65: Yes | DJ65: 96000 | DK65: 279000 | DL65: 0 | DM65: 19711 | DN65: 7128 | DO65: 452000 | DP65: 0 | DQ65: 0 | DR65: 0 | DS65: 13 | DT65: 5782.307692 | DU65: 15.38461538 | DV65: 84.61538462 | DW65: 0 | DX65: 0 | DY65: 0 | DZ65: 46.15384615 | EA65: 53.84615385 | EB65: 374 | EC65: 204.8315508
A66: Mid-Western Regional Council | B66: 4 | C66: Regional Town/City | D66: 8752.8 | E66: 24191 | F66: 6.676368126 | G66: 2.7 | H66: 12331 | I66: 50.97350254 | J66: 11860 | K66: 49.02649746 | L66: 26.42718366 | M66: 48.58831797 | N66: 24.98449837 | O66: 36.94762515 | P66: 38.06787648 | Q66: 24.98449837 | R66: 3.9 | S66: 2.7 | T66: 72 | U66: 6.9 | V66: 58944.85454 | W66: 2.4 | X66: Mining | Y66: 2424 | Z66: n/a | AA66: n/a | AB66: n/a | AC66: n/a | AD66: 5.06 | AE66: 3.66 | AF66: 60.23 | AG66: 39.77 | AH66: 3.33 | AI66: 9.01 | AJ66: 4.196900402 | AK66: 14.4 | AL66: 56637 | AM66: 60251 | AN66: 66306 | AO66: 76742 | AP66: 8155 | AQ66: 783.8331411 | AR66: 10404 | AS66: 8549 | AT66: 803.4774436 | AU66: 10640 | AV66: 8839 | AW66: 820.0964929 | AX66: 10778 | AY66: 66.2 | AZ66: 17.85117833 | BA66: 4450 | BB66: 2350.76598 | BC66: 1893 | BD66: 1250 | BE66: 1793.400287 | BF66: 697 | BG66: 2084 | BH66: 189454.5455 | BI66: 11 | BJ66: 129.8358679 | BK66: 9093 | BL66: 13.71369107 | BM66: 11203 | BN66: 16.89590686 | BO66: 6460 | BP66: 9.742708051 | BQ66: 4107 | BR66: 6.194009592 | BS66: 6401 | BT66: 9.653726661 | BU66: 21454 | BV66: 32.35604621 | BW66: 7588 | BX66: 11.44391156 | BY66: 375.8835931 | BZ66: 267.0414617 | CA66: 405.4400397 | CB66: 169.7738828 | CC66: 264.6025381 | CD66: 57.66607416 | CE66: 313.6703733 | CF66: 44.27266339 | CG66: 886.8587491 | CH66: 1479 | CI66: 110.2245315 | CJ66: 23.11365082 | CK66: 1658.746 | CL66: 11.43746157 | CM66: 1953 | CN66: 13.46641526 | CO66: 10891 | CP66: 75.09612318 | CQ66: 12310 | CR66: 28.22575943 | CS66: 2258.76 | CT66: 93.37191518 | CU66: 474.25 | CV66: 3 | CW66: 16 | CX66: 3 | CY66: 4.200363772 | CZ66: 7416.48684 | DA66: 9037.84 | DB66: 8689 | DC66: 9778 | DD66: 8926.11 | DE66: 8428.24 | DF66: 105.91 | DG66: 56.83 | DH66: 6.89 | DI66: Yes | DJ66: 16000 | DK66: 123000 | DL66: 0 | DM66: 0 | DN66: 0 | DO66: 277454 | DP66: 5 | DQ66: 5000 | DR66: 0 | DS66: 9 | DT66: 2668.555556 | DU66: 22.22222222 | DV66: 77.77777778 | DW66: 0 | DX66: 0 | DY66: 11.11111111 | DZ66: 44.44444444 | EA66: 44.44444444 | EB66: 299 | EC66: 80.90635452
A67: Moree Plains Shire Council | B67: 11 | C67: Large Rural | D67: 17906 | E67: 14053 | F67: -2.450367902 | G67: 0.8 | H67: 7196 | I67: 51.20614815 | J67: 6857 | K67: 48.79385185 | L67: 28.39251405 | M67: 52.36604284 | N67: 19.24144311 | O67: 42.44645271 | P67: 38.31210418 | Q67: 19.24144311 | R67: 20.8 | S67: 2.5 | T67: 23 | U67: 9.6 | V67: 47720.2473 | W67: 2.5 | X67: Agriculture, forestry & fishing | Y67: 1947 | Z67: n/a | AA67: n/a | AB67: n/a | AC67: n/a | AD67: 6.69 | AE67: 1.97 | AF67: 72.83 | AG67: 27.17 | AH67: 5.59 | AI67: 2.99 | AJ67: 11.47397084 | AK67: 6.89 | AL67: 60916 | AM67: 51723 | AN67: 52089 | AO67: 62068 | AP67: 4064 | AQ67: 938.1348107 | AR67: 4332 | AS67: 4229 | AT67: 972.183908 | AU67: 4350 | AV67: 4357 | AW67: 1002.069917 | AX67: 4348 | AY67: 58.5 | AZ67: 13.73045078 | BA67: 14311 | BB67: 10530.53716 | BC67: 1359 | BD67: 2392 | BE67: 4033.726813 | BF67: 593 | BG67: n/a | BH67: n/a | BI67: 0 | BJ67: 160.4603818 | BK67: 7361 | BL67: 14.13158248 | BM67: 10541 | BN67: 20.23651827 | BO67: 4764 | BP67: 9.145884928 | BQ67: 3911 | BR67: 7.508303097 | BS67: 4927 | BT67: 9.458810881 | BU67: 12532 | BV67: 24.0588224 | BW67: 8053 | BX67: 15.46007794 | BY67: 523.8027467 | BZ67: 339.0023483 | CA67: 609.4784032 | CB67: 278.3035651 | CC67: 350.6012951 | CD67: 140.6105458 | CE67: 573.0449014 | CF67: 49.95374653 | CG67: 891.7668825 | CH67: 2022 | CI67: 464.5814167 | CJ67: 43.51168696 | CK67: 1376.8616 | CL67: 22.77075847 | CM67: 1545.7 | CN67: 25.56303507 | CO67: 3124.07 | CP67: 51.66637185 | CQ67: 6111 | CR67: 17.60819738 | CS67: 2899.4 | CT67: 206.3189355 | CU67: 238 | CV67: 3 | CW67: 8 | CX67: 2 | CY67: 2.954315804 | CZ67: 7428 | DA67: 9415 | DB67: 7418 | DC67: 8565 | DD67: 9430 | DE67: 10070 | DF67: 94 | DG67: 1456.1 | DH67: 19.9 | DI67: No | DJ67: 132000 | DK67: 124000 | DL67: 0 | DM67: 5385 | DN67: 27466 | DO67: 212000 | DP67: 2 | DQ67: 17917 | DR67: 5 | DS67: 9 | DT67: 1565.777778 | DU67: 33.33333333 | DV67: 66.66666667 | DW67: 0 | DX67: 11.11111111 | DY67: 0 | DZ67: 55.55555556 | EA67: 44.44444444 | EB67: 224 | EC67: 62.73660714
A68: Mosman Municipal Council | B68: 2 | C68: Metropolitan | D68: 8.7 | E68: 30496 | F68: 6.010359092 | G68: 3499.7 | H68: 14506 | I68: 47.56689402 | J68: 15990 | K68: 52.43310598 | L68: 23.93428646 | M68: 53.03318468 | N68: 23.03252886 | O68: 35.21445435 | P68: 41.75301679 | Q68: 23.03252886 | R68: 0.1 | S68: 12.7 | T68: 152 | U68: 2.2 | V68: 128328.9325 | W68: 2.4 | X68: Professional | Y68: 4017 | Z68: n/a | AA68: n/a | AB68: n/a | AC68: n/a | AD68: 1.96 | AE68: 1.29 | AF68: 89.56 | AG68: 10.44 | AH68: 2.26 | AI68: 2.81 | AJ68: 5.438379291 | AK68: 4.25 | AL68: 38972 | AM68: 40064 | AN68: 47996 | AO68: 46512 | AP68: 15229 | AQ68: 1208.746726 | AR68: 12599 | AS68: 15666 | AT68: 1242.544416 | AU68: 12608 | AV68: 16899 | AW68: 1335.572591 | AX68: 12653 | AY68: 81.7 | AZ68: 5.176637951 | BA68: n/a | BB68: n/a | BC68: 0 | BD68: 1782 | BE68: 3000 | BF68: 594 | BG68: n/a | BH68: n/a | BI68: 0 | BJ68: 637.4201933 | BK68: 12330 | BL68: 25.6896408 | BM68: 1457 | BN68: 3.035669639 | BO68: 5714 | BP68: 11.90515876 | BQ68: 6237 | BR68: 12.9948329 | BS68: 11038 | BT68: 22.99774981 | BU68: 4625 | BV68: 9.636219685 | BW68: 6595 | BX68: 13.74072839 | BY68: 404.31532 | BZ68: 187.3688353 | CA68: n/a | CB68: 204.5186254 | CC68: 361.9491081 | CD68: 47.77675761 | CE68: 216.2578699 | CF68: 86.47035677 | CG68: 151.659234 | CH68: n/a | CI68: 506.2830949 | CJ68: 41.30714493 | CK68: 3186.56 | CL68: 27.1381366 | CM68: 1784.58 | CN68: 15.19826265 | CO68: 6770.87 | CP68: 57.66368591 | CQ68: 2538 | CR68: 66.10124215 | CS68: 96.6 | CT68: 3.167628541 | CU68: 177.4 | CV68: 4 | CW68: 1 | CX68: 1 | CY68: 10.84506165 | CZ68: 2925 | DA68: 3097 | DB68: 2906 | DC68: 2996 | DD68: 4508 | DE68: 3185 | DF68: 141.54 | DG68: 128.01 | DH68: 2.46 | DI68: Yes | DJ68: 32000 | DK68: 162000 | DL68: 0 | DM68: 3152 | DN68: 3136 | DO68: 311970 | DP68: 0 | DQ68: 0 | DR68: 0 | DS68: 7 | DT68: 4325.142857 | DU68: 28.57142857 | DV68: 71.42857143 | DW68: 0 | DX68: 0 | DY68: 0 | DZ68: 57.14285714 | EA68: 42.85714286 | EB68: 168 | EC68: 181.5238095
A69: Muswellbrook Shire Council | B69: 11 | C69: Large Rural | D69: 3405 | E69: 17209 | F69: 4.990543591 | G69: 5 | H69: 9068 | I69: 52.69335813 | J69: 8141 | K69: 47.30664187 | L69: 28.71172061 | M69: 55.30826893 | N69: 15.98001046 | O69: 43.93631239 | P69: 40.08367715 | Q69: 15.98001046 | R69: 5.4 | S69: 2.8 | T69: 78 | U69: 8.6 | V69: 70980.07098 | W69: 2.6 | X69: Mining | Y69: 998 | Z69: n/a | AA69: n/a | AB69: n/a | AC69: n/a | AD69: 2.62 | AE69: 2.03 | AF69: 58.01 | AG69: 41.99 | AH69: 6.36 | AI69: 3.35 | AJ69: 7.914220066 | AK69: 9.39 | AL69: 38308 | AM69: 39949 | AN69: 43925 | AO69: 58731 | AP69: 4450 | AQ69: 684.1943419 | AR69: 6504 | AS69: 4653 | AT69: 713.540868 | AU69: 6521 | AV69: 4716 | AW69: 722.4264706 | AX69: 6528 | AY69: 68.1 | AZ69: 12.76041667 | BA69: 1366 | BB69: 2765.182186 | BC69: 494 | BD69: 1149 | BE69: 1859.223301 | BF69: 618 | BG69: 4231 | BH69: 68241.93548 | BI69: 62 | BJ69: 113.2322965 | BK69: 5914 | BL69: 13.46385885 | BM69: 8669 | BN69: 19.73591349 | BO69: 6542 | BP69: 14.89356858 | BQ69: 1844 | BR69: 4.198064883 | BS69: 5856 | BT69: 13.33181559 | BU69: 9794 | BV69: 22.29709732 | BW69: 5306 | BX69: 12.07968127 | BY69: 343.6573886 | BZ69: 380.1499216 | CA69: 445.5808007 | CB69: 107.1532338 | CC69: 340.2870591 | CD69: 58.16723807 | CE69: 308.3270382 | CF69: 53.63472602 | CG69: 569.1208089 | CH69: 1212 | CI69: 296.1090686 | CJ69: 44.88888652 | CK69: 2096.86 | CL69: 22.77358913 | CM69: 1918.23 | CN69: 20.8335234 | CO69: 5192.33 | CP69: 56.39288748 | CQ69: 6159 | CR69: 44.84148307 | CS69: 619.53 | CT69: 36.00034865 | CU69: 358.16 | CV69: 2 | CW69: 2 | CX69: 2 | CY69: 3.114649311 | CZ69: 5874 | DA69: 6909 | DB69: 4632 | DC69: 5982 | DD69: 4969 | DE69: 6246 | DF69: 79.55 | DG69: 87.88 | DH69: 9.81 | DI69: Yes | DJ69: 15000 | DK69: 151000 | DL69: 0 | DM69: 0 | DN69: 0 | DO69: 227783 | DP69: 0 | DQ69: 17435 | DR69: 0 | DS69: 12 | DT69: 1420.416667 | DU69: 33.33333333 | DV69: 66.66666667 | DW69: 8.333333333 | DX69: 0 | DY69: 0 | DZ69: 66.66666667 | EA69: 33.33333333 | EB69: 165 | EC69: 104.2969697
A70: Nambucca Shire Council | B70: 11 | C70: Large Rural | D70: 1491.4 | E70: 19598 | F70: 2.147399145 | G70: 13.2 | H70: 9518 | I70: 48.56618022 | J70: 10080 | K70: 51.43381978 | L70: 22.67578324 | M70: 41.96856822 | N70: 35.35564854 | O70: 30.2990101 | P70: 34.34534136 | Q70: 35.35564854 | R70: 7.3 | S70: 2.3 | T70: 9 | U70: 9.7 | V70: 44262.85325 | W70: 2.3 | X70: Health care/social assistance | Y70: 1407 | Z70: n/a | AA70: n/a | AB70: n/a | AC70: n/a | AD70: 3.25 | AE70: 2.38 | AF70: 69.83 | AG70: 30.17 | AH70: 5.68 | AI70: 2.29 | AJ70: 14.82141877 | AK70: 8.76 | AL70: 35480 | AM70: 40485 | AN70: 38111 | AO70: 38744 | AP70: 6484 | AQ70: 794.9000858 | AR70: 8157 | AS70: 7077 | AT70: 863.8916016 | AU70: 8192 | AV70: 7529 | AW70: 911.6115753 | AX70: 8259 | AY70: 63.3 | AZ70: 30.97227267 | BA70: 877 | BB70: 1815.73499 | BC70: 483 | BD70: 1060 | BE70: 1781.512605 | BF70: 595 | BG70: n/a | BH70: n/a | BI70: 0 | BJ70: 144.0182105 | BK70: 2709 | BL70: 7.108183989 | BM70: 11366 | BN70: 29.82341056 | BO70: 6274 | BP70: 16.46243867 | BQ70: 1680 | BR70: 4.408176117 | BS70: 3356 | BT70: 8.805856577 | BU70: 11009 | BV70: 28.88667314 | BW70: 1717 | BX70: 4.505260948 | BY70: 138.2283907 | BZ70: 320.1347076 | CA70: 502.5002551 | CB70: 85.72303296 | CC70: 171.2419635 | CD70: 77.45688336 | CE70: 87.61098071 | CF70: 34.13613634 | CG70: 561.740994 | CH70: 1131 | CI70: 428.7444 | CJ70: 80.17381858 | CK70: 3613.92 | CL70: 41.32593551 | CM70: 2970 | CN70: 33.96257484 | CO70: 2161 | CP70: 24.71148964 | CQ70: 3350 | CR70: 60.34094945 | CS70: 708.13 | CT70: 36.13276865 | CU70: 515 | CV70: 1 | CW70: 15 | CX70: 2 | CY70: 4.654454536 | CZ70: 5827 | DA70: 6278 | DB70: 2660 | DC70: 1827 | DD70: 3509 | DE70: 1938 | DF70: 181.06 | DG70: 62.65 | DH70: 2.9 | DI70: Yes | DJ70: 28000 | DK70: 126000 | DL70: 0 | DM70: 842 | DN70: 2608 | DO70: 199993 | DP70: 0 | DQ70: 0 | DR70: 0 | DS70: 9 | DT70: 2183.888889 | DU70: 55.55555556 | DV70: 44.44444444 | DW70: 11.11111111 | DX70: 0 | DY70: 0 | DZ70: 44.44444444 | EA70: 55.55555556 | EB70: 112.94 | EC70: 173.5257659
A71: Narrabri Shire Council | B71: 11 | C71: Large Rural | D71: 13014.1 | E71: 13799 | F71: 0.7741181626 | G71: 1.1 | H71: 7038 | I71: 51.00369592 | J71: 6761 | K71: 48.99630408 | L71: 28.17595478 | M71: 48.81513153 | N71: 23.00891369 | O71: 38.87962896 | P71: 38.11145735 | Q71: 23.00891369 | R71: 10.7 | S71: 1.5 | T71: 54 | U71: 7 | V71: 51417.15116 | W71: 2.5 | X71: Agriculture, forestry & fishing | Y71: 1823 | Z71: n/a | AA71: n/a | AB71: n/a | AC71: n/a | AD71: 10.4 | AE71: 3.73 | AF71: 57.52 | AG71: 42.48 | AH71: 7.92 | AI71: 6.65 | AJ71: 4.835732743 | AK71: 14.59 | AL71: 46691 | AM71: 40897 | AN71: 39290 | AO71: 53599 | AP71: 3721 | AQ71: 822.5022104 | AR71: 4524 | AS71: 3878 | AT71: 856.25966 | AU71: 4529 | AV71: 3946 | AW71: 871.0816777 | AX71: 4530 | AY71: 60.9 | AZ71: 19.18322296 | BA71: 5950 | BB71: 3608.247423 | BC71: 1649 | BD71: 973 | BE71: 1710.017575 | BF71: 569 | BG71: 1022 | BH71: 146000 | BI71: 7 | BJ71: 143.9491042 | BK71: 6582 | BL71: 16.75405997 | BM71: 7257 | BN71: 18.47222929 | BO71: 3178 | BP71: 8.089395713 | BQ71: 1046 | BR71: 2.662526091 | BS71: 6179 | BT71: 15.72824925 | BU71: 8724 | BV71: 22.20638395 | BW71: 6320 | BX71: 16.08715573 | BY71: 476.9910863 | BZ71: 230.306544 | CA71: 463.1495036 | CB71: 75.80259439 | CC71: 447.7860715 | CD71: 62.75817088 | CE71: 458.0042032 | CF71: 46.16276542 | CG71: 632.2197261 | CH71: 1352 | CI71: 400.8830022 | CJ71: 30.18433281 | CK71: 1634.74 | CL71: 18.99886221 | CM71: 551.21 | CN71: 6.406133599 | CO71: 6418.46 | CP71: 74.59500419 | CQ71: 4601 | CR71: 37.42690058 | CS71: 2306.43 | CT71: 167.1447206 | CU71: 349.4 | CV71: 4 | CW71: 3 | CX71: 3 | CY71: 3.835422857 | CZ71: 9069 | DA71: 7952 | DB71: 7311 | DC71: 6345 | DD71: 7009 | DE71: 6772 | DF71: 103.5 | DG71: 9.87 | DH71: 15.12 | DI71: Yes | DJ71: 106000 | DK71: 143000 | DL71: 0 | DM71: 31539 | DN71: 1258 | DO71: 240000 | DP71: 0 | DQ71: 0 | DR71: 0 | DS71: 12 | DT71: 1147 | DU71: 33.33333333 | DV71: 66.66666667 | DW71: 8.333333333 | DX71: 8.333333333 | DY71: 0 | DZ71: 50 | EA71: 50 | EB71: 164 | EC71: 84.1402439
A72: Narrandera Shire Council | B72: 10 | C72: Large Rural | D72: 4116.2 | E72: 5920 | F72: -5.461513893 | G72: 1.4 | H72: 2998 | I72: 50.64189189 | J72: 2922 | K72: 49.35810811 | L72: 25.91216216 | M72: 46.4527027 | N72: 27.63513514 | O72: 34.30743243 | P72: 38.05743243 | Q72: 27.63513514 | R72: 10 | S72: 2.3 | T72: 17 | U72: 4.4 | V72: 44761.90476 | W72: 2.4 | X72: Agriculture, forestry & fishing | Y72: 566 | Z72: n/a | AA72: n/a | AB72: n/a | AC72: n/a | AD72: 6.16 | AE72: 9.17 | AF72: 60.58 | AG72: 39.42 | AH72: 8.21 | AI72: 1.77 | AJ72: 18.5130719 | AK72: 16.87 | AL72: 19507 | AM72: 19563 | AN72: 17229 | AO72: 18930 | AP72: 1264 | AQ72: 529.76 | AR72: 2386 | AS72: 1302 | AT72: 545.6831517 | AU72: 2386 | AV72: 1342 | AW72: 561.2714345 | AX72: 2391 | AY72: 56.8 | AZ72: 26.59974906 | BA72: 2706 | BB72: 3161.214953 | BC72: 856 | BD72: 392 | BE72: 1110.481586 | BF72: 353 | BG72: n/a | BH72: n/a | BI72: 0 | BJ72: 128.742509 | BK72: 3244 | BL72: 18.82871902 | BM72: 3229 | BN72: 18.74165651 | BO72: 933 | BP72: 5.415288177 | BQ72: 1650 | BR72: 9.576876197 | BS72: 2923 | BT72: 16.96558129 | BU72: 4081 | BV72: 23.68680713 | BW72: 1169 | BX72: 6.785071681 | BY72: 547.972973 | BZ72: 157.6013514 | CA72: 459.1216216 | CB72: 278.7162162 | CC72: 493.75 | CD72: 86.31756757 | CE72: 197.4662162 | CF72: 58.27702703 | CG72: 689.3581081 | CH72: 1337 | CI72: 279.3810121 | CJ72: 28.76190476 | CK72: 450 | CL72: 16.72862454 | CM72: 0 | CN72: 0 | CO72: 2240 | CP72: 83.27137546 | CQ72: 2017 | CR72: 45.21998914 | CS72: 1555.59 | CT72: 262.7685811 | CU72: 14.4 | CV72: 2 | CW72: 2 | CX72: 1 | CY72: 6.997297297 | CZ72: 3251 | DA72: 3292 | DB72: 2161 | DC72: 2348 | DD72: 3474 | DE72: 3552 | DF72: 97.8 | DG72: 108.49 | DH72: 7.48 | DI72: Yes | DJ72: 17000 | DK72: 114000 | DL72: 0 | DM72: 10812 | DN72: 0 | DO72: 234597 | DP72: 0 | DQ72: 0 | DR72: 0 | DS72: 9 | DT72: 662.3333333 | DU72: 33.33333333 | DV72: 66.66666667 | DW72: 0 | DX72: 0 | DY72: 0 | DZ72: 55.55555556 | EA72: 44.44444444 | EB72: 109 | EC72: 54.31192661
A73: Narromine Shire Council | B73: 10 | C73: Large Rural | D73: 5260.4 | E73: 6822 | F73: 0.05866823115 | G73: 1.3 | H73: 3474 | I73: 50.92348285 | J73: 3348 | K73: 49.07651715 | L73: 29.63940193 | M73: 44.32717678 | N73: 26.03342128 | O73: 39.03547347 | P73: 34.93110525 | Q73: 26.03342128 | R73: 19.6 | S73: 1.4 | T73: 29 | U73: 4.6 | V73: 46558.70445 | W73: 2.5 | X73: Agriculture, forestry & fishing | Y73: 933 | Z73: n/a | AA73: n/a | AB73: n/a | AC73: n/a | AD73: 11.73 | AE73: 5.63 | AF73: 52.18 | AG73: 47.82 | AH73: 8.1 | AI73: 14.59 | AJ73: 2.497563978 | AK73: 16.83 | AL73: 17998 | AM73: 17707 | AN73: 17211 | AO73: 21868 | AP73: 1148 | AQ73: 525.1601098 | AR73: 2186 | AS73: 1177 | AT73: 537.4429224 | AU73: 2190 | AV73: 1254 | AW73: 568.192116 | AX73: 2207 | AY73: 60.9 | AZ73: 24.19574082 | BA73: 2961 | BB73: 3435.034803 | BC73: 862 | BD73: 513 | BE73: 1756.849315 | BF73: 292 | BG73: 248 | BH73: 124000 | BI73: 2 | BJ73: 115.7471744 | BK73: 3019 | BL73: 17.54110743 | BM73: 3095 | BN73: 17.98268549 | BO73: 2049 | BP73: 11.90517692 | BQ73: 1277 | BR73: 7.419673465 | BS73: 1973 | BT73: 11.46359886 | BU73: 3810 | BV73: 22.1370054 | BW73: 1988 | BX73: 11.55075243 | BY73: 442.5388449 | BZ73: 300.351803 | CA73: 340.6625623 | CB73: 187.1885078 | CC73: 289.211375 | CD73: 113.0167106 | CE73: 291.4101437 | CF73: 66.10964527 | CG73: 558.4872471 | CH73: 1302 | CI73: 390.122338 | CJ73: 42.89568509 | CK73: 579 | CL73: 12.86380804 | CM73: 1060 | CN73: 23.55032215 | CO73: 2862 | CP73: 63.58586981 | CQ73: 1158 | CR73: 74.20935412 | CS73: 1571.79 | CT73: 230.4001759 | CU73: 44.5 | CV73: 2 | CW73: 5 | CX73: 2 | CY73: 3.406918792 | CZ73: 3118 | DA73: 3125 | DB73: 2820 | DC73: 2780 | DD73: 1810 | DE73: 2625 | DF73: 68.95 | DG73: 152.49 | DH73: 11.85 | DI73: Yes | DJ73: 27000 | DK73: 112000 | DL73: 0 | DM73: 6596 | DN73: 0 | DO73: 255357 | DP73: 1 | DQ73: 2244 | DR73: 0 | DS73: 9 | DT73: 761.5555556 | DU73: 33.33333333 | DV73: 66.66666667 | DW73: 11.11111111 | DX73: 0 | DY73: 0 | DZ73: 55.55555556 | EA73: 44.44444444 | EB73: 79 | EC73: 86.35443038
A74: Newcastle City Council | B74: 5 | C74: Regional Town/City | D74: 186.8 | E74: 161225 | F74: 4.165993655 | G74: 856.8 | H74: 80696 | I74: 50.05179098 | J74: 80529 | K74: 49.94820902 | L74: 22.54799194 | M74: 56.44161886 | N74: 21.01038921 | O74: 40.08125291 | P74: 38.90835788 | Q74: 21.01038921 | R74: 2.6 | S74: 8.3 | T74: 110 | U74: 6.5 | V74: 59147.74831 | W74: 2.4 | X74: Health care/social assistance | Y74: 12001 | Z74: n/a | AA74: n/a | AB74: n/a | AC74: n/a | AD74: 5.58 | AE74: 3.6 | AF74: 81.94 | AG74: 18.06 | AH74: 4.33 | AI74: 8.62 | AJ74: 2.512216615 | AK74: 9.97 | AL74: 223072 | AM74: 222482 | AN74: 243630 | AO74: 281400 | AP74: 61663 | AQ74: 1008.64 | AR74: 61135 | AS74: 64868 | AT74: 1050.596009 | AU74: 61744 | AV74: 70660 | AW74: 1135.155108 | AX74: 62247 | AY74: 70.5 | AZ74: 18.98404742 | BA74: 34 | BB74: 1888.888889 | BC74: 18 | BD74: 42514 | BE74: 9091.958939 | BF74: 4676 | BG74: n/a | BH74: n/a | BI74: 0 | BJ74: 149.1401413 | BK74: 51031 | BL74: 20.9461068 | BM74: 10815 | BN74: 4.439108484 | BO74: 52717 | BP74: 21.6381398 | BQ74: 9245 | BR74: 3.794688667 | BS74: 36625 | BT74: 15.03304191 | BU74: 34157 | BV74: 14.02003037 | BW74: 49040 | BX74: 20.12888396 | BY74: 316.5203908 | BZ74: 326.977826 | CA74: n/a | CB74: 57.3422236 | CC74: 227.1670026 | CD74: 67.08016747 | CE74: 304.1711893 | CF74: 45.20390758 | CG74: 211.859203 | CH74: n/a | CI74: 328.7547994 | CJ74: 35.42005269 | CK74: 15765.4284 | CL74: 21.61352577 | CM74: 14275 | CN74: 19.5702313 | CO74: 42901.99 | CP74: 58.81624292 | CQ74: 28216 | CR74: 56.22236358 | CS74: 884.5 | CT74: 5.486121879 | CU74: 10395 | CV74: 8 | CW74: 17 | CX74: 9 | CY74: 7.948047759 | CZ74: 12466 | DA74: 14731 | DB74: 10923 | DC74: 15898 | DD74: 28406 | DE74: 23866 | DF74: 119.02 | DG74: 68.53 | DH74: 9.36 | DI74: Yes | DJ74: 73000 | DK74: 412000 | DL74: 5688 | DM74: 6563 | DN74: 0 | DO74: 390974 | DP74: 9 | DQ74: 39400 | DR74: 5 | DS74: 13 | DT74: 12309.30769 | DU74: 53.84615385 | DV74: 46.15384615 | DW74: 0 | DX74: 7.692307692 | DY74: 0 | DZ74: 92.30769231 | EA74: 7.692307692 | EB74: 972 | EC74: 165.8693416
A75: North Sydney Council | B75: 3 | C75: Metropolitan | D75: 10.5 | E75: 72618 | F75: 13.61829959 | G75: 6782 | H75: 34816 | I75: 47.94403591 | J75: 37802 | K75: 52.05596409 | L75: 14.39312567 | M75: 67.0343441 | N75: 18.57253023 | O75: 32.56217467 | P75: 48.86529511 | Q75: 18.57253023 | R75: 0.2 | S75: 19.6 | T75: 148 | U75: 2.7 | V75: 91093.33622 | W75: 2 | X75: Professional | Y75: 14435 | Z75: n/a | AA75: n/a | AB75: n/a | AC75: n/a | AD75: 1.46 | AE75: 3.3 | AF75: 63.67 | AG75: 36.33 | AH75: 1.05 | AI75: 62.39 | AJ75: 0.275789285 | AK75: 8.02 | AL75: 93414 | AM75: 93644 | AN75: 99236 | AO75: 160796 | AP75: 21238 | AQ75: 631.9 | AR75: 33610 | AS75: 22424 | AT75: 661.2798584 | AU75: 33910 | AV75: 24798 | AW75: 724.2829605 | AX75: 34238 | AY75: 82 | AZ75: 4.927273789 | BA75: n/a | BB75: n/a | BC75: 0 | BD75: 13504 | BE75: 3502.074689 | BF75: 3856 | BG75: n/a | BH75: n/a | BI75: 0 | BJ75: 414.1164191 | BK75: 19825 | BL75: 19.98205898 | BM75: 8915 | BN75: 8.985627028 | BO75: 19118 | BP75: 19.26945794 | BQ75: 10477 | BR75: 10.56000161 | BS75: 22033 | BT75: 22.20755135 | BU75: 2578 | BV75: 2.59842361 | BW75: 16268 | BX75: 16.39687947 | BY75: 273.0039384 | BZ75: 263.2680603 | CA75: n/a | CB75: 144.275524 | CC75: 303.409623 | CD75: 122.7657055 | CE75: 224.0215924 | CF75: 46.36591479 | CG75: 35.50084001 | CH75: n/a | CI75: 294.4389275 | CJ75: 68.64369821 | CK75: 14626.8 | CL75: 59.49263602 | CM75: 1750 | CN75: 7.117900911 | CO75: 8209.1 | CP75: 33.38946307 | CQ75: 3857 | CR75: 68.68809872 | CS75: 152.5 | CT75: 2.100030296 | CU75: 130.97 | CV75: 1 | CW75: 12 | CX75: 1 | CY75: 8.54487868 | CZ75: 12898 | DA75: 12363 | DB75: 5111 | DC75: 4598 | DD75: 9207 | DE75: 8621 | DF75: 106.8 | DG75: 278.7 | DH75: 0 | DI75: Yes | DJ75: 37000 | DK75: 295000 | DL75: 0 | DM75: 25864 | DN75: 5144 | DO75: 388679 | DP75: 10 | DQ75: 81493 | DR75: 6 | DS75: 13 | DT75: 5463.461538 | DU75: 61.53846154 | DV75: 38.46153846 | DW75: 0 | DX75: 7.692307692 | DY75: 0 | DZ75: 84.61538462 | EA75: 15.38461538 | EB75: 398 | EC75: 182.4572864
A76: Oberon Council | B76: 10 | C76: Large Rural | D76: 3626.9 | E76: 5318 | F76: -1.3541087 | G76: 1.5 | H76: 2754 | I76: 51.78638586 | J76: 2564 | K76: 48.21361414 | L76: 24.57690861 | M76: 46.63407296 | N76: 28.78901843 | O76: 35.87814968 | P76: 35.33283189 | Q76: 28.78901843 | R76: 3.2 | S76: 2.9 | T76: 79 | U76: 4.7 | V76: 50094.51796 | W76: 2.5 | X76: Manufacturing | Y76: 651 | Z76: n/a | AA76: n/a | AB76: n/a | AC76: n/a | AD76: 20.55 | AE76: 3.46 | AF76: 61.99 | AG76: 38.01 | AH76: 7.88 | AI76: 12.49 | AJ76: 3.183448115 | AK76: 12.61 | AL76: 13846 | AM76: 13287 | AN76: 13593.89089 | AO76: 17579.10338 | AP76: 1415 | AQ76: 649.0825688 | AR76: 2180 | AS76: 1461 | AT76: 664.0909091 | AU76: 2200 | AV76: 1622.391 | AW76: 727.8559892 | AX76: 2229 | AY76: 66.1 | AZ76: 18.57335128 | BA76: 1691 | BB76: 1469.157255 | BC76: 1151 | BD76: 180.619 | BE76: 802.7511111 | BF76: 225 | BG76: n/a | BH76: n/a | BI76: 0 | BJ76: 220.1948695 | BK76: 1092.7467 | BL76: 8.038532135 | BM76: 2778.838 | BN76: 20.44186321 | BO76: 927.37 | BP76: 6.821977633 | BQ76: 1285.114 | BR76: 9.45363659 | BS76: 867.637 | BT76: 6.382565974 | BU76: 3744.498 | BV76: 27.54551215 | BW76: 2897.655 | BX76: 21.31591231 | BY76: 205.4807634 | BZ76: 174.3832268 | CA76: 388.7901467 | CB76: 241.6536292 | CC76: 163.1509966 | CD76: 133.7442648 | CE76: 544.8768334 | CF76: 33.4680331 | CG76: 704.1177134 | CH76: 1384 | CI76: 96.19650067 | CJ76: 2.29468599 | CK76: 58 | CL76: 17.95665635 | CM76: 0 | CN76: 0 | CO76: 265 | CP76: 82.04334365 | CQ76: 2572 | CR76: 36.54083395 | CS76: 953.66 | CT76: 179.3268146 | CU76: 29.5 | CV76: 1 | CW76: 1 | CX76: 1 | CY76: 2.877773599 | CZ76: 2019.60982 | DA76: 1985.66 | DB76: 1762 | DC76: 2064 | DD76: 6993.321 | DE76: 2362 | DF76: 296.08 | DG76: 206.39 | DH76: 3.46 | DI76: No | DJ76: 39190 | DK76: 110000 | DL76: 0 | DM76: 0 | DN76: 0 | DO76: 371466 | DP76: 1 | DQ76: 437 | DR76: 0 | DS76: 9 | DT76: 591.8888889 | DU76: 33.33333333 | DV76: 66.66666667 | DW76: 11.11111111 | DX76: 0 | DY76: 0 | DZ76: 22.22222222 | EA76: 77.77777778 | EB76: 74 | EC76: 71.86486486
A77: Orange City Council | B77: 4 | C77: Regional Town/City | D77: 283.9 | E77: 41809 | F77: 8.075481453 | G77: 145.9 | H77: 20669 | I77: 49.43672415 | J77: 21140 | K77: 50.56327585 | L77: 28.62063192 | M77: 51.10622115 | N77: 20.27314693 | O77: 42.30907221 | P77: 37.41778086 | Q77: 20.27314693 | R77: 5.4 | S77: 4.9 | T77: 90 | U77: 5.5 | V77: 56118.07105 | W77: 2.5 | X77: Health care/social assistance | Y77: 3157 | Z77: n/a | AA77: n/a | AB77: n/a | AC77: n/a | AD77: 9.8 | AE77: 1.81 | AF77: 67.77 | AG77: 32.23 | AH77: 6.49 | AI77: 4.95 | AJ77: 5.736797694 | AK77: 13.1 | AL77: 81551 | AM77: 79818 | AN77: 84264 | AO77: 113014 | AP77: 18901 | AQ77: 1184.421607 | AR77: 15958 | AS77: 19583 | AT77: 1205.181857 | AU77: 16249 | AV77: 20332 | AW77: 1233.214047 | AX77: 16487 | AY77: 67.8 | AZ77: 17.54109298 | BA77: 660 | BB77: 1769.436997 | BC77: 373 | BD77: 7234 | BE77: 5696.062992 | BF77: 1270 | BG77: n/a | BH77: n/a | BI77: 0 | BJ77: 94.84881343 | BK77: 5756 | BL77: 6.830912371 | BM77: 24230 | BN77: 28.75486566 | BO77: 11982 | BP77: 14.21959556 | BQ77: 11096 | BR77: 13.16813823 | BS77: 15257 | BT77: 18.10619007 | BU77: 6549 | BV77: 7.772002279 | BW77: 9394 | BX77: 11.14829583 | BY77: 137.6737066 | BZ77: 286.5890119 | CA77: 467.2917314 | CB77: 265.3974025 | CC77: 364.9214284 | CD77: 112.2485589 | CE77: 224.6884642 | CF77: 49.98923677 | CG77: 156.6409146 | CH77: 1135 | CI77: 382.9077455 | CJ77: 53.99607434 | CK77: 3624.84 | CL77: 13.88960096 | CM77: 10110.4 | CN77: 38.74086072 | CO77: 12362.27 | CP77: 47.36953832 | CQ77: 10456 | CR77: 57.93539043 | CS77: 484.02 | CT77: 11.5769332 | CU77: 602.9 | CV77: 1 | CW77: 8 | CX77: 1 | CY77: 4.406491425 | CZ77: 4446 | DA77: 5269 | DB77: 5780 | DC77: 7903 | DD77: 3725 | DE77: 10425 | DF77: 35.73 | DG77: 20.34 | DH77: 0.92 | DI77: No | DJ77: 95000 | DK77: 261000 | DL77: 0 | DM77: 33986 | DN77: 0 | DO77: 329924 | DP77: 4 | DQ77: 11828 | DR77: 0 | DS77: 12 | DT77: 3452.583333 | DU77: 0 | DV77: 100 | DW77: 0 | DX77: 8.333333333 | DY77: 0 | DZ77: 50 | EA77: 50 | EB77: 394 | EC77: 106.1142132
A78: Parkes Shire Council | B78: 11 | C78: Large Rural | D78: 5954.9 | E78: 15337 | F78: 1.893436088 | G78: 2.6 | H78: 7644 | I78: 49.84025559 | J78: 7693 | K78: 50.15974441 | L78: 28.28454065 | M78: 47.25174415 | N78: 24.4637152 | O78: 39.12759992 | P78: 36.40868488 | Q78: 24.4637152 | R78: 8.3 | S78: 2.2 | T78: 36 | U78: 8.3 | V78: 51115.40488 | W78: 2.5 | X78: Retail Trade | Y78: 1405 | Z78: n/a | AA78: n/a | AB78: n/a | AC78: n/a | AD78: 27.4 | AE78: 3.01 | AF78: 52.95 | AG78: 47.05 | AH78: 5.65 | AI78: 24.37 | AJ78: 1.963961116 | AK78: 24.88 | AL78: 33722 | AM78: 37877 | AN78: 36853 | AO78: 70343 | AP78: 3572 | AQ78: 616.2870945 | AR78: 5796 | AS78: 4041 | AT78: 695.1660072 | AU78: 5813 | AV78: 4581 | AW78: 782.2745902 | AX78: 5856 | AY78: 60.9 | AZ78: 22.96789617 | BA78: 3227 | BB78: 2266.151685 | BC78: 1424 | BD78: 2334 | BE78: 3601.851852 | BF78: 648 | BG78: 1179 | BH78: 589500 | BI78: 2 | BJ78: 78.85613108 | BK78: 3633 | BL78: 9.858084823 | BM78: 10195 | BN78: 27.66396223 | BO78: 2425 | BP78: 6.580196999 | BQ78: 2250 | BR78: 6.105337422 | BS78: 5208 | BT78: 14.13182102 | BU78: 8913 | BV78: 24.18527664 | BW78: 4229 | BX78: 11.47532087 | BY78: 236.8781378 | BZ78: 158.114364 | CA78: 556.2365521 | CB78: 146.704049 | CC78: 339.5709722 | CD78: 108.4957945 | CE78: 275.7384104 | CF78: 54.18269544 | CG78: 581.1436396 | CH78: 1133 | CI78: 290.8128415 | CJ78: 63.45010684 | CK78: 831.89 | CL78: 7.853293911 | CM78: 0 | CN78: 0 | CO78: 9760.99 | CP78: 92.14670609 | CQ78: 5149 | CR78: 34.67394062 | CS78: 2130.22 | CT78: 138.8941775 | CU78: 209.25 | CV78: 4 | CW78: 14 | CX78: 4 | CY78: 4.749364282 | CZ78: 6832 | DA78: 6740.435 | DB78: 5889 | DC78: 5460 | DD78: 5631 | DE78: 5320 | DF78: 105.85 | DG78: 199.03 | DH78: 1.24 | DI78: Yes | DJ78: 92000 | DK78: 134000 | DL78: 501 | DM78: 7125 | DN78: 35035 | DO78: 224661 | DP78: 0 | DQ78: 0 | DR78: 0 | DS78: 10 | DT78: 1521.7 | DU78: 40 | DV78: 60 | DW78: 0 | DX78: 0 | DY78: 0 | DZ78: 50 | EA78: 50 | EB78: 176 | EC78: 87.14204545
A79: Penrith City Council | B79: 7 | C79: Metropolitan Fringe | D79: 404.6 | E79: 197922 | F79: 7.210296245 | G79: 479.8 | H79: 98382 | I79: 49.70746051 | J79: 99540 | K79: 50.29253949 | L79: 27.50527986 | M79: 55.95790261 | N79: 16.53681753 | O79: 43.24228737 | P79: 40.2208951 | Q79: 16.53681753 | R79: 3 | S79: 14.6 | T79: 109 | U79: 4.1 | V79: 55346.93325 | W79: 2.9 | X79: Manufacturing | Y79: 12274 | Z79: n/a | AA79: n/a | AB79: n/a | AC79: n/a | AD79: 1.4 | AE79: 1.8 | AF79: 67.6 | AG79: 32.4 | AH79: 3 | AI79: 2.08 | AJ79: 7.070079707 | AK79: 5.25 | AL79: 192573 | AM79: 183543 | AN79: 200038 | AO79: 269417 | AP79: 66628 | AQ79: 1028.209877 | AR79: 64800 | AS79: 71138 | AT79: 1078.093506 | AU79: 65985 | AV79: 73724 | AW79: 1098.964001 | AX79: 67085 | AY79: 76.1 | AZ79: 14.91242454 | BA79: 1376 | BB79: 3192.575406 | BC79: 431 | BD79: 21703 | BE79: 6501.797484 | BF79: 3338 | BG79: n/a | BH79: n/a | BI79: 0 | BJ79: 187.9693811 | BK79: 36501 | BL79: 18.24703306 | BM79: 11072 | BN79: 5.53494836 | BO79: 36814 | BP79: 18.40350333 | BQ79: 35038 | BR79: 17.51567202 | BS79: 33631 | BT79: 16.81230566 | BU79: 32438 | BV79: 16.21591898 | BW79: 14544 | BX79: 7.270618582 | BY79: 184.4211356 | BZ79: 186.0025667 | CA79: n/a | CB79: 177.0293348 | CC79: 169.9204737 | CD79: 55.94122937 | CE79: 73.4834935 | CF79: 35.53925284 | CG79: 163.8928467 | CH79: n/a | CI79: 394.6485802 | CJ79: 59.93939404 | CK79: 22581 | CL79: 26.81017032 | CM79: 27569 | CN79: 32.73236728 | CO79: 34075.5 | CP79: 40.45746241 | CQ79: 45542 | CR79: 48.09851049 | CS79: 1083.87 | CT79: 5.476248219 | CU79: 880 | CV79: 2 | CW79: 51 | CX79: 3 | CY79: 3.106476289 | CZ79: 22181 | DA79: 18565 | DB79: 20522 | DC79: 18046.7 | DD79: 24810 | DE79: 23230 | DF79: 106.8 | DG79: 53.04 | DH79: 1.32 | DI79: Yes | DJ79: 128000 | DK79: 493000 | DL79: 25860 | DM79: 34095 | DN79: 13117 | DO79: 375000 | DP79: 0 | DQ79: 0 | DR79: 0 | DS79: 15 | DT79: 12942.26667 | DU79: 33.33333333 | DV79: 66.66666667 | DW79: 0 | DX79: 6.666666667 | DY79: 20 | DZ79: 46.66666667 | EA79: 33.33333333 | EB79: 1063.97 | EC79: 186.0221623
A80: Port Macquarie-Hastings Council | B80: 5 | C80: Regional Town/City | D80: 3683 | E80: 78128 | F80: 4.026416702 | G80: 21 | H80: 37718 | I80: 48.27718616 | J80: 40410 | K80: 51.72281384 | L80: 22.99943682 | M80: 43.57848659 | N80: 33.42207659 | O80: 31.08872619 | P80: 35.48919721 | Q80: 33.42207659 | R80: 3.3 | S80: 2.3 | T80: 75 | U80: 5.9 | V80: 48954.30454 | W80: 2.3 | X80: Health care/social assistance | Y80: 5946 | Z80: n/a | AA80: n/a | AB80: n/a | AC80: n/a | AD80: 7.44 | AE80: 2.27 | AF80: 63.5 | AG80: 36.5 | AH80: 5.34 | AI80: 3.27 | AJ80: 11.96422456 | AK80: 21.49 | AL80: 145591 | AM80: 137074 | AN80: 153724 | AO80: 228979 | AP80: 31722 | AQ80: 1024.21542 | AR80: 30972 | AS80: 32809 | AT80: 1044.041368 | AU80: 31425 | AV80: 33938 | AW80: 1066.72953 | AX80: 31815 | AY80: 68.5 | AZ80: 30.28131385 | BA80: 2231 | BB80: 1799.193548 | BC80: 1240 | BD80: 7141 | BE80: 3453.094778 | BF80: 2068 | BG80: n/a | BH80: n/a | BI80: 0 | BJ80: 163.394142 | BK80: 5547 | BL80: 3.608415082 | BM80: 57495 | BN80: 37.40144675 | BO80: 21879 | BP80: 14.23265072 | BQ80: 8982 | BR80: 5.842939294 | BS80: 18924 | BT80: 12.31037444 | BU80: 24442 | BV80: 15.89992454 | BW80: 16455 | BX80: 10.70424917 | BY80: 70.99887364 | BZ80: 280.0404464 | CA80: 654.2340774 | CB80: 114.9651853 | CC80: 242.2178988 | CD80: 81.67366373 | CE80: 210.6159123 | CF80: 32.04996928 | CG80: 312.8455867 | CH80: 1434 | CI80: 356.8756876 | CJ80: 58.54187466 | CK80: 8886.8648 | CL80: 18.93927339 | CM80: 16193.23 | CN80: 34.51025947 | CO80: 21842.85 | CP80: 46.55046714 | CQ80: 4324 | CR80: 87.58684044 | CS80: 1330.65025 | CT80: 17.03166918 | CU80: 1221.83 | CV80: 6 | CW80: 19 | CX80: 3 | CY80: 9.585999898 | CZ80: 19660 | DA80: 43760 | DB80: 17244 | DC80: 19944 | DD80: 17679 | DE80: 20301 | DF80: 87.08 | DG80: 79.41 | DH80: 8.02 | DI80: Yes | DJ80: 31000 | DK80: 205000 | DL80: 0 | DM80: 7564 | DN80: 0 | DO80: 304308 | DP80: 0 | DQ80: 0 | DR80: 0 | DS80: 9 | DT80: 8609 | DU80: 22.22222222 | DV80: 77.77777778 | DW80: 0 | DX80: 0 | DY80: 0 | DZ80: 77.77777778 | EA80: 22.22222222 | EB80: 507 | EC80: 154.0986193
A81: Port Stephens Council | B81: 4 | C81: Regional Town/City | D81: 858.5 | E81: 70447 | F81: 5.532252749 | G81: 81.2 | H81: 34779 | I81: 49.3690292 | J81: 35668 | K81: 50.6309708 | L81: 24.89531137 | M81: 47.02542337 | N81: 28.07926526 | O81: 35.31449175 | P81: 36.60624299 | Q81: 28.07926526 | R81: 3.6 | S81: 2.9 | T81: 89 | U81: 6.8 | V81: 54644.01353 | W81: 2.5 | X81: Retail Trade | Y81: 4320 | Z81: n/a | AA81: n/a | AB81: n/a | AC81: n/a | AD81: 4.09 | AE81: 3.23 | AF81: 80.45 | AG81: 19.55 | AH81: 2.69 | AI81: 4.71 | AJ81: 3.275205955 | AK81: 3.42 | AL81: 99262 | AM81: 107169 | AN81: 114678.4978 | AO81: 134694 | AP81: 27304 | AQ81: 908.5584986 | AR81: 30052 | AS81: 28110 | AT81: 925.3102472 | AU81: 30379 | AV81: 29265 | AW81: 946.5666138 | AX81: 30917 | AY81: 71.2 | AZ81: 19.20302746 | BA81: 832 | BB81: 1680.808081 | BC81: 495 | BD81: 7203 | BE81: 4048.903879 | BF81: 1779 | BG81: n/a | BH81: n/a | BI81: 0 | BJ81: 178.941732 | BK81: 26607 | BL81: 23.20006976 | BM81: 6326 | BN81: 5.51597855 | BO81: 20088 | BP81: 17.51580416 | BQ81: 7236 | BR81: 6.309456337 | BS81: 8737 | BT81: 7.618258709 | BU81: 13536 | BV81: 11.80276409 | BW81: 32155 | BX81: 28.0376684 | BY81: 377.6881911 | BZ81: 285.1505387 | CA81: n/a | CB81: 102.7155166 | CC81: 124.0223146 | CD81: 89.79800417 | CE81: 456.4424319 | CF81: 24.81297997 | CG81: 192.144449 | CH81: n/a | CI81: 379.8557428 | CJ81: 58.63181885 | CK81: 20317.60926 | CL81: 48.66227573 | CM81: 3738.14 | CN81: 8.953139964 | CO81: 17696.53 | CP81: 42.3845843 | CQ81: 17380 | CR81: 54.51095349 | CS81: 722.19 | CT81: 10.25153662 | CU81: 1299 | CV81: 5 | CW81: 23 | CX81: 3 | CY81: 5.146322767 | CZ81: 12250 | DA81: 22158 | DB81: 10728 | DC81: 11334 | DD81: 11042 | DE81: 7798 | DF81: 141.6 | DG81: 156.05 | DH81: 2.15 | DI81: Yes | DJ81: 77000 | DK81: 223000 | DL81: 0 | DM81: 19496 | DN81: 6007 | DO81: 324127 | DP81: 11 | DQ81: 4476 | DR81: 4 | DS81: 10 | DT81: 6972.8 | DU81: 10 | DV81: 90 | DW81: 10 | DX81: 10 | DY81: 0 | DZ81: 60 | EA81: 40 | EB81: 419 | EC81: 168.1312649
A82: Randwick City Council | B82: 3 | C82: Metropolitan | D82: 36.3 | E82: 145822 | F82: 10.71108614 | G82: 3957.4 | H82: 72117 | I82: 49.45550054 | J82: 73705 | K82: 50.54449946 | L82: 20.44273155 | M82: 61.99613227 | N82: 17.56113618 | O82: 41.32229705 | P82: 41.11656677 | Q82: 17.56113618 | R82: 1.4 | S82: 30.1 | T82: 134 | U82: 3.4 | V82: 71057.93955 | W82: 2.4 | X82: Health care/social assistance | Y82: 11508 | Z82: n/a | AA82: n/a | AB82: n/a | AC82: n/a | AD82: 2.91 | AE82: 4.03 | AF82: 89.41 | AG82: 10.59 | AH82: 2.27 | AI82: 0 | AJ82: 0 | AK82: 3.54 | AL82: 125051 | AM82: 131738 | AN82: 139507 | AO82: 151015 | AP82: 53074 | AQ82: 1092.867144 | AR82: 48564 | AS82: 55409 | AT82: 1125.215767 | AU82: 49243 | AV82: 57749 | AW82: 1164.388257 | AX82: 49596 | AY82: 76 | AZ82: 9.940317768 | BA82: n/a | BB82: n/a | BC82: 0 | BD82: 13553 | BE82: 6742.78607 | BF82: 2010 | BG82: n/a | BH82: n/a | BI82: 0 | BJ82: 355.937256 | BK82: 10283 | BL82: 7.370956296 | BM82: 8492 | BN82: 6.087149749 | BO82: 46520 | BP82: 33.34599698 | BQ82: 20451 | BR82: 14.65947945 | BS82: 31893 | BT82: 22.86121843 | BU82: 14414 | BV82: 10.33209803 | BW82: 7454 | BX82: 5.343101063 | BY82: 70.51748022 | BZ82: 319.0190781 | CA82: n/a | CB82: 140.2463277 | CC82: 218.7118542 | CD82: 58.23538286 | CE82: 51.11711539 | CF82: 53.96990852 | CG82: 98.84653893 | CH82: n/a | CI82: 609.4039842 | CJ82: 59.30076113 | CK82: 20230.245 | CL82: 41.83325236 | CM82: 6337 | CN82: 13.10400938 | CO82: 21792 | CP82: 45.06273826 | CQ82: 10441 | CR82: 62.06996767 | CS82: 302.9 | CT82: 2.077189999 | CU82: 796 | CV82: 9 | CW82: 12 | CX82: 3 | CY82: 5.900337398 | CZ82: 9780 | DA82: 7563 | DB82: 10223 | DC82: 7298 | DD82: 10554 | DE82: 7350 | DF82: 143.59 | DG82: 119.64 | DH82: 0.66 | DI82: Yes | DJ82: 108000 | DK82: 413000 | DL82: 0 | DM82: 26024 | DN82: 0 | DO82: 444816 | DP82: 0 | DQ82: 16000 | DR82: 3 | DS82: 15 | DT82: 9585.066667 | DU82: 13.33333333 | DV82: 86.66666667 | DW82: 0 | DX82: 6.666666667 | DY82: 6.666666667 | DZ82: 80 | EA82: 13.33333333 | EB82: 523 | EC82: 278.8183556
A83: Richmond Valley Council | B83: 4 | C83: Regional Town/City | D83: 3047.4 | E83: 23181 | F83: 1.077003575 | G83: 7.5 | H83: 11416 | I83: 49.24722833 | J83: 11765 | K83: 50.75277167 | L83: 26.37073465 | M83: 45.43807428 | N83: 28.19119106 | O83: 36.43932531 | P83: 35.36948363 | Q83: 28.19119106 | R83: 6.6 | S83: 1.8 | T83: 7 | U83: 9.6 | V83: 44286.27916 | W83: 2.4 | X83: Manufacturing | Y83: 1551 | Z83: n/a | AA83: n/a | AB83: n/a | AC83: n/a | AD83: 0 | AE83: 2.51 | AF83: 69.65 | AG83: 30.35 | AH83: 17 | AI83: 3.85 | AJ83: 7.304942493 | AK83: 5.44 | AL83: 46043 | AM83: 46451 | AN83: 47626 | AO83: 49353 | AP83: 5373 | AQ83: 650.0120977 | AR83: 8266 | AS83: 6087 | AT83: 735.0561526 | AU83: 8281 | AV83: 6298 | AW83: 755.9716721 | AX83: 8331 | AY83: 60.5 | AZ83: 28.84407634 | BA83: 1987 | BB83: 1296.151337 | BC83: 1533 | BD83: 1350 | BE83: 2027.027027 | BF83: 666 | BG83: n/a | BH83: n/a | BI83: 0 | BJ83: 152.8375215 | BK83: 1890 | BL83: 3.901734104 | BM83: 15374 | BN83: 31.73823287 | BO83: 6061 | BP83: 12.51238646 | BQ83: 2897 | BR83: 5.98059455 | BS83: 4722 | BT83: 9.748142031 | BU83: 11240 | BV83: 23.20396367 | BW83: 6256 | BX83: 12.91494633 | BY83: 81.53228937 | BZ83: 261.4641301 | CA83: 533.3678444 | CB83: 124.9730383 | CC83: 203.7013071 | CD83: 129.8477201 | CE83: 269.8761917 | CF83: 49.30762262 | CG83: 484.8798585 | CH83: 1391 | CI83: 345.3366943 | CJ83: 51.69254493 | CK83: 2942.52 | CL83: 22.8465036 | CM83: 1457.11 | CN83: 11.31338746 | CO83: 8479.9 | CP83: 65.84018659 | CQ83: 3172 | CR83: 70.70557813 | CS83: 1085.95 | CT83: 46.84655537 | CU83: 491 | CV83: 4 | CW83: 17 | CX83: 3 | CY83: 5.496613606 | CZ83: 4766 | DA83: 4569 | DB83: 4559 | DC83: 4696 | DD83: 4680 | DE83: 4279 | DF83: 109.37 | DG83: 98.97 | DH83: 1.18 | DI83: Yes | DJ83: 32000 | DK83: 101000 | DL83: 0 | DM83: 7162 | DN83: 6999 | DO83: 266266 | DP83: 1 | DQ83: 450 | DR83: 0 | DS83: 7 | DT83: 3283.285714 | DU83: 14.28571429 | DV83: 85.71428571 | DW83: 0 | DX83: 0 | DY83: 0 | DZ83: 57.14285714 | EA83: 42.85714286 | EB83: 253 | EC83: 91.62450593
A84: Ryde City Council | B84: 3 | C84: Metropolitan | D84: 40.5 | E84: 117171 | F84: 11.63927397 | G84: 2831.5 | H84: 57302 | I84: 48.90459243 | J84: 59869 | K84: 51.09540757 | L84: 21.50190747 | M84: 59.31416477 | N84: 19.18392776 | O84: 39.48502616 | P84: 41.33104608 | Q84: 19.18392776 | R84: 0.3 | S84: 42 | T84: 136 | U84: 7.3 | V84: 64128.49261 | W84: 2.6 | X84: Professional | Y84: 10451 | Z84: n/a | AA84: n/a | AB84: n/a | AC84: n/a | AD84: 8.13 | AE84: 4.29 | AF84: 67.03 | AG84: 32.97 | AH84: 3.58 | AI84: 12 | AJ84: 1.879209211 | AK84: 15.72 | AL84: 94781 | AM84: 93055 | AN84: 101491 | AO84: 179425 | AP84: 30420 | AQ84: 762.1004109 | AR84: 39916 | AS84: 31620.4243 | AT84: 769.7654292 | AU84: 41078 | AV84: 31834.7998 | AW84: 753.2546152 | AX84: 42263 | AY84: 79.4 | AZ84: 12.72507867 | BA84: n/a | BB84: n/a | BC84: 0 | BD84: 21046.2002 | BE84: 11159.17296 | BF84: 1886 | BG84: n/a | BH84: n/a | BI84: 0 | BJ84: 383.9578349 | BK84: 22848 | BL84: 22.512341 | BM84: 5533 | BN84: 5.45171493 | BO84: 21324 | BP84: 21.01073002 | BQ84: 13790 | BR84: 13.58741169 | BS84: 22738 | BT84: 22.403957 | BU84: 12691 | BV84: 12.50455705 | BW84: 2567 | BX84: 2.529288311 | BY84: 194.9970556 | BZ84: 181.9904243 | CA84: n/a | CB84: 117.6912376 | CC84: 194.0582567 | CD84: 47.22158213 | CE84: 21.90815133 | CF84: 48.2627954 | CG84: 108.3117836 | CH84: n/a | CI84: 417.693964 | CJ84: 43.24967296 | CK84: 9967.85 | CL84: 22.21207818 | CM84: 8436.96 | CN84: 18.80068571 | CO84: 26471 | CP84: 58.98723611 | CQ84: 8663 | CR84: 60.27786694 | CS84: 318.49 | CT84: 2.718164051 | CU84: 764.04 | CV84: 1 | CW84: 13 | CX84: 5 | CY84: 7.020132968 | CZ84: 14369 | DA84: 15752 | DB84: 6082 | DC84: 5630 | DD84: 6929 | DE84: 7847 | DF84: 88.3 | DG84: 126.15 | DH84: 3.46 | DI84: Yes | DJ84: 88000 | DK84: 342000 | DL84: 0 | DM84: 8100 | DN84: 2350 | DO84: 368638 | DP84: 1 | DQ84: 22530 | DR84: 4 | DS84: 12 | DT84: 9549.833333 | DU84: 8.333333333 | DV84: 91.66666667 | DW84: 0 | DX84: 25 | DY84: 16.66666667 | DZ84: 66.66666667 | EA84: 16.66666667 | EB84: 445 | EC84: 263.305618
A85: Shellharbour City Council | B85: 4 | C85: Regional Town/City | D85: 147.4 | E85: 69714 | F85: 4.198490397 | G85: 466.6 | H85: 34348 | I85: 49.26987406 | J85: 35366 | K85: 50.73012594 | L85: 27.42203861 | M85: 51.45881745 | N85: 21.11914393 | O85: 40.12536937 | P85: 38.7554867 | Q85: 21.11914393 | R85: 3 | S85: 10.8 | T85: 81 | U85: 6.9 | V85: 55864.93726 | W85: 2.7 | X85: Health care/social assistance | Y85: 2933 | Z85: n/a | AA85: n/a | AB85: n/a | AC85: n/a | AD85: 5.56 | AE85: 3.25 | AF85: 72.49 | AG85: 27.51 | AH85: 4.63 | AI85: 21.28 | AJ85: 0.6669506344 | AK85: 11.56 | AL85: 77954 | AM85: 82517.6436 | AN85: 84256 | AO85: 117986 | AP85: 25823 | AQ85: 1059.274756 | AR85: 24378 | AS85: 28776 | AT85: 1164.218959 | AU85: 24717 | AV85: 32161 | AW85: 1286.542923 | AX85: 24998 | AY85: 72.7 | AZ85: 23.34986799 | BA85: 316 | BB85: 3361.702128 | BC85: 94 | BD85: 4873 | BE85: 4442.114859 | BF85: 1097 | BG85: n/a | BH85: n/a | BI85: 0 | BJ85: 145.920143 | BK85: 20564 | BL85: 24.40657045 | BM85: 3443 | BN85: 4.086355868 | BO85: 27551 | BP85: 32.69915496 | BQ85: 7354 | BR85: 8.728161793 | BS85: 16391 | BT85: 19.45380744 | BU85: 4182 | BV85: 4.96344474 | BW85: 4771 | BX85: 5.662504747 | BY85: 294.9766188 | BZ85: 395.2003902 | CA85: n/a | CB85: 105.4881372 | CC85: 235.1177669 | CD85: 49.38749749 | CE85: 68.43675589 | CF85: 27.29724302 | CG85: 59.98795077 | CH85: n/a | CI85: 449.4759581 | CJ85: 44.33302273 | CK85: 9527.6282 | CL85: 21.98009579 | CM85: 12659.72 | CN85: 29.20578473 | CO85: 21159.27 | CP85: 48.81411948 | CQ85: 14203 | CR85: 53.62134274 | CS85: 395.48 | CT85: 5.672892102 | CU85: 721.1 | CV85: 4 | CW85: 24 | CX85: 4 | CY85: 5.387354047 | CZ85: 5748 | DA85: 10354 | DB85: 6482 | DC85: 7050 | DD85: 9920 | DE85: 9187 | DF85: 107.98 | DG85: 118.81 | DH85: 2.11 | DI85: Yes | DJ85: 54000 | DK85: 169000 | DL85: 0 | DM85: 15577 | DN85: 3003 | DO85: 379521 | DP85: 1 | DQ85: 3359 | DR85: 2 | DS85: 7 | DT85: 9823.142857 | DU85: No Data | DV85: No Data | DW85: No Data | DX85: No Data | DY85: No Data | DZ85: No Data | EA85: No Data | EB85: 347 | EC85: 200.9048991
A86: Shoalhaven City Council | B86: 5 | C86: Regional Town/City | D86: 4567 | E86: 100147 | F86: 4.524485451 | G86: 21.7 | H86: 49654 | I86: 49.58111576 | J86: 50493 | K86: 50.41888424 | L86: 22.91032183 | M86: 45.15562124 | N86: 31.93405694 | O86: 32.54715568 | P86: 35.51878738 | Q86: 31.93405694 | R86: 4.7 | S86: 3.4 | T86: 63 | U86: 8.2 | V86: 47856.51794 | W86: 2.4 | X86: Health care/social assistance | Y86: 6447 | Z86: n/a | AA86: n/a | AB86: n/a | AC86: n/a | AD86: 3.79 | AE86: 2.14 | AF86: 78.66 | AG86: 21.34 | AH86: 7.51 | AI86: 4.99 | AJ86: 6.252861627 | AK86: 8.88 | AL86: 190732 | AM86: 191007 | AN86: 203827 | AO86: 243498 | AP86: 46145 | AQ86: 879.0026097 | AR86: 52497 | AS86: 47610 | AT86: 902.0120496 | AU86: 52782 | AV86: 49678 | AW86: 933.8847636 | AX86: 53195 | AY86: 67.6 | AZ86: 24.54741987 | BA86: 1891 | BB86: 1969.791667 | BC86: 960 | BD86: 4874 | BE86: 2167.185416 | BF86: 2249 | BG86: n/a | BH86: n/a | BI86: 0 | BJ86: 229.6284363 | BK86: 33741 | BL86: 16.55374411 | BM86: 48014 | BN86: 23.55625113 | BO86: 34923 | BP86: 17.13364765 | BQ86: 8445 | BR86: 4.143219495 | BS86: 22842 | BT86: 11.20656243 | BU86: 26089 | BV86: 12.79958004 | BW86: 29773 | BX86: 14.60699515 | BY86: 336.9147353 | BZ86: 348.7173854 | CA86: 415.7288785 | CB86: 84.32604072 | CC86: 228.0847155 | CD86: 63.70635166 | CE86: 297.2929793 | CF86: 22.85640109 | CG86: 260.5070546 | CH86: 1132 | CI86: 313.7512924 | CJ86: 44.51020639 | CK86: 18207.52 | CL86: 30.10993027 | CM86: 10056.28 | CN86: 16.63015554 | CO86: 32206.35 | CP86: 53.25991419 | CQ86: 7323 | CR86: 85.62115887 | CS86: 1744.415 | CT86: 17.41854474 | CU86: 5290.62 | CV86: 12 | CW86: 32 | CX86: 4 | CY86: 4.911849581 | CZ86: 19568 | DA86: 23833 | DB86: 19667 | DC86: 21898 | DD86: 45493 | DE86: 51815 | DF86: 87.8 | DG86: 59.12 | DH86: 1.89 | DI86: Yes | DJ86: 214000 | DK86: 293000 | DL86: 0 | DM86: 51243 | DN86: 5119 | DO86: 304668 | DP86: 1 | DQ86: 2543 | DR86: 0 | DS86: 13 | DT86: 7616.615385 | DU86: 46.15384615 | DV86: 53.84615385 | DW86: 0 | DX86: 0 | DY86: 7.692307692 | DZ86: 38.46153846 | EA86: 53.84615385 | EB86: 775 | EC86: 129.2219355
A87: Singleton Council | B87: 4 | C87: Regional Town/City | D87: 4892.8 | E87: 24071 | F87: 1.045252288 | G87: 4.9 | H87: 12630 | I87: 52.46977691 | J87: 11441 | K87: 47.53022309 | L87: 27.79277969 | M87: 56.23779652 | N87: 15.96942379 | O87: 42.34140667 | P87: 41.68916954 | Q87: 15.96942379 | R87: 3.7 | S87: 2.7 | T87: 116 | U87: 4.8 | V87: 76781.94661 | W87: 2.7 | X87: Mining | Y87: 1935 | Z87: n/a | AA87: n/a | AB87: n/a | AC87: n/a | AD87: -4.04 | AE87: 1.43 | AF87: 40.3 | AG87: 59.7 | AH87: 2.73 | AI87: 5.65 | AJ87: 4.029319372 | AK87: 15.43 | AL87: 45005 | AM87: 48127 | AN87: 55102 | AO87: 96665 | AP87: 6129 | AQ87: 704.9689441 | AR87: 8694 | AS87: 6819 | AT87: 781.9954128 | AU87: 8720 | AV87: 6998 | AW87: 797.2203235 | AX87: 8778 | AY87: 74.4 | AZ87: 12.54272044 | BA87: 1430 | BB87: 1500.524659 | BC87: 953 | BD87: 1390 | BE87: 1546.162403 | BF87: 899 | BG87: 5437 | BH87: 110959.1837 | BI87: 49 | BJ87: 171.6050985 | BK87: 4209 | BL87: 7.638561214 | BM87: 9190 | BN87: 16.6781605 | BO87: 6464 | BP87: 11.73097165 | BQ87: 7580 | BR87: 13.75630649 | BS87: 7639 | BT87: 13.86338064 | BU87: 16166 | BV87: 29.33831803 | BW87: 3854 | BX87: 6.994301477 | BY87: 174.8577126 | BZ87: 268.5389057 | CA87: 321.3825765 | CB87: 314.901749 | CC87: 317.3528312 | CD87: 60.40463628 | CE87: 160.1096755 | CF87: 68.38103943 | CG87: 671.5965269 | CH87: 1045 | CI87: 388.4711779 | CJ87: 65.21174339 | CK87: 4679.42 | CL87: 29.57259772 | CM87: 792.3 | CN87: 5.007109679 | CO87: 10351.78 | CP87: 65.4202926 | CQ87: 7569 | CR87: 51.70675684 | CS87: 868.44 | CT87: 36.07826846 | CU87: 245.3 | CV87: 1 | CW87: 5 | CX87: 1 | CY87: 4.962028998 | CZ87: 7881 | DA87: 11440 | DB87: 8282 | DC87: 8537 | DD87: 5103 | DE87: 7155 | DF87: 71.32 | DG87: 77.1 | DH87: 3.33 | DI87: Yes | DJ87: 11000 | DK87: 134000 | DL87: 0 | DM87: 17752 | DN87: 0 | DO87: 275000 | DP87: 1 | DQ87: 6500 | DR87: 0 | DS87: 10 | DT87: 2388.4 | DU87: 50 | DV87: 50 | DW87: 0 | DX87: 0 | DY87: 10 | DZ87: 50 | EA87: 40 | EB87: 196 | EC87: 122.8112245
A88: Strathfield Municipal Council | B88: 2 | C88: Metropolitan | D88: 13.9 | E88: 40125 | F88: 9.96464688 | G88: 2840.4 | H88: 20369 | I88: 50.76386293 | J88: 19756 | K88: 49.23613707 | L88: 22.41246106 | M88: 61.43302181 | N88: 16.15451713 | O88: 43.40934579 | P88: 40.43613707 | Q88: 16.15451713 | R88: 0.3 | S88: 60.8 | T88: 128 | U88: 4.1 | V88: 56297.76559 | W88: 2.9 | X88: Health care/social assistance | Y88: 4978 | Z88: n/a | AA88: n/a | AB88: n/a | AC88: n/a | AD88: 1.29 | AE88: 3.36 | AF88: 73.96 | AG88: 26.04 | AH88: 5.9 | AI88: 0 | AJ88: 0 | AK88: 20.99 | AL88: 32461 | AM88: 32427 | AN88: 33421 | AO88: 40691 | AP88: 10271 | AQ88: 815.4823343 | AR88: 12595 | AS88: 10567 | AT88: 822.4626401 | AU88: 12848 | AV88: 10953 | AW88: 852.5062267 | AX88: 12848 | AY88: 76.7 | AZ88: 10.52303861 | BA88: n/a | BB88: n/a | BC88: 0 | BD88: 4924 | BE88: 4799.220273 | BF88: 1026 | BG88: n/a | BH88: n/a | BI88: 0 | BJ88: 423.4049135 | BK88: 7043 | BL88: 21.07357649 | BM88: 1882 | BN88: 5.63118997 | BO88: 6775 | BP88: 20.27168547 | BQ88: 2403 | BR88: 7.190090063 | BS88: 8290 | BT88: 24.80476347 | BU88: 6025 | BV88: 18.02758745 | BW88: 1003 | BX88: 3.001107088 | BY88: 175.5264798 | BZ88: 168.847352 | CA88: n/a | CB88: 59.88785047 | CC88: 206.6043614 | CD88: 46.90342679 | CE88: 24.99688474 | CF88: 38.70404984 | CG88: 150.1557632 | CH88: n/a | CI88: 511.2079701 | CJ88: 28.99462422 | CK88: 2396.89 | CL88: 18.67581826 | CM88: 1600.54 | CN88: 12.47090779 | CO88: 8836.77 | CP88: 68.85335187 | CQ88: 3293 | CR88: 43.13590054 | CS88: 97.02 | CT88: 2.417943925 | CU88: 104.98 | CV88: 0 | CW88: 4 | CX88: 2 | CY88: 5.304772586 | CZ88: 1752 | DA88: 2550 | DB88: 1125 | DC88: 2810 | DD88: 3895.5 | DE88: 3320 | DF88: 117.33 | DG88: 80.63 | DH88: 1.87 | DI88: Yes | DJ88: 40000 | DK88: 200000 | DL88: 0 | DM88: 10525 | DN88: 1154 | DO88: 402993 | DP88: 7 | DQ88: 15978 | DR88: 8 | DS88: 7 | DT88: 5640.142857 | DU88: 28.57142857 | DV88: 71.42857143 | DW88: 0 | DX88: 57.14285714 | DY88: 0 | DZ88: 100 | EA88: 0 | EB88: 145 | EC88: 276.7241379
A89: Sutherland Shire Council | B89: 3 | C89: Metropolitan | D89: 333.6 | E89: 226220 | F89: 2.90772786 | G89: 674.7 | H89: 111283 | I89: 49.1923791 | J89: 114937 | K89: 50.8076209 | L89: 24.63133233 | M89: 53.59561489 | N89: 21.77305278 | O89: 37.85606931 | P89: 40.37087791 | Q89: 21.77305278 | R89: 0.8 | S89: 11.6 | T89: 137 | U89: 4.5 | V89: 66107.42572 | W89: 2.7 | X89: Health care/social assistance | Y89: 20717 | Z89: n/a | AA89: n/a | AB89: n/a | AC89: n/a | AD89: 7.1 | AE89: 1.86 | AF89: 85.39 | AG89: 14.61 | AH89: 3.56 | AI89: 10.65 | AJ89: 1.72374801 | AK89: 4.54 | AL89: 201649 | AM89: 197390 | AN89: 205968 | AO89: 241435 | AP89: 89325 | AQ89: 1118.155872 | AR89: 79886 | AS89: 91652 | AT89: 1142.693281 | AU89: 80207 | AV89: 93415 | AW89: 1160.492447 | AX89: 80496 | AY89: 79.9 | AZ89: 16.81946929 | BA89: n/a | BB89: n/a | BC89: 0 | BD89: 15527 | BE89: 3452.746275 | BF89: 4497 | BG89: n/a | BH89: n/a | BI89: 0 | BJ89: 407.5697899 | BK89: 43673 | BL89: 21.20377923 | BM89: 15900 | BN89: 7.71964577 | BO89: 53256 | BP89: 25.85644372 | BQ89: 25425 | BR89: 12.34415055 | BS89: 45804 | BT89: 22.23840597 | BU89: 10359 | BV89: 5.029422046 | BW89: 11551 | BX89: 5.608152723 | BY89: 193.0554328 | BZ89: 235.4168509 | CA89: n/a | CB89: 112.3905932 | CC89: 202.4754664 | CD89: 70.28556273 | CE89: 51.06091415 | CF89: 28.48112457 | CG89: 45.79170719 | CH89: n/a | CI89: 454.4325184 | CJ89: 46.81967477 | CK89: 25584.01 | CL89: 25.1660027 | CM89: 24756.66 | CN89: 24.35217045 | CO89: 51320.34 | CP89: 50.48183669 | CQ89: 6540 | CR89: 90.0230355 | CS89: 820.5 | CT89: 3.627000265 | CU89: 2688.01 | CV89: 13 | CW89: 35 | CX89: 8 | CY89: 7.355512333 | CZ89: 19082 | DA89: 18438 | DB89: 27761 | DC89: 23101 | DD89: 21974 | DE89: 23606 | DF89: 93.09 | DG89: 116.44 | DH89: 2.86 | DI89: Yes | DJ89: 43000 | DK89: 411000 | DL89: 0 | DM89: 12751 | DN89: 37417 | DO89: 410000 | DP89: 7 | DQ89: 0 | DR89: 0 | DS89: 15 | DT89: 15004.66667 | DU89: 20 | DV89: 80 | DW89: 0 | DX89: 13.33333333 | DY89: 6.666666667 | DZ89: 53.33333333 | EA89: 40 | EB89: 1028 | EC89: 220.0583658
A90: Council of the City of Sydney | B90: 1 | C90: Metropolitan | D90: 26.7 | E90: 205339 | F90: 15.41085881 | G90: 7421 | H90: 108972 | I90: 53.06931465 | J90: 96367 | K90: 46.93068535 | L90: 10.60100614 | M90: 77.39542902 | N90: 12.00356484 | O90: 40.19791662 | P90: 47.79851855 | Q90: 12.00356484 | R90: 1.3 | S90: 29.9 | T90: 130 | U90: 4.4 | V90: 65790.32036 | W90: 1.9 | X90: Professional | Y90: 61940 | Z90: n/a | AA90: n/a | AB90: n/a | AC90: n/a | AD90: -6.76 | AE90: 2.92 | AF90: 78.68 | AG90: 21.32 | AH90: 1.16 | AI90: 0 | AJ90: 0 | AK90: 6.9 | AL90: 500738.87 | AM90: 525039.4182 | AN90: 567158.6805 | AO90: 679231.1515 | AP90: 54262.15 | AQ90: 616.1672193 | AR90: 88064 | AS90: 57068.51821 | AT90: 604.2449464 | AU90: 94446 | AV90: 59676.3619 | AW90: 609.9881624 | AX90: 97832 | AY90: 74.3 | AZ90: 2.930533977 | BA90: n/a | BB90: n/a | BC90: 0 | BD90: 199335.6591 | BE90: 10592.25565 | BF90: 18819 | BG90: n/a | BH90: n/a | BI90: 0 | BJ90: 229.420654 | BK90: 167085.92 | BL90: 29.46017101 | BM90: 47677.87 | BN90: 8.406442648 | BO90: 67252.18 | BP90: 11.85773597 | BQ90: 55561.69 | BR90: 9.796498049 | BS90: 116137.7 | BT90: 20.47710844 | BU90: 48460.32 | BV90: 8.544402273 | BW90: 64983.01 | BX90: 11.4576416 | BY90: 813.7076737 | BZ90: 327.517812 | CA90: n/a | CB90: 270.5851787 | CC90: 565.590073 | CD90: 232.191011 | CE90: 316.4669644 | CF90: 49.19391835 | CG90: 236.0015389 | CH90: n/a | CI90: 402.0053025 | CJ90: 65.51547919 | CK90: 39671.25 | CL90: 62.44490792 | CM90: 2036.49 | CN90: 3.20555643 | CO90: 21822.27 | CP90: 34.34955139 | CQ90: 18544 | CR90: 50.32679739 | CS90: 330.19 | CT90: 1.608023805 | CU90: 425.16 | CV90: 5 | CW90: 32 | CX90: 12 | CY90: 4.987162692 | CZ90: 24767 | DA90: 25966 | DB90: 43507.538 | DC90: 41806.61807 | DD90: 56417.36157 | DE90: 55458.2009 | DF90: 101.73 | DG90: 6.83 | DH90: 3.81 | DI90: Yes | DJ90: 642327.06 | DK90: 550865.72 | DL90: 28934 | DM90: 9437 | DN90: 8324 | DO90: 481246 | DP90: 7 | DQ90: 10800 | DR90: 0 | DS90: 10 | DT90: 19833.1 | DU90: 70 | DV90: 30 | DW90: 0 | DX90: 20 | DY90: 0 | DZ90: 60 | EA90: 40 | EB90: 1800 | EC90: 114.0772222
A91: Tamworth Regional Council | B91: 4 | C91: Regional Town/City | D91: 9884.2 | E91: 61121 | F91: 4.453558917 | G91: 6.1 | H91: 30304 | I91: 49.58034064 | J91: 30817 | K91: 50.41965936 | L91: 27.59280771 | M91: 48.73120531 | N91: 23.67598698 | O91: 39.31054793 | P91: 37.01346509 | Q91: 23.67598698 | R91: 8.4 | S91: 2 | T91: 69 | U91: 7.4 | V91: 49011.76282 | W91: 2.5 | X91: Health care/social assistance | Y91: 5565 | Z91: n/a | AA91: n/a | AB91: n/a | AC91: n/a | AD91: 9.84 | AE91: 3.23 | AF91: 69.88 | AG91: 30.12 | AH91: 4.76 | AI91: 4.5 | AJ91: 7.862787986 | AK91: 16.04 | AL91: 119689 | AM91: 166977 | AN91: 125963 | AO91: 156496 | AP91: 18843 | AQ91: 870.8693442 | AR91: 21637 | AS91: 19595 | AT91: 889.8728429 | AU91: 22020 | AV91: 20664 | AW91: 927.3853335 | AX91: 22282 | AY91: 65.8 | AZ91: 21.42985369 | BA91: 5359 | BB91: 1808.639892 | BC91: 2963 | BD91: 5366 | BE91: 2971.207087 | BF91: 1806 | BG91: 17 | BH91: 17000 | BI91: 1 | BJ91: 128.6931609 | BK91: 9525 | BL91: 7.561744322 | BM91: 34314 | BN91: 27.24133277 | BO91: 13625 | BP91: 10.81666839 | BQ91: 4458 | BR91: 3.539134508 | BS91: 14836 | BT91: 11.77806181 | BU91: 27246 | BV91: 21.63016124 | BW91: 21959 | BX91: 17.43289696 | BY91: 155.8384189 | BZ91: 222.9184732 | CA91: 531.4703621 | CB91: 72.93728833 | CC91: 242.7316307 | CD91: 29.94060961 | CE91: 359.2709543 | CF91: 40.34619852 | CG91: 445.7715024 | CH91: 1422 | CI91: 287.0478413 | CJ91: 46.63636482 | CK91: 6927.65 | CL91: 22.69490001 | CM91: 8103.14 | CN91: 26.54579144 | CO91: 15494.36 | CP91: 50.75934132 | CQ91: 27559 | CR91: 35.17054811 | CS91: 3188.71 | CT91: 52.17044878 | CU91: 849 | CV91: 6 | CW91: 23 | CX91: 6 | CY91: 3.288182458 | CZ91: 24605 | DA91: 24776 | DB91: 19360 | DC91: 20537 | DD91: 50932 | DE91: 50921 | DF91: 100.02 | DG91: 49.18 | DH91: 0.7 | DI91: Yes | DJ91: 119000 | DK91: 205000 | DL91: 9244 | DM91: 38794 | DN91: 0 | DO91: 302742 | DP91: 0 | DQ91: 0 | DR91: 0 | DS91: 9 | DT91: 6721.666667 | DU91: 22.22222222 | DV91: 77.77777778 | DW91: 0 | DX91: 0 | DY91: 0 | DZ91: 66.66666667 | EA91: 33.33333333 | EB91: 522 | EC91: 117.0900383
A92: Temora Shire Council | B92: 10 | C92: Large Rural | D92: 2802 | E92: 6071 | F92: -1.412796362 | G92: 2.2 | H92: 3028 | I92: 49.87646187 | J92: 3043 | K92: 50.12353813 | L92: 26.56893428 | M92: 42.59594795 | N92: 30.83511777 | O92: 34.08005271 | P92: 35.08482952 | Q92: 30.83511777 | R92: 1.8 | S92: 1.8 | T92: 46 | U92: 3.9 | V92: 44263.77597 | W92: 2.4 | X92: Agriculture, forestry & fishing | Y92: 681 | Z92: n/a | AA92: n/a | AB92: n/a | AC92: n/a | AD92: 1.97 | AE92: 1.79 | AF92: 52.74 | AG92: 47.26 | AH92: 3.12 | AI92: 13.32 | AJ92: 1.901800132 | AK92: 4.37 | AL92: 16591 | AM92: 15714 | AN92: 16481 | AO92: 18257 | AP92: 1193 | AQ92: 498.1210856 | AR92: 2395 | AS92: 1228 | AT92: 508.2781457 | AU92: 2416 | AV92: 1273 | AW92: 525.8157786 | AX92: 2421 | AY92: 60.7 | AZ92: 28.12887237 | BA92: 1763 | BB92: 1700.096432 | BC92: 1037 | BD92: 457 | BE92: 1294.617564 | BF92: 353 | BG92: n/a | BH92: n/a | BI92: 0 | BJ92: 145.7943458 | BK92: 1377 | BL92: 8.355075542 | BM92: 1612 | BN92: 9.780959893 | BO92: 1059 | BP92: 6.425580972 | BQ92: 2696 | BR92: 16.35823069 | BS92: 2214 | BT92: 13.43365087 | BU92: 3882 | BV92: 23.55439597 | BW92: 3641 | BX92: 22.09210606 | BY92: 226.8160105 | BZ92: 174.4358425 | CA92: 112.6667765 | CB92: 444.0784055 | CC92: 364.684566 | CD92: 152.8578488 | CE92: 599.736452 | CF92: 52.2154505 | CG92: 639.4333718 | CH92: n/a | CI92: 161.0904585 | CJ92: 12.11260942 | CK92: 444.8 | CL92: 10.5658226 | CM92: 50 | CN92: 1.187704879 | CO92: 3715 | CP92: 88.24647252 | CQ92: 1408 | CR92: 62.57309942 | CS92: 1240.16 | CT92: 204.2760665 | CU92: 40 | CV92: 2 | CW92: 2 | CX92: 2 | CY92: 7.194860814 | CZ92: 1930 | DA92: 1927.4 | DB92: 1919 | DC92: 1788 | DD92: 2702 | DE92: 2436 | DF92: 110.92 | DG92: 114.58 | DH92: 0 | DI92: Yes | DJ92: 21000 | DK92: 91000 | DL92: 0 | DM92: 12325 | DN92: 0 | DO92: 205812 | DP92: 0 | DQ92: 0 | DR92: 0 | DS92: 9 | DT92: 672.2222222 | DU92: 11.11111111 | DV92: 88.88888889 | DW92: 0 | DX92: 0 | DY92: 0 | DZ92: 55.55555556 | EA92: 44.44444444 | EB92: 80 | EC92: 75.8875
A93: Tenterfield Shire Council | B93: 10 | C93: Large Rural | D93: 7322.3 | E93: 6986 | F93: -0.5410022779 | G93: 1 | H93: 3472 | I93: 49.6993988 | J93: 3514 | K93: 50.3006012 | L93: 21.41425709 | M93: 43.04322932 | N93: 35.5425136 | O93: 27.52648153 | P93: 36.93100487 | Q93: 35.5425136 | R93: 6.7 | S93: 2.3 | T93: 14 | U93: 10.5 | V93: 43434.34343 | W93: 2.3 | X93: Agriculture, forestry & fishing | Y93: 943 | Z93: n/a | AA93: n/a | AB93: n/a | AC93: n/a | AD93: 9.75 | AE93: 4.67 | AF93: 51.43 | AG93: 48.57 | AH93: 5.96 | AI93: 8.9 | AJ93: 4.545222409 | AK93: 10.76 | AL93: 17488 | AM93: 16596 | AN93: 18146 | AO93: 21639 | AP93: 1096 | AQ93: 349.2670491 | AR93: 3138 | AS93: 1336 | AT93: 419.7298146 | AU93: 3183 | AV93: 1481 | AW93: 465.138191 | AX93: 3184 | AY93: 58.2 | AZ93: 28.86306533 | BA93: 1725 | BB93: 1269.315673 | BC93: 1359 | BD93: 190 | BE93: 785.1239669 | BF93: 242 | BG93: 8 | BH93: 727.2727273 | BI93: 11 | BJ93: 208.7431998 | BK93: 232 | BL93: 1.278518682 | BM93: 4267 | BN93: 23.5148242 | BO93: 2326 | BP93: 12.81825196 | BQ93: 1218 | BR93: 6.712223079 | BS93: 2238 | BT93: 12.33329659 | BU93: 6684 | BV93: 36.83456409 | BW93: 1181 | BX93: 6.508321393 | BY93: 33.20927569 | BZ93: 332.9516175 | CA93: 508.0160321 | CB93: 174.3486974 | CC93: 320.3549957 | CD93: 102.7769825 | CE93: 169.0523905 | CF93: 70.42656742 | CG93: 956.7706842 | CH93: 1726 | CI93: 182.7889447 | CJ93: 33.97125507 | CK93: 438.5 | CL93: 10.59818731 | CM93: 1900 | CN93: 45.92145015 | CO93: 1799 | CP93: 43.48036254 | CQ93: 1093 | CR93: 66.00311042 | CS93: 1689.19 | CT93: 241.79645 | CU93: 65 | CV93: 1 | CW93: 11 | CX93: 4 | CY93: 4.370312053 | CZ93: 3665 | DA93: 4433 | DB93: 3702 | DC93: 3495 | DD93: 4991 | DE93: 4612 | DF93: 108.22 | DG93: 118.11 | DH93: 5.63 | DI93: Yes | DJ93: 53000 | DK93: 134000 | DL93: 0 | DM93: 17319 | DN93: 15522 | DO93: 220579 | DP93: 1 | DQ93: 2500 | DR93: 0 | DS93: 10 | DT93: 698 | DU93: 30 | DV93: 70 | DW93: 0 | DX93: 0 | DY93: 0 | DZ93: 20 | EA93: 80 | EB93: 95 | EC93: 73.53684211
A94: Tweed Shire Council | B94: 5 | C94: Regional Town/City | D94: 1307.4 | E94: 92460 | F94: 3.89581203 | G94: 69.8 | H94: 44335 | I94: 47.95046507 | J94: 48125 | K94: 52.04953493 | L94: 23.48583171 | M94: 46.24810729 | N94: 30.266061 | O94: 32.72874757 | P94: 37.00519143 | Q94: 30.266061 | R94: 3.5 | S94: 3.7 | T94: 68 | U94: 6.6 | V94: 49055.07391 | W94: 2.4 | X94: Health care/social assistance | Y94: 6637 | Z94: n/a | AA94: n/a | AB94: n/a | AC94: n/a | AD94: 9.26 | AE94: 3.75 | AF94: 78.03 | AG94: 21.97 | AH94: 4.58 | AI94: 3.26 | AJ94: 11.91359128 | AK94: 17.59 | AL94: 180164 | AM94: 172170 | AN94: 170762 | AO94: 202087 | AP94: 43104 | AQ94: 1199.398965 | AR94: 35938 | AS94: 44734 | AT94: 1231.459561 | AU94: 36326 | AV94: 46688 | AW94: 1275.977043 | AX94: 36590 | AY94: 68.3 | AZ94: 24.12954359 | BA94: 2958 | BB94: 1958.940397 | BC94: 1510 | BD94: 4902 | BE94: 2738.547486 | BF94: 1790 | BG94: n/a | BH94: n/a | BI94: 0 | BJ94: 168.3006432 | BK94: 19317 | BL94: 11.31223574 | BM94: 58266 | BN94: 34.1211745 | BO94: 24315 | BP94: 14.23911643 | BQ94: 9746 | BR94: 5.70735878 | BS94: 20978 | BT94: 12.28493459 | BU94: 23958 | BV94: 14.03005352 | BW94: 14182 | BX94: 8.305126433 | BY94: 208.9227774 | BZ94: 262.9785853 | CA94: 569.954575 | CB94: 105.4077439 | CC94: 226.8873026 | CD94: 60.22063595 | CE94: 153.3852477 | CF94: 28.03374432 | CG94: 259.1174562 | CH94: 1442 | CI94: 327.2752118 | CJ94: 38.81537041 | CK94: 9676.63 | CL94: 23.8496897 | CM94: 8740.59 | CN94: 21.54266096 | CO94: 22156.19 | CP94: 54.60767399 | CQ94: 9565 | CR94: 72.0476928 | CS94: 1252 | CT94: 13.5409907 | CU94: 964 | CV94: 3 | CW94: 19 | CX94: 3 | CY94: 6.643499892 | CZ94: 15014 | DA94: 18389.2 | DB94: 14288 | DC94: 15462 | DD94: 22834 | DE94: 20479 | DF94: 111.5 | DG94: 67.51 | DH94: 3.09 | DI94: Yes | DJ94: 29000 | DK94: 150000 | DL94: 0 | DM94: 13208 | DN94: 7810 | DO94: 313789 | DP94: 7 | DQ94: 31000 | DR94: 1 | DS94: 7 | DT94: 13030 | DU94: 28.57142857 | DV94: 71.42857143 | DW94: 0 | DX94: 0 | DY94: 0 | DZ94: 57.14285714 | EA94: 42.85714286 | EB94: 664 | EC94: 139.246988
A95: Upper Hunter Shire Council | B95: 11 | C95: Large Rural | D95: 8096.1 | E95: 14537 | F95: 3.517766859 | G95: 1.8 | H95: 7400 | I95: 50.90458829 | J95: 7137 | K95: 49.09541171 | L95: 27.15828575 | M95: 49.63197358 | N95: 23.20974066 | O95: 38.54990713 | P95: 38.2403522 | Q95: 23.20974066 | R95: 3.9 | S95: 1.9 | T95: 86 | U95: 4.6 | V95: 60354.83336 | W95: 2.4 | X95: Agriculture, forestry & fishing | Y95: 1635 | Z95: n/a | AA95: n/a | AB95: n/a | AC95: n/a | AD95: 7.66 | AE95: 3.56 | AF95: 68.53 | AG95: 31.47 | AH95: 6.76 | AI95: 6.06 | AJ95: 4.710070161 | AK95: 10.2 | AL95: 38519 | AM95: 37084 | AN95: 37659 | AO95: 41830 | AP95: 3262 | AQ95: 635.3720296 | AR95: 5134 | AS95: 3488 | AT95: 674.6615087 | AU95: 5170 | AV95: 3743 | AW95: 714.3129771 | AX95: 5240 | AY95: 65.6 | AZ95: 21.64122137 | BA95: 5377 | BB95: 3356.429463 | BC95: 1602 | BD95: 575 | BE95: 863.3633634 | BF95: 666 | BG95: 89 | BH95: 89000 | BI95: 1 | BJ95: 195.0471984 | BK95: 1466 | BL95: 3.892827744 | BM95: 8457 | BN95: 22.45678324 | BO95: 4388 | BP95: 11.65192915 | BQ95: 4735 | BR95: 12.57335564 | BS95: 3592 | BT95: 9.538224594 | BU95: 9613 | BV95: 25.52643458 | BW95: 5408 | BX95: 14.36044505 | BY95: 100.8461168 | BZ95: 301.8504506 | CA95: 492.0547568 | CB95: 325.7205751 | CC95: 247.0936232 | CD95: 89.70213937 | CE95: 372.0162344 | CF95: 44.57590975 | CG95: 661.2781179 | CH95: 1253 | CI95: 385.1145038 | CJ95: 23.37165571 | CK95: 4055.776 | CL95: 25.15157514 | CM95: 1347 | CN95: 8.353314312 | CO95: 10722.56 | CP95: 66.49511055 | CQ95: 4960 | CR95: 50.9396637 | CS95: 1769.5 | CT95: 121.723877 | CU95: 175.1 | CV95: 3 | CW95: 10 | CX95: 5 | CY95: 3.116461443 | CZ95: 8201 | DA95: 6833 | DB95: 7911 | DC95: 7883 | DD95: 6380 | DE95: 6332 | DF95: 100.76 | DG95: 161.08 | DH95: 0.85 | DI95: Yes | DJ95: 35000 | DK95: 123000 | DL95: 0 | DM95: 5782 | DN95: 0 | DO95: 257243 | DP95: 0 | DQ95: 0 | DR95: 0 | DS95: 9 | DT95: 1628.666667 | DU95: 33.33333333 | DV95: 66.66666667 | DW95: 11.11111111 | DX95: 0 | DY95: 0 | DZ95: 55.55555556 | EA95: 44.44444444 | EB95: 202 | EC95: 71.96534653
A96: Upper Lachlan Shire Council | B96: 10 | C96: Large Rural | D96: 7127.5 | E96: 7876 | F96: 4.845580405 | G96: 1.1 | H96: 3895 | I96: 49.45403758 | J96: 3981 | K96: 50.54596242 | L96: 24.25088878 | M96: 44.10868461 | N96: 31.64042661 | O96: 31.58963941 | P96: 36.76993398 | Q96: 31.64042661 | R96: 1.7 | S96: 2 | T96: 113 | U96: 2.4 | V96: 47986.57718 | W96: 2.4 | X96: Agriculture, forestry & fishing | Y96: 1226 | Z96: n/a | AA96: n/a | AB96: n/a | AC96: n/a | AD96: 13.01 | AE96: 6.4 | AF96: 65.28 | AG96: 34.72 | AH96: 2.36 | AI96: 22.37 | AJ96: 1.473554651 | AK96: 15.94 | AL96: 22862 | AM96: 24363 | AN96: 25443 | AO96: 31163 | AP96: 3225 | AQ96: 449.16 | AR96: 2872 | AS96: 1328 | AT96: 451.8543722 | AU96: 2939 | AV96: 1405 | AW96: 465.3858894 | AX96: 3019 | AY96: 65.5 | AZ96: 20.96720768 | BA96: 4626 | BB96: 1685.245902 | BC96: 2745 | BD96: 250 | BE96: 925.9259259 | BF96: 270 | BG96: 3 | BH96: 3000 | BI96: 1 | BJ96: 236.07987 | BK96: 3399 | BL96: 13.35927367 | BM96: 3973 | BN96: 15.61529694 | BO96: 1682 | BP96: 6.610855638 | BQ96: 1230 | BR96: 4.834335574 | BS96: 1507 | BT96: 5.923043666 | BU96: 6389 | BV96: 25.1110325 | BW96: 7263 | BX96: 28.54616201 | BY96: 431.5642458 | BZ96: 213.5601828 | CA96: 383.1894363 | CB96: 156.170645 | CC96: 191.3407821 | CD96: 121.2544439 | CE96: 922.1686135 | CF96: 46.9781615 | CG96: 811.198578 | CH96: 1570 | CI96: 319.3110301 | CJ96: 34.89925682 | CK96: 498.37 | CL96: 28.975 | CM96: 0 | CN96: 0 | CO96: 1221.63 | CP96: 71.025 | CQ96: 2987 | CR96: 29.68455744 | CS96: 1985.4 | CT96: 252.0822753 | CU96: 89.06 | CV96: 2 | CW96: 8 | CX96: 2 | CY96: 6.658456069 | CZ96: 5288 | DA96: 5878 | DB96: 4403 | DC96: 4148 | DD96: 4573 | DE96: 4313 | DF96: 106.03 | DG96: 151.28 | DH96: 1.55 | DI96: Yes | DJ96: 45000 | DK96: 123000 | DL96: 0 | DM96: 1798 | DN96: 0 | DO96: 291570 | DP96: 0 | DQ96: 0 | DR96: 0 | DS96: 9 | DT96: 862.3333333 | DU96: 11.11111111 | DV96: 88.88888889 | DW96: 0 | DX96: 0 | DY96: 0 | DZ96: 55.55555556 | EA96: 44.44444444 | EB96: 132 | EC96: 59.66666667
A97: Uralla Shire Council | B97: 10 | C97: Large Rural | D97: 3226.5 | E97: 6411 | F97: 2.773324784 | G97: 2 | H97: 3210 | I97: 50.07019186 | J97: 3201 | K97: 49.92980814 | L97: 26.7508969 | M97: 47.59007955 | N97: 25.65902355 | O97: 34.30042115 | P97: 40.0405553 | Q97: 25.65902355 | R97: 5.9 | S97: 2 | T97: 94 | U97: 5.3 | V97: 44243.98625 | W97: 2.6 | X97: Agriculture, forestry & fishing | Y97: 613 | Z97: n/a | AA97: n/a | AB97: n/a | AC97: n/a | AD97: -1.45 | AE97: 1.48 | AF97: 55.48 | AG97: 44.52 | AH97: 4.2 | AI97: 10.28 | AJ97: 1.809533657 | AK97: 6.94 | AL97: 17919 | AM97: 17519 | AN97: 20036 | AO97: 21190 | AP97: 1273 | AQ97: 577.324263 | AR97: 2177 | AS97: 1359 | AT97: 616.8860645 | AU97: 2203 | AV97: 1367 | AW97: 610.5404198 | AX97: 2239 | AY97: 69.5 | AZ97: 27.42295668 | BA97: 1973 | BB97: 3372.649573 | BC97: 585 | BD97: 101 | BE97: 639.2405063 | BF97: 158 | BG97: n/a | BH97: n/a | BI97: 0 | BJ97: 200.8194638 | BK97: 1548 | BL97: 7.726093033 | BM97: 2057 | BN97: 10.26652026 | BO97: 1820 | BP97: 9.083649431 | BQ97: 6938 | BR97: 34.62767019 | BS97: 1040 | BT97: 5.190656818 | BU97: 6034 | BV97: 30.11579158 | BW97: 599 | BX97: 2.989618686 | BY97: 241.4599906 | BZ97: 283.8870691 | CA97: 237.0924973 | CB97: 1082.202465 | CC97: 162.2211823 | CD97: 83.76228358 | CE97: 93.43316175 | CF97: 54.12572142 | CG97: 941.1948214 | CH97: 1286 | CI97: 181.3309513 | CJ97: 70.38831047 | CK97: 1111.71243 | CL97: 23.68029818 | CM97: 12.77 | CN97: 0.2720104585 | CO97: 3570.2 | CP97: 76.04790437 | CQ97: 3063 | CR97: 41.91162526 | CS97: 961.1 | CT97: 149.91421 | CU97: 55 | CV97: 1 | CW97: 2 | CX97: 2 | CY97: 3.437685229 | CZ97: 2503 | DA97: 2501 | DB97: 3273 | DC97: 3217 | DD97: 4694 | DE97: 3549 | DF97: 132.26 | DG97: 96.36 | DH97: 1.5 | DI97: No | DJ97: 15000 | DK97: 123000 | DL97: 0 | DM97: 0 | DN97: 7178 | DO97: 235000 | DP97: 3 | DQ97: 49592 | DR97: 8 | DS97: 9 | DT97: 712 | DU97: 44.44444444 | DV97: 55.55555556 | DW97: 0 | DX97: 0 | DY97: 0 | DZ97: 33.33333333 | EA97: 66.66666667 | EB97: 132 | EC97: 48.56818182
A98: Wagga Wagga City Council | B98: 4 | C98: Regional Town/City | D98: 4825.9 | E98: 63428 | F98: 0.8330153885 | G98: 13 | H98: 31281 | I98: 49.31733619 | J98: 32147 | K98: 50.68266381 | L98: 27.64551933 | M98: 53.03493725 | N98: 19.31954342 | O98: 44.06413571 | P98: 36.61632087 | Q98: 19.31954342 | R98: 4.6 | S98: 4.6 | T98: 108 | U98: 3.3 | V98: 51203.05164 | W98: 2.5 | X98: Health care/social assistance | Y98: 5229 | Z98: n/a | AA98: n/a | AB98: n/a | AC98: n/a | AD98: -13.9 | AE98: 3.39 | AF98: 69.27 | AG98: 30.73 | AH98: 5.91 | AI98: 4.03 | AJ98: 5.854128021 | AK98: 6.16 | AL98: 116962.0572 | AM98: 108141.4546 | AN98: 123015.3555 | AO98: 127274 | AP98: 21558.66189 | AQ98: 932.3067761 | AR98: 23124 | AS98: 22158 | AT98: 943.0140018 | AU98: 23497 | AV98: 23212 | AW98: 972.0268007 | AX98: 23880 | AY98: 72.7 | AZ98: 14.03685092 | BA98: 4631 | BB98: 2425.877423 | BC98: 1909 | BD98: 9845 | BE98: 5385.667396 | BF98: 1828 | BG98: n/a | BH98: n/a | BI98: 0 | BJ98: 129.2809825 | BK98: 20365 | BL98: 16.56135386 | BM98: 20063 | BN98: 16.31575951 | BO98: 10688 | BP98: 8.691762831 | BQ98: 7990 | BR98: 6.497678239 | BS98: 18400 | BT98: 14.96336415 | BU98: 8843 | BV98: 7.191360284 | BW98: 36618 | BX98: 29.77872112 | BY98: 321.0727124 | BZ98: 168.5060226 | CA98: 260.1374787 | CB98: 125.9696033 | CC98: 290.0927035 | CD98: 56.17392949 | CE98: 577.3160119 | CF98: 35.55212209 | CG98: 139.4179227 | CH98: n/a | CI98: 283.4589615 | CJ98: 38.16336673 | CK98: 5398.71 | CL98: 18.68828795 | CM98: 7995.45 | CN98: 27.67721769 | CO98: 15494.05 | CP98: 53.63452898 | CQ98: 15250 | CR98: 62.48000984 | CS98: 2296.273 | CT98: 36.2028284 | CU98: 1817.37 | CV98: 1 | CW98: 10 | CX98: 1 | CY98: 5.022781737 | CZ98: 16733 | DA98: 28575 | DB98: 12267 | DC98: 10566 | DD98: 15538.985 | DE98: 10566 | DF98: 147.07 | DG98: 30.28 | DH98: 30.64 | DI98: Yes | DJ98: 56000 | DK98: 240717 | DL98: 0 | DM98: 26077 | DN98: 2092 | DO98: 525174 | DP98: 4 | DQ98: 4000 | DR98: 5 | DS98: 11 | DT98: 5709 | DU98: 9.090909091 | DV98: 90.90909091 | DW98: 0 | DX98: 0 | DY98: 0 | DZ98: 63.63636364 | EA98: 36.36363636 | EB98: 456 | EC98: 139.0964912
A99: Walcha Council | B99: 9 | C99: Rural | D99: 6261.3 | E99: 3064 | F99: -6.755934267 | G99: 0.5 | H99: 1546 | I99: 50.45691906 | J99: 1518 | K99: 49.54308094 | L99: 21.93211488 | M99: 45.3002611 | N99: 32.76762402 | O99: 31.26631854 | P99: 35.96605744 | Q99: 32.76762402 | R99: 7.3 | S99: 1.7 | T99: 84 | U99: 5.8 | V99: 39370.07874 | W99: 2.4 | X99: Agriculture, forestry & fishing | Y99: 622 | Z99: n/a | AA99: n/a | AB99: n/a | AC99: n/a | AD99: 14.34 | AE99: 4.59 | AF99: 65.3 | AG99: 34.7 | AH99: 3.25 | AI99: 37.48 | AJ99: 0.668583272 | AK99: 7.24 | AL99: 10980 | AM99: 11893.13014 | AN99: 12812 | AO99: 16203 | AP99: 372 | AQ99: 411.9601329 | AR99: 903 | AS99: 384 | AT99: 424.7787611 | AU99: 904 | AV99: 390 | AW99: 429.5154185 | AX99: 908 | AY99: 61.7 | AZ99: 27.86343612 | BA99: 2668 | BB99: 3557.333333 | BC99: 750 | BD99: 106 | BE99: 762.5899281 | BF99: 139 | BG99: 1 | BH99: 333.3333333 | BI99: 3 | BJ99: 275.3410395 | BK99: 1159 | BL99: 9.046206681 | BM99: 1467 | BN99: 11.45020293 | BO99: 930 | BP99: 7.258819856 | BQ99: 1117 | BR99: 8.71838901 | BS99: 672 | BT99: 5.245082735 | BU99: 3975 | BV99: 31.025601 | BW99: 3492 | BX99: 27.25569778 | BY99: 378.2637076 | BZ99: 303.5248042 | CA99: 406.0052219 | CB99: 364.5561358 | CC99: 219.3211488 | CD99: 72.78067885 | CE99: 1139.686684 | CF99: 76.69712794 | CG99: 1297.32376 | CH99: 1061 | CI99: 359.030837 | CJ99: 60.4048208 | CK99: 387.33 | CL99: 18.31347518 | CM99: 864.04 | CN99: 40.85295508 | CO99: 863.63 | CP99: 40.83356974 | CQ99: 1041 | CR99: 37.06166868 | CS99: 931.63 | CT99: 304.0567885 | CU99: 32 | CV99: 1 | CW99: 0 | CX99: 1 | CY99: 3.187010444 | CZ99: 2379 | DA99: 3441 | DB99: 1837 | DC99: 1703 | DD99: 2016.844 | DE99: 1703 | DF99: 118.43 | DG99: 53.3 | DH99: 8.28 | DI99: Yes | DJ99: 60000 | DK99: 100000 | DL99: 0 | DM99: 0 | DN99: 0 | DO99: 220000 | DP99: 0 | DQ99: 0 | DR99: 0 | DS99: 8 | DT99: 387.25 | DU99: 25 | DV99: 75 | DW99: 12.5 | DX99: 0 | DY99: 12.5 | DZ99: 49 | EA99: 37.5 | EB99: 68.74 | EC99: 44.57375618
A100: Walgett Shire Council | B100: 10 | C100: Large Rural | D100: 22308.5 | E100: 6791 | F100: -5.798307671 | G100: 0.3 | H100: 3695 | I100: 54.41024886 | J100: 3096 | K100: 45.58975114 | L100: 24.0318068 | M100: 49.56560153 | N100: 26.40259167 | O100: 35.75320277 | P100: 37.84420557 | Q100: 26.40259167 | R100: 28.1 | S100: 5.6 | T100: 3 | U100: 9.8 | V100: 42822.67793 | W100: 2.3 | X100: Agriculture, forestry & fishing | Y100: 680 | Z100: n/a | AA100: n/a | AB100: n/a | AC100: n/a | AD100: 8.73 | AE100: 5.85 | AF100: 55.27 | AG100: 44.73 | AH100: 9.58 | AI100: 12.26 | AJ100: 2.557799628 | AK100: 13.51 | AL100: 31465 | AM100: 21213 | AN100: 27476 | AO100: 31859 | AP100: 1213 | AQ100: 334.528406 | AR100: 3626 | AS100: 1238 | AT100: 338.436304 | AU100: 3658 | AV100: 1273 | AW100: 351.46328 | AX100: 3622 | AY100: 50.6 | AZ100: 17.91827719 | BA100: 3538 | BB100: 4298.90644 | BC100: 823 | BD100: 305 | BE100: 663.0434783 | BF100: 460 | BG100: n/a | BH100: n/a | BI100: 0 | BJ100: 242.1259441 | BK100: 3174 | BL100: 11.55189984 | BM100: 4261 | BN100: 15.50807978 | BO100: 1254 | BP100: 4.563983113 | BQ100: 2550 | BR100: 9.280826903 | BS100: 2357 | BT100: 8.578395691 | BU100: 7438 | BV100: 27.07089824 | BW100: 6442 | BX100: 23.44591644 | BY100: 467.3833014 | BZ100: 184.6561626 | CA100: 548.5201001 | CB100: 375.4969813 | CC100: 347.0770137 | CD100: 78.92799293 | CE100: 948.6084524 | CF100: 59.1959947 | CG100: 1095.273156 | CH100: 1692 | CI100: 334.8978465 | CJ100: 0 | CK100: 0 | CL100: 0 | CM100: 0 | CN100: 0 | CO100: 1900 | CP100: 100 | CQ100: 2182 | CR100: 35.36729858 | CS100: 2374.92 | CT100: 349.7158003 | CU100: 81.42 | CV100: 6 | CW100: 5 | CX100: 2 | CY100: 1.795759093 | CZ100: 2151 | DA100: 2151 | DB100: 4055 | DC100: 4032 | DD100: 3175 | DE100: 3872 | DF100: 82 | DG100: 75.83 | DH100: 11.88 | DI100: Yes | DJ100: 45000 | DK100: 116000 | DL100: 0 | DM100: 9103 | DN100: 5475 | DO100: 207218 | DP100: 0 | DQ100: 0 | DR100: 0 | DS100: 9 | DT100: 760 | DU100: 11.11111111 | DV100: 88.88888889 | DW100: 22.22222222 | DX100: 11.11111111 | DY100: 0 | DZ100: 44.44444444 | EA100: 55.55555556 | EB100: 102 | EC100: 66.57843137
A101: Warren Shire Council | B101: 9 | C101: Rural | D101: 10753.8 | E101: 2901 | F101: 2.400282386 | G101: 0.3 | H101: 1449 | I101: 49.94829369 | J101: 1452 | K101: 50.05170631 | L101: 25.85315408 | M101: 49.01758014 | N101: 25.12926577 | O101: 36.40124095 | P101: 38.46949328 | Q101: 25.12926577 | R101: 13.3 | S101: 1.5 | T101: 49 | U101: 4.9 | V101: 45283.01887 | W101: 2.4 | X101: Agriculture, forestry & fishing | Y101: 444 | Z101: n/a | AA101: n/a | AB101: n/a | AC101: n/a | AD101: 16.74 | AE101: 9.76 | AF101: 53.92 | AG101: 46.08 | AH101: 2.66 | AI101: 48.15 | AJ101: 0.723065799 | AK101: 15.18 | AL101: 11690 | AM101: 12249 | AN101: 11519 | AO101: 14485 | AP101: 519 | AQ101: 476.584022 | AR101: 1089 | AS101: 532 | AT101: 486.7337603 | AU101: 1093 | AV101: 546 | AW101: 493.2249322 | AX101: 1107 | AY101: 55.8 | AZ101: 18.51851852 | BA101: 3690 | BB101: 5324.675325 | BC101: 693 | BD101: 173 | BE101: 1373.015873 | BF101: 126 | BG101: n/a | BH101: n/a | BI101: 0 | BJ101: 150.5984559 | BK101: 2883 | BL101: 25.03690838 | BM101: 1911 | BN101: 16.59574468 | BO101: 678 | BP101: 5.88797221 | BQ101: 237 | BR101: 2.058184976 | BS101: 1422 | BT101: 12.34910986 | BU101: 3351 | BV101: 29.10117238 | BW101: 1033 | BX101: 8.970907512 | BY101: 993.795243 | BZ101: 233.7125129 | CA101: 476.3874526 | CB101: 81.69596691 | CC101: 490.1758014 | CD101: 182.3509135 | CE101: 356.0841089 | CF101: 115.4774216 | CG101: 1155.118925 | CH101: 1330 | CI101: 193.3152665 | CJ101: 0 | CK101: 2.04 | CL101: 0.1543069801 | CM101: 0 | CN101: 0 | CO101: 1320 | CP101: 99.84569302 | CQ101: 588 | CR101: 60.43068641 | CS101: 1323.96 | CT101: 456.3805584 | CU101: 70 | CV101: 1 | CW101: 1 | CX101: 1 | CY101: 8.39089969 | CZ101: 2401 | DA101: 1990 | DB101: 2364 | DC101: 2005 | DD101: 2339 | DE101: 2000 | DF101: 116.95 | DG101: 99.13 | DH101: 0.76 | DI101: Yes | DJ101: 25000 | DK101: 130000 | DL101: 0 | DM101: 7889 | DN101: 0 | DO101: 195580 | DP101: 0 | DQ101: 0 | DR101: 0 | DS101: 12 | DT101: 243.4166667 | DU101: 16.66666667 | DV101: 83.33333333 | DW101: 0 | DX101: 0 | DY101: 0 | DZ101: 66.66666667 | EA101: 33.33333333 | EB101: 75 | EC101: 38.68
A102: Warrumbungle Shire Council | B102: 10 | C102: Large Rural | D102: 12371.1 | E102: 9728 | F102: -5.763828344 | G102: 0.8 | H102: 4812 | I102: 49.46546053 | J102: 4916 | K102: 50.53453947 | L102: 24.88692434 | M102: 43.72944079 | N102: 31.38363487 | O102: 33.30592105 | P102: 35.31044408 | Q102: 31.38363487 | R102: 9.3 | S102: 1.9 | T102: 15 | U102: 5.5 | V102: 42680.89363 | W102: 2.4 | X102: Agriculture, forestry & fishing | Y102: 1263 | Z102: n/a | AA102: n/a | AB102: n/a | AC102: n/a | AD102: -0.92 | AE102: 1.78 | AF102: 45.94 | AG102: 54.06 | AH102: 8.32 | AI102: 5.24 | AJ102: 4.441895626 | AK102: 5.88 | AL102: 39070 | AM102: 40412 | AN102: 38925 | AO102: 45414 | AP102: 1846 | AQ102: 482.1102115 | AR102: 3829 | AS102: 1873 | AT102: 489.5452169 | AU102: 3826 | AV102: 1997 | AW102: 520.1875488 | AX102: 3839 | AY102: 59.5 | AZ102: 31.33628549 | BA102: 4851 | BB102: 2781.536697 | BC102: 1744 | BD102: 564 | BE102: 1496.02122 | BF102: 377 | BG102: n/a | BH102: n/a | BI102: 0 | BJ102: 141.1014396 | BK102: 8189 | BL102: 21.1810046 | BM102: 9160 | BN102: 23.69251461 | BO102: 2783 | BP102: 7.198282551 | BQ102: 4121 | BR102: 10.65904506 | BS102: 3522 | BT102: 9.109720139 | BU102: 8233 | BV102: 21.29481144 | BW102: 2654 | BX102: 6.864621592 | BY102: 841.796875 | BZ102: 286.0814145 | CA102: 494.7574013 | CB102: 423.6225329 | CC102: 362.0476974 | CD102: 446.8544408 | CE102: 272.8207237 | CF102: 62.70559211 | CG102: 846.3199013 | CH102: 1312 | CI102: 370.6694452 | CJ102: 26.17136072 | CK102: 523.22 | CL102: 25.04403599 | CM102: 0 | CN102: 0 | CO102: 1565.98 | CP102: 74.95596401 | CQ102: 2842 | CR102: 54.49159327 | CS102: 2667.71 | CT102: 274.2300576 | CU102: 94 | CV102: 6 | CW102: 10 | CX102: 6 | CY102: 3.754934211 | CZ102: 6831 | DA102: 6329 | DB102: 8587 | DC102: 6440 | DD102: 6508 | DE102: 6432.456615 | DF102: 101.2 | DG102: 45.84 | DH102: 0.19 | DI102: Yes | DJ102: 17000 | DK102: 123000 | DL102: 0 | DM102: 0 | DN102: 0 | DO102: 246312 | DP102: 5 | DQ102: 2750 | DR102: 0 | DS102: 9 | DT102: 1087.333333 | DU102: 11.11111111 | DV102: 88.88888889 | DW102: 0 | DX102: 0 | DY102: 0 | DZ102: 33.33333333 | EA102: 66.66666667 | EB102: 196 | EC102: 49.63265306
A103: Waverley Council | B103: 3 | C103: Metropolitan | D103: 9.2 | E103: 72699 | F103: 6.415773757 | G103: 7764.7 | H103: 36418 | I103: 50.09422413 | J103: 36281 | K103: 49.90577587 | L103: 19.43217926 | M103: 64.76430212 | N103: 15.80351862 | O103: 37.07616336 | P103: 47.12031802 | Q103: 15.80351862 | R103: 0.4 | S103: 18.9 | T103: 141 | U103: 2.1 | V103: 79577.87441 | W103: 2.3 | X103: Professional | Y103: 9093 | Z103: n/a | AA103: n/a | AB103: n/a | AC103: n/a | AD103: 3.2 | AE103: 11.84 | AF103: 89.39 | AG103: 10.61 | AH103: 2.92 | AI103: 24.74 | AJ103: 0.7496094945 | AK103: 12.61 | AL103: 113026 | AM103: 119934.4 | AN103: 120226 | AO103: 138013 | AP103: 28295 | AQ103: 1007.800256 | AR103: 28076 | AS103: 28962 | AT103: 1028.845471 | AU103: 28150 | AV103: 29668 | AW103: 1040.471347 | AX103: 28514 | AY103: 75.4 | AZ103: 7.936452269 | BA103: n/a | BB103: n/a | BC103: 0 | BD103: 11546 | BE103: 6167.735043 | BF103: 1872 | BG103: n/a | BH103: n/a | BI103: 0 | BJ103: 456.5127327 | BK103: 28114 | BL103: 23.38429292 | BM103: 8873 | BN103: 7.380267164 | BO103: 23137 | BP103: 19.24458936 | BQ103: 21238 | BR103: 17.66506413 | BS103: 19115 | BT103: 15.89922313 | BU103: 8797 | BV103: 7.317052884 | BW103: 10952 | BX103: 9.109510422 | BY103: 386.7178366 | BZ103: 318.2574726 | CA103: n/a | CB103: 292.1360679 | CC103: 262.9334654 | CD103: 122.0511974 | CE103: 150.6485646 | CF103: 75.33803766 | CG103: 121.005791 | CH103: n/a | CI103: 516.3779196 | CJ103: 33.50497582 | CK103: 6512.26 | CL103: 26.15552437 | CM103: 1968.46 | CN103: 7.906027017 | CO103: 16417.51 | CP103: 65.93848878 | CQ103: 6482 | CR103: 55.94671741 | CS103: 123.46 | CT103: 1.698235189 | CU103: 89 | CV103: 2 | CW103: 10 | CX103: 1 | CY103: 7.126425398 | CZ103: 12209 | DA103: 10392 | DB103: 13779 | DC103: 15286 | DD103: 18101 | DE103: 17777 | DF103: 101.82 | DG103: 60.75 | DH103: 1.39 | DI103: Yes | DJ103: 193000 | DK103: 261000 | DL103: 0 | DM103: 14020 | DN103: 0 | DO103: 320000 | DP103: 8 | DQ103: 24570 | DR103: 0 | DS103: 12 | DT103: 5980.75 | DU103: 50 | DV103: 50 | DW103: 8.333333333 | DX103: 16.66666667 | DY103: 0 | DZ103: 58.33333333 | EA103: 41.66666667 | EB103: 597 | EC103: 121.7738693
A104: Weddin Shire Council | B104: 9 | C104: Rural | D104: 3408.6 | E104: 3701 | F104: -1.332977873 | G104: 1.1 | H104: 1856 | I104: 50.14860848 | J104: 1845 | K104: 49.85139152 | L104: 23.5882194 | M104: 42.71818427 | N104: 33.69359633 | O104: 30.50526885 | P104: 35.80113483 | Q104: 33.69359633 | R104: 1.9 | S104: 0.9 | T104: 52 | U104: 5.1 | V104: 40404.0404 | W104: 2.3 | X104: Agriculture, forestry & fishing | Y104: 547 | Z104: n/a | AA104: n/a | AB104: n/a | AC104: n/a | AD104: 11.78 | AE104: 5.9 | AF104: 48.84 | AG104: 51.16 | AH104: 7.32 | AI104: 341.27 | AJ104: 0 | AK104: 11.17 | AL104: 11497 | AM104: 10781 | AN104: 9145 | AO104: 10954 | AP104: 583 | AQ104: 400.1372684 | AR104: 1457 | AS104: 600 | AT104: 409.556314 | AU104: 1465 | AV104: 647 | AW104: 440.1360544 | AX104: 1470 | AY104: 64.4 | AZ104: 32.58503401 | BA104: 1341 | BB104: 1350.453172 | BC104: 993 | BD104: 114 | BE104: 863.6363636 | BF104: 132 | BG104: 5 | BH104: 5000 | BI104: 1 | BJ104: 230.8753446 | BK104: 2140 | BL104: 23.40076545 | BM104: 1049 | BN104: 11.47074904 | BO104: 622 | BP104: 6.801530891 | BQ104: 373 | BR104: 4.078731547 | BS104: 1197 | BT104: 13.08911974 | BU104: 1957 | BV104: 21.39967195 | BW104: 1807 | BX104: 19.75943138 | BY104: 578.2221021 | BZ104: 168.0626858 | CA104: 109.7000811 | CB104: 100.783572 | CC104: 323.4261011 | CD104: 173.7368279 | CE104: 488.2464199 | CF104: 35.12564172 | CG104: 528.7760065 | CH104: n/a | CI104: 208.8435374 | CJ104: 22.36917769 | CK104: 223.64936 | CL104: 25.77646804 | CM104: 0 | CN104: 0 | CO104: 644 | CP104: 74.22353196 | CQ104: 992 | CR104: 53.40535463 | CS104: 1084.89 | CT104: 293.134288 | CU104: 11.5 | CV104: 2 | CW104: 2 | CX104: 1 | CY104: 3.732234531 | CZ104: 1600 | DA104: 1781 | DB104: 1076 | DC104: 1013 | DD104: 1224 | DE104: 1220 | DF104: 100.33 | DG104: 191.42 | DH104: 1.31 | DI104: Yes | DJ104: 4000 | DK104: 120000 | DL104: 0 | DM104: 0 | DN104: 8052 | DO104: 186379 | DP104: 0 | DQ104: 0 | DR104: 0 | DS104: 9 | DT104: 412.1111111 | DU104: 22.22222222 | DV104: 77.77777778 | DW104: 0 | DX104: 0 | DY104: 0 | DZ104: 44.44444444 | EA104: 55.55555556 | EB104: 59 | EC104: 62.72881356
A105: Wentworth Shire Council | B105: 10 | C105: Large Rural | D105: 26256.7 | E105: 6883 | F105: -3.423600393 | G105: 0.3 | H105: 3535 | I105: 51.35841929 | J105: 3348 | K105: 48.64158071 | L105: 26.456487 | M105: 47.85703908 | N105: 25.68647392 | O105: 36.81534215 | P105: 37.49818393 | Q105: 25.68647392 | R105: 10.3 | S105: 2.9 | T105: 65 | U105: 9.8 | V105: 43069.30693 | W105: 2.5 | X105: Agriculture, forestry & fishing | Y105: 774 | Z105: n/a | AA105: n/a | AB105: n/a | AC105: n/a | AD105: 2.41 | AE105: 5.8 | AF105: 53.14 | AG105: 46.86 | AH105: 10.03 | AI105: 36.3 | AJ105: 0.9592122575 | AK105: 18.58 | AL105: 21870 | AM105: 23010 | AN105: 22994 | AO105: 25123 | AP105: 1632 | AQ105: 667.2117743 | AR105: 2446 | AS105: 1682 | AT105: 685.1323829 | AU105: 2455 | AV105: 1769 | AW105: 709.0180361 | AX105: 2495 | AY105: 61.3 | AZ105: 21.80360721 | BA105: 1575 | BB105: 1502.862595 | BC105: 1048 | BD105: 1349 | BE105: 5129.277567 | BF105: 263 | BG105: n/a | BH105: n/a | BI105: 0 | BJ105: 97.80463243 | BK105: 4014 | BL105: 17.45672784 | BM105: 4256 | BN105: 18.50917631 | BO105: 1924 | BP105: 8.367400191 | BQ105: 985 | BR105: 4.283726189 | BS105: 2391 | BT105: 10.39836479 | BU105: 6658 | BV105: 28.95537966 | BW105: 2766 | BX105: 12.02922502 | BY105: 583.1759407 | BZ105: 279.529275 | CA105: 492.5177975 | CB105: 143.1062037 | CC105: 347.377597 | CD105: 125.8172309 | CE105: 401.8596542 | CF105: 83.9750109 | CG105: 967.3107657 | CH105: 1566 | CI105: 246.492986 | CJ105: 11.83841249 | CK105: 0 | CL105: 0 | CM105: 0 | CN105: 0 | CO105: 3571.4 | CP105: 100 | CQ105: 716 | CR105: 82.36453202 | CS105: 2318.755 | CT105: 336.881447 | CU105: 176 | CV105: 2 | CW105: 9 | CX105: 4 | CY105: 3.011477553 | CZ105: 3115 | DA105: 3106 | DB105: 2564 | DC105: 2564 | DD105: 3681 | DE105: 3681 | DF105: 100 | DG105: 72.14 | DH105: 11.54 | DI105: Yes | DJ105: 98000 | DK105: 118000 | DL105: 0 | DM105: 3805 | DN105: 0 | DO105: 211162 | DP105: 1 | DQ105: 100 | DR105: 0 | DS105: 9 | DT105: 764.8888889 | DU105: 11.11111111 | DV105: 88.88888889 | DW105: 0 | DX105: 0 | DY105: 0 | DZ105: 77.77777778 | EA105: 22.22222222 | EB105: 101.1 | EC105: 68.08110781
A106: Willoughby City Council | B106: 3 | C106: Metropolitan | D106: 22.4 | E106: 76354 | F106: 10.22824063 | G106: 3306.7 | H106: 37011 | I106: 48.47290253 | J106: 39343 | K106: 51.52709747 | L106: 24.08780156 | M106: 57.66037143 | N106: 18.25182702 | O106: 38.71309951 | P106: 43.03507347 | Q106: 18.25182702 | R106: 0.2 | S106: 35.1 | T106: 144 | U106: 3.9 | V106: 87044.71557 | W106: 2.6 | X106: Professional | Y106: 11375 | Z106: n/a | AA106: n/a | AB106: n/a | AC106: n/a | AD106: 8.98 | AE106: 4.27 | AF106: 77.49 | AG106: 22.51 | AH106: 1.35 | AI106: 3.74 | AJ106: 5.239942897 | AK106: 12.08 | AL106: 96411 | AM106: 98188 | AN106: 99486 | AO106: 135022 | AP106: 23812 | AQ106: 864.3507931 | AR106: 27549 | AS106: 24755 | AT106: 885.8471999 | AU106: 27945 | AV106: 26744 | AW106: 951.26983 | AX106: 28114 | AY106: 84.3 | AZ106: 7.167247635 | BA106: n/a | BB106: n/a | BC106: 0 | BD106: 19599 | BE106: 6563.630275 | BF106: 2986 | BG106: n/a | BH106: n/a | BI106: 0 | BJ106: 573.1600823 | BK106: 24354 | BL106: 24.48524089 | BM106: 4793 | BN106: 4.818828923 | BO106: 17949 | BP106: 18.04572509 | BQ106: 12538 | BR106: 12.60556583 | BS106: 26507 | BT106: 26.64984316 | BU106: 7687 | BV106: 7.728424355 | BW106: 5636 | BX106: 5.666371753 | BY106: 318.9616785 | BZ106: 235.0760929 | CA106: n/a | CB106: 164.2088168 | CC106: 347.1592844 | CD106: 62.7733976 | CE106: 73.81407654 | CF106: 60.36356969 | CG106: 100.6757996 | CH106: n/a | CI106: 519.3497901 | CJ106: 59.91058694 | CK106: 12960 | CL106: 41.51557475 | CM106: 5875.12 | CN106: 18.82013762 | CO106: 12382.09 | CP106: 39.66431967 | CQ106: 5212 | CR106: 65.38027233 | CS106: 212.003 | CT106: 2.77658014 | CU106: 361.6 | CV106: 3 | CW106: 17 | CX106: 7 | CY106: 14.4612594 | CZ106: 12742 | DA106: 20518 | DB106: 6060 | DC106: 8049 | DD106: 7289 | DE106: 7264 | DF106: 100.34 | DG106: 96.92 | DH106: 1.48 | DI106: Yes | DJ106: 8000 | DK106: 358000 | DL106: 0 | DM106: 19969 | DN106: 0 | DO106: 311411 | DP106: 6 | DQ106: 15730 | DR106: 0 | DS106: 13 | DT106: 5705.076923 | DU106: 46.15384615 | DV106: 53.84615385 | DW106: 0 | DX106: 15.38461538 | DY106: 15.38461538 | DZ106: 46.15384615 | EA106: 38.46153846 | EB106: 366 | EC106: 208.6174863
A107: Wingecarribee Shire Council | B107: 4 | C107: Regional Town/City | D107: 2688.4 | E107: 48028 | F107: 3.588991459 | G107: 17.7 | H107: 23048 | I107: 47.98867327 | J107: 24980 | K107: 52.01132673 | L107: 24.84592321 | M107: 43.56000666 | N107: 31.59407013 | O107: 33.43882735 | P107: 34.96710252 | Q107: 31.59407013 | R107: 1.8 | S107: 4.5 | T107: 120 | U107: 2.9 | V107: 56017.38658 | W107: 2.5 | X107: Health care/social assistance | Y107: 5118 | Z107: n/a | AA107: n/a | AB107: n/a | AC107: n/a | AD107: 6.51 | AE107: 5.4 | AF107: 74.94 | AG107: 25.06 | AH107: 2.2 | AI107: 5.28 | AJ107: 6.053959861 | AK107: 15.89 | AL107: 88284.408 | AM107: 91634 | AN107: 97117 | AO107: 120666 | AP107: 22990.40805 | AQ107: 1164.779007 | AR107: 19738 | AS107: 24617 | AT107: 1220.294453 | AU107: 20173 | AV107: 25302 | AW107: 1237.927492 | AX107: 20439 | AY107: 75 | AZ107: 22.85826117 | BA107: 3829 | BB107: 2848.958333 | BC107: 1344 | BD107: 4441 | BE107: 3637.182637 | BF107: 1221 | BG107: 84 | BH107: 5600 | BI107: 15 | BJ107: 222.6113116 | BK107: 18724 | BL107: 19.27983772 | BM107: 24884 | BN107: 25.62270251 | BO107: 14063 | BP107: 14.48047201 | BQ107: 4855 | BR107: 4.999124767 | BS107: 11930 | BT107: 12.28415211 | BU107: 14348 | BV107: 14.77393247 | BW107: 8313 | BX107: 8.559778412 | BY107: 389.8559174 | BZ107: 292.8083618 | CA107: 436.6203048 | CB107: 101.086866 | CC107: 248.3967686 | CD107: 81.49412843 | CE107: 173.0865329 | CF107: 25.75580911 | CG107: 298.7424003 | CH107: 1285 | CI107: 347.9622291 | CJ107: 82.96043185 | CK107: 11414.8884 | CL107: 55.10927714 | CM107: 4952 | CN107: 23.90747337 | CO107: 4346.3 | CP107: 20.98324949 | CQ107: 6691 | CR107: 76.92838178 | CS107: 1206.42 | CT107: 25.11909719 | CU107: 547.31 | CV107: 4 | CW107: 23 | CX107: 3 | CY107: 5.601482469 | CZ107: 18756 | DA107: 19846 | DB107: 17148 | DC107: 18005 | DD107: 11608 | DE107: 14286 | DF107: 81.25 | DG107: 65.76 | DH107: 1.83 | DI107: Yes | DJ107: 64000 | DK107: 205000 | DL107: 0 | DM107: 4863 | DN107: 12453 | DO107: 297250 | DP107: 4 | DQ107: 45000 | DR107: 0 | DS107: 9 | DT107: 5287.111111 | DU107: 22.22222222 | DV107: 77.77777778 | DW107: 0 | DX107: 0 | DY107: 0 | DZ107: 66.66666667 | EA107: 33.33333333 | EB107: 370 | EC107: 129.8054054
A108: Wollondilly Shire Council | B108: 6 | C108: Metropolitan Fringe | D108: 2555.9 | E108: 47997 | F108: 10.90392347 | G108: 18.4 | H108: 24083 | I108: 50.17605267 | J108: 23914 | K108: 49.82394733 | L108: 28.83721899 | M108: 52.69287664 | N108: 18.46990437 | O108: 40.74004625 | P108: 40.79004938 | Q108: 18.46990437 | R108: 2.4 | S108: 5.2 | T108: 124 | U108: 2.8 | V108: 59778.83681 | W108: 3 | X108: Manufacturing | Y108: 3847 | Z108: n/a | AA108: n/a | AB108: n/a | AC108: n/a | AD108: -11.65 | AE108: 3.36 | AF108: 60.26 | AG108: 39.74 | AH108: 6.52 | AI108: 2.34 | AJ108: 6.281097085 | AK108: 8.59 | AL108: 49631 | AM108: 55546 | AN108: 54304 | AO108: 68188 | AP108: 18690 | AQ108: 1183.136038 | AR108: 15797 | AS108: 19560 | AT108: 1196.769457 | AU108: 16344 | AV108: 22023 | AW108: 1317.243854 | AX108: 16719 | AY108: 77.5 | AZ108: 15.07865303 | BA108: 910 | BB108: 2500 | BC108: 364 | BD108: 1170 | BE108: 2093.023256 | BF108: 559 | BG108: 1260 | BH108: 26808.51064 | BI108: 47 | BJ108: 227.5460528 | BK108: 5757 | BL108: 10.60142899 | BM108: 3737 | BN108: 6.881629346 | BO108: 9155 | BP108: 16.85879493 | BQ108: 7282 | BR108: 13.40969358 | BS108: 8501 | BT108: 15.65446376 | BU108: 17031 | BV108: 31.36233058 | BW108: 2841 | BX108: 5.23165881 | BY108: 119.9449966 | BZ108: 190.741088 | CA108: n/a | CB108: 151.7178157 | CC108: 177.1152364 | CD108: 77.85903286 | CE108: 59.19119945 | CF108: 30.06437902 | CG108: 354.8346772 | CH108: n/a | CI108: 416.2330283 | CJ108: 73.12844914 | CK108: 12044.516 | CL108: 49.83556293 | CM108: 5586 | CN108: 23.11271408 | CO108: 6538 | CP108: 27.05172299 | CQ108: 11195 | CR108: 64.79449039 | CS108: 871.7 | CT108: 18.16155176 | CU108: 344.96 | CV108: 2 | CW108: 13 | CX108: 1 | CY108: 1.59872492 | CZ108: 15274 | DA108: 9616 | DB108: 7114 | DC108: 12416 | DD108: 15017 | DE108: 16391 | DF108: 91.62 | DG108: 77.69 | DH108: 14.3 | DI108: Yes | DJ108: 23000 | DK108: 206000 | DL108: 0 | DM108: 6560 | DN108: 0 | DO108: 308276 | DP108: 0 | DQ108: 0 | DR108: 0 | DS108: 9 | DT108: 5231.555556 | DU108: 22.22222222 | DV108: 77.77777778 | DW108: 0 | DX108: 0 | DY108: 22.22222222 | DZ108: 55.55555556 | EA108: 22.22222222 | EB108: 216 | EC108: 222.2083333
A109: Wollongong City Council | B109: 5 | C109: Regional Town/City | D109: 684 | E109: 208875 | F109: 3.691954845 | G109: 302.3 | H109: 104180 | I109: 49.87672053 | J109: 104695 | K109: 50.12327947 | L109: 24.26475165 | M109: 53.13321364 | N109: 22.60203471 | O109: 39.24835428 | P109: 38.14961101 | Q109: 22.60203471 | R109: 2.2 | S109: 16.7 | T109: 100 | U109: 6.5 | V109: 59419.73292 | W109: 2.5 | X109: Health care/social assistance | Y109: 11773 | Z109: n/a | AA109: n/a | AB109: n/a | AC109: n/a | AD109: 0.26 | AE109: 2.25 | AF109: 79.55 | AG109: 20.45 | AH109: 4.79 | AI109: 6.44 | AJ109: 3.138256119 | AK109: 7.29 | AL109: 243760 | AM109: 241645.328 | AN109: 253211 | AO109: 281048 | AP109: 83607 | AQ109: 1116.546474 | AR109: 74880 | AS109: 90606 | AT109: 1201.065776 | AU109: 75438 | AV109: 97718 | AW109: 1282.927214 | AX109: 76168 | AY109: 71 | AZ109: 20.62020796 | BA109: 301 | BB109: 2467.213115 | BC109: 122 | BD109: 44884 | BE109: 11340.07074 | BF109: 3958 | BG109: 774 | BH109: 45529.41176 | BI109: 17 | BJ109: 136.6436627 | BK109: 34456 | BL109: 13.60762368 | BM109: 15300 | BN109: 6.042391523 | BO109: 57938 | BP109: 22.88131242 | BQ109: 29580 | BR109: 11.68195694 | BS109: 54109 | BT109: 21.36913483 | BU109: 45600 | BV109: 18.0086963 | BW109: 16228 | BX109: 6.40888429 | BY109: 164.9599042 | BZ109: 277.3812089 | CA109: n/a | CB109: 141.6157989 | CC109: 259.0496709 | CD109: 73.24955117 | CE109: 77.69239976 | CF109: 53.76421305 | CG109: 218.3123878 | CH109: n/a | CI109: 376.7723979 | CJ109: 51.69568855 | CK109: 21063.1 | CL109: 20.97070935 | CM109: 27897.74 | CN109: 27.77537005 | CO109: 51479.73 | CP109: 51.2539206 | CQ109: 20471 | CR109: 71.7231853 | CS109: 1018.61 | CT109: 4.876648713 | CU109: 2458 | CV109: 18 | CW109: 36 | CX109: 7 | CY109: 6.709725913 | CZ109: 14608 | DA109: 18519 | DB109: 17087 | DC109: 17526 | DD109: 36440 | DE109: 37412 | DF109: 97.4 | DG109: 92 | DH109: 5.92 | DI109: Yes | DJ109: 74000 | DK109: 435000 | DL109: 5075 | DM109: 31654 | DN109: 0 | DO109: 377003 | DP109: 1 | DQ109: 0 | DR109: 0 | DS109: 13 | DT109: 15907.23077 | DU109: No Data | DV109: No Data | DW109: No Data | DX109: No Data | DY109: No Data | DZ109: No Data | EA109: No Data | EB109: 1117 | EC109: 186.996419
A110: Woollahra Municipal Council | B110: 2 | C110: Metropolitan | D110: 12.3 | E110: 59307 | F110: 7.385746361 | G110: 4775.9 | H110: 28176 | I110: 47.50872578 | J110: 31131 | K110: 52.49127422 | L110: 20.44446693 | M110: 56.94774647 | N110: 22.6077866 | O110: 35.58264623 | P110: 41.80956717 | Q110: 22.6077866 | R110: 0.2 | S110: 13.4 | T110: 150 | U110: 1.6 | V110: 103245.6309 | W110: 2.3 | X110: Professional | Y110: 9319 | Z110: n/a | AA110: n/a | AB110: n/a | AC110: n/a | AD110: -4.91 | AE110: 2.67 | AF110: 92.2 | AG110: 7.8 | AH110: 3.99 | AI110: 0.18 | AJ110: 70.73039395 | AK110: 4.71 | AL110: 78468 | AM110: 86366 | AN110: 101052 | AO110: 115364 | AP110: 30254 | AQ110: 1227.39 | AR110: 24487 | AS110: 30726 | AT110: 1253.917728 | AU110: 24504 | AV110: 31481 | AW110: 1283.890701 | AX110: 24520 | AY110: 78.3 | AZ110: 3.907014682 | BA110: n/a | BB110: n/a | BC110: 0 | BD110: 4939 | BE110: 3458.683473 | BF110: 1428 | BG110: n/a | BH110: n/a | BI110: 0 | BJ110: 754.4572186 | BK110: 22118 | BL110: 21.88774097 | BM110: 6377 | BN110: 6.310612358 | BO110: 16758 | BP110: 16.58354115 | BQ110: 9944 | BR110: 9.84047817 | BS110: 12778 | BT110: 12.64497486 | BU110: 10239 | BV110: 10.13240708 | BW110: 22838 | BX110: 22.60024542 | BY110: 372.9407996 | BZ110: 282.5636097 | CA110: n/a | CB110: 167.6699209 | CC110: 215.4551739 | CD110: 107.52525 | CE110: 385.0810191 | CF110: 73.81927934 | CG110: 172.6440386 | CH110: n/a | CI110: 533.4420881 | CJ110: 40.87710359 | CK110: 6028.59 | CL110: 25.97410599 | CM110: 3591.97 | CN110: 15.47595864 | CO110: 13589.45 | CP110: 58.54997846 | CQ110: 6410 | CR110: 54.59696841 | CS110: 145.82 | CT110: 2.458731684 | CU110: 102 | CV110: 3 | CW110: 15 | CX110: 4 | CY110: 7.100628931 | CZ110: 5312 | DA110: 5567 | DB110: 6142 | DC110: 5969 | DD110: 5682.317 | DE110: 5720.06 | DF110: 99.34 | DG110: 115.87 | DH110: 1.04 | DI110: Yes | DJ110: 28000 | DK110: 279000 | DL110: 0 | DM110: 10792 | DN110: 0 | DO110: 315216 | DP110: 0 | DQ110: 0 | DR110: 0 | DS110: 15 | DT110: 3907.933333 | DU110: 46.66666667 | DV110: 53.33333333 | DW110: 0 | DX110: 20 | DY110: 13.33333333 | DZ110: 66.66666667 | EA110: 20 | EB110: 372 | EC110: 159.4274194
A111: Yass Valley Council | B111: 11 | C111: Large Rural | D111: 3998.1 | E111: 16564 | F111: 11.94917545 | G111: 4.1 | H111: 8322 | I111: 50.24148756 | J111: 8242 | K111: 49.75851244 | L111: 28.15744989 | M111: 50.62183048 | N111: 21.22071963 | O111: 36.76648153 | P111: 42.01279884 | Q111: 21.22071963 | R111: 2 | S111: 3.7 | T111: 135 | U111: 1.7 | V111: 62971.23708 | W111: 2.7 | X111: Public administration & safety | Y111: 1822 | Z111: n/a | AA111: n/a | AB111: n/a | AC111: n/a | AD111: -2.06 | AE111: 2.04 | AF111: 61.03 | AG111: 38.97 | AH111: 5.75 | AI111: 2.18 | AJ111: 11.12209421 | AK111: 4.51 | AL111: 29962 | AM111: 102175 | AN111: 29941 | AO111: 35323 | AP111: 3637 | AQ111: 682.7482636 | AR111: 5327 | AS111: 3806 | AT111: 707.5664622 | AU111: 5379 | AV111: 3862 | AW111: 708.2339996 | AX111: 5453 | AY111: 77.1 | AZ111: 13.90060517 | BA111: 3037 | BB111: 2087.285223 | BC111: 1455 | BD111: 489 | BE111: 1804.428044 | BF111: 271 | BG111: n/a | BH111: n/a | BI111: 0 | BJ111: 318.0159339 | BK111: 2830 | BL111: 9.451922113 | BM111: 6669 | BN111: 22.27380515 | BO111: 3221 | BP111: 10.75782372 | BQ111: 2813 | BR111: 9.395143783 | BS111: 2269 | BT111: 7.5782372 | BU111: 3595 | BV111: 12.006947 | BW111: 8544 | BX111: 28.53612104 | BY111: 170.8524511 | BZ111: 194.4578604 | CA111: 329.2079208 | CB111: 169.826129 | CC111: 136.9838203 | CD111: 73.41221927 | CE111: 515.8174354 | CF111: 29.34073895 | CG111: 217.0369476 | CH111: 1657 | CI111: 241.1516596 | CJ111: 50.08749026 | CK111: 1641.52 | CL111: 17.05043085 | CM111: 3010 | CN111: 31.26480144 | CO111: 4975.92 | CP111: 51.68476771 | CQ111: 4891 | CR111: 47.95701213 | CS111: 1233.574 | CT111: 74.47319488 | CU111: 256 | CV111: 2 | CW111: 4 | CX111: 2 | CY111: 5.474100459 | CZ111: 5770 | DA111: 9462 | DB111: 5388 | DC111: 5497 | DD111: 7467 | DE111: 7765 | DF111: 96.16 | DG111: 130.93 | DH111: 3.35 | DI111: Yes | DJ111: 19000 | DK111: 125000 | DL111: 0 | DM111: 0 | DN111: 7150 | DO111: 233339 | DP111: 2 | DQ111: 1755 | DR111: 0 | DS111: 9 | DT111: 1825.888889 | DU111: 33.33333333 | DV111: 66.66666667 | DW111: 0 | DX111: 0 | DY111: 0 | DZ111: 66.66666667 | EA111: 33.33333333 | EB111: 130 | EC111: 127.4153846

Sheet Sheet1 (hidden)
B1: 1 | H1: Total Road Length (inlcuding local, regional & state) (km) | I1: Road legth per capita
C2: Area | D2: Pop | F2: EFT | G2: Pop
B3: Albury | C3: 305.9 | D3: 51082 | E3: =D3/C3 -> 166.9892122 | F3: 456 | G3: =D3/F3 -> 112.0219298 | H3: 565.11 | I3: =((H3)/(D3/1000)) -> 11.06280099
B4: Armidale Dumaresq | C4: 4231.5 | D4: 25327 | E4: =D4/C4 -> 5.985347985 | F4: 231 | G4: =D4/F4 -> 109.6406926 | H4: 1064.94 | I4: =((H4)/(D4/1000)) -> 42.04761717
B5: Ashfield | C5: 8.3 | D5: 44498 | E5: 5361.204819 | F5: 178 | G5: 249.988764 | H5: 97.62 | I5: 2.193806463
B6: Auburn | C6: 32.5 | D6: 85446 | E6: 2629.107692 | F6: 279 | G6: 306.2580645 | H6: 225 | I6: 2.633242048
B7: Ballina | C7: 485.4 | D7: 41644 | E7: 85.79316028 | F7: 274 | G7: 151.9854015 | H7: 656.72 | I7: 15.7698588
B8: Balranald | C8: 21699.5 | D8: 2400 | E8: 0.1106016268 | F8: 63 | G8: 38.0952381 | H8: 1586.61 | I8: 661.0875
B9: Bankstown | C9: 76.8 | D9: 200357 | E9: 2608.815104 | F9: 721 | G9: 277.887656 | H9: 596.85 | I9: 2.978932605
B10: Bathurst Regional | C10: 3818 | D10: 41682 | E10: 10.91723415 | F10: 381 | G10: 109.4015748 | H10: 1334.88 | I10: 32.02533468
B11: Bega Valley | C11: 6279.9 | D11: 33468 | E11: 5.329384226 | F11: 360 | G11: 92.96666667 | H11: 1434.675 | I11: 42.86706705
B12: Bellingen | C12: 1602.1 | D12: 13032 | E12: 8.1343237 | F12: 135 | G12: 96.53333333 | H12: 563.96 | I12: 43.27501535
B13: Berrigan | C13: 2065.9 | D13: 8413 | E13: 4.07231715 | F13: 84 | G13: 100.1547619 | H13: 1376.04 | I13: 163.5611554
B14: Blacktown | C14: 340.3 | D14: 332424 | E14: 976.8557155 | F14: 1427 | G14: 232.9530484 | H14: 1350.62 | I14: 4.06294371
B15: Bland | C15: 8560.4 | D15: 5994 | E15: 0.7002009252 | F15: 115 | G15: 52.12173913 | H15: 3093.47 | I15: 516.0944278
B16: Blayney | C16: 1525.5 | D16: 7409 | E16: 4.856768273 | F16: 72 | G16: 102.9027778 | H16: 730.3 | I16: 98.5693076
B17: Blue Mountains | C17: 1432 | D17: 79688 | E17: 55.64804469 | F17: 512 | G17: 155.640625 | H17: 742.28 | I17: 9.314827829
B18: Bogan | C18: 14612.3 | D18: 3076 | E18: 0.2105075861 | F18: 66 | G18: 46.60606061 | H18: 1605.2 | I18: 521.846554
B19: Bombala | C19: 3945.2 | D19: 2422 | E19: 0.6139105749 | F19: 42 | G19: 57.66666667 | H19: 752.77 | I19: 310.8051197
B20: Boorowa | C20: 2578.6 | D20: 2602 | E20: 1.009074692 | F20: 56 | G20: 46.46428571 | H20: 721.1 | I20: 277.1329746
B21: Botany Bay | C21: 21.7 | D21: 44742 | E21: 2061.843318 | F21: 324 | G21: 138.0925926 | H21: 96.86 | I21: 2.164856287
B22: Bourke | C22: 41652 | D22: 2973 | E22: 0.07137712475 | F22: 81 | G22: 36.7037037 | H22: 2453.86 | I22: 825.3817693
B23: Brewarrina | C23: 19188.2 | D23: 1931 | E23: 0.1006347651 | F23: 43 | G23: 44.90697674 | H23: 1551.7 | I23: 803.5732781
B24: Broken Hill | C24: 178.3 | D24: 19048 | E24: 106.8311834 | F24: 161 | G24: 118.310559 | H24: 250.96 | I24: 13.1751365
B25: Burwood | C25: 36053 | D25: 36053 | E25: 1 | F25: 170 | G25: 212.0764706 | H25: 85.46 | I25: 2.370399135
B26: Byron | C26: 566.6 | D26: 32119 | E26: 56.68725732 | F26: 248 | G26: 129.5120968 | H26: 637.712 | I26: 19.85466546
B27: Cabonne | C27: 6026.8 | D27: 13776 | E27: 2.285790137 | F27: 166 | G27: 82.98795181 | H27: 1930.714 | I27: 140.1505517
B28: Camden | C28: 201.3 | D28: 67084 | E28: 333.25385 | F28: 342 | G28: 196.1520468 | H28: 558.878 | I28: 8.331017828
B29: Campbelltown | C29: 312 | D29: 156572 | E29: 501.8333333 | F29: 601 | G29: 260.5191348 | H29: 713.63 | I29: 4.557839205
B30: Canada Bay | C30: 19.9 | D30: 87480 | E30: 4395.979899 | F30: 316 | G30: 276.835443 | H30: 207 | I30: 2.366255144
B31: Canterbury | C31: 33.6 | D31: 150626 | E31: 4482.916667 | F31: 514 | G31: 293.0466926 | H31: 342.683 | I31: 2.275058755
B32: Carrathool | C32: 18939.5 | D32: 2795 | E32: 0.1475751736 | F32: 92 | G32: 30.38043478 | H32: 2619.66 | I32: 937.2665474
B33: Central Darling | C33: 53533.8 | D33: 2065 | E33: 0.03857376088 | F33: 50 | G33: 41.3 | H33: 2395.82 | I33: 1160.20339
B34: Cessnock | C34: 1966.4 | D34: 54979 | E34: 27.95921481 | F34: 280 | G34: 196.3535714 | H34: 1013.09 | I34: 18.42685389
B35: Clarence Valley | C35: 10441.2 | D35: 51003 | E35: 4.884783358 | F35: 542 | G35: 94.10147601 | H35: 2456.28 | I35: 48.15952003
B36: Cobar | C36: 45604.8 | D36: 5111 | E36: 0.1120715363 | F36: 131 | G36: 39.01526718 | H36: 2319.98 | I36: 453.9189982
B37: Coffs Harbour | C37: 1175.1 | D37: 72382 | E37: 61.59645988 | F37: 438 | G37: 165.2557078 | H37: 872.727 | I37: 12.05723799
B38: Conargo | C38: 8738.2 | D38: 1535 | E38: 0.1756654689 | F38: 34 | G38: 45.14705882 | H38: 1426.19 | I38: 929.1140065
B39: Coolamon | C39: 2431.3 | D39: 4308 | E39: 1.771891581 | F39: 68 | G39: 63.35294118 | H39: 1142.68 | I39: 265.2460539
B40: Cooma-Monaro | C40: 5183.8 | D40: 10216 | E40: 1.970755045 | F40: 160 | G40: 63.85 | H40: 1000.74 | I40: 97.95810493
B41: Coonamble | C41: 9925.3 | D41: 4292 | E41: 0.432430254 | F41: 98 | G41: 43.79591837 | H41: 1657.04 | I41: 386.0764212
B42: Cootamundra | C42: 1524 | D42: 7749 | E42: 5.084645669 | F42: 85.3 | G42: 90.84407972 | H42: 617.58 | I42: 79.69802555
B43: Corowa | C43: 2329 | D43: 11455 | E43: 4.918419923 | F43: 108 | G43: 106.0648148 | H43: 1322.95 | I43: 115.4910519
B44: Cowra | C44: 2809.6 | D44: 12574 | E44: 4.475370159 | F44: 167 | G44: 75.29341317 | H44: 1271.58 | I44: 101.1277239
B45: Deniliquin | C45: 143.2 | D45: 7437 | E45: 51.93435754 | F45: 71.88 | G45: 103.4641068 | H45: 172.57 | I45: 23.20424903
B46: Dubbo | C46: 3425 | D46: 41573 | E46: 12.13810219 | F46: 321 | G46: 129.5109034 | H46: 1316.17 | I46: 31.65924999
B47: Dungog | C47: 2251.5 | D47: 9108 | E47: 4.045303131 | F47: 65 | G47: 140.1230769 | H47: 724.22 | I47: 79.51471234
B48: Eurobodalla | C48: 3427.7 | D48: 37643 | E48: 10.98199959 | F48: 461 | G48: 81.65509761 | H48: 1006.202 | I48: 26.73012247
B49: Fairfield | C49: 101.6 | D49: 203109 | E49: 1999.104331 | F49: 725 | G49: 280.1503448 | H49: 681.39 | I49: 3.35479964
B50: Forbes | C50: 4720 | D50: 9759 | E50: 2.067584746 | F50: 115 | G50: 84.86086957 | H50: 1869.17 | I50: 191.5329439
B51: Gilgandra | C51: 4835.8 | D51: 4440 | E51: 0.9181521155 | F51: 178 | G51: 24.94382022 | H51: 1361.41 | I51: 306.6238739
B52: Glen Innes Severn | C52: 5486.9 | D52: 8966 | E52: 1.634073885 | F52: 122 | G52: 73.49180328 | H52: 1165.32 | I52: 129.9710016
B53: Gloucester | C53: 2952.3 | D53: 5064 | E53: 1.715272838 | F53: 84 | G53: 60.28571429 | H53: 757.26 | I53: 149.5379147
B54: Gosford | C54: 1028 | D54: 171992 | E54: 167.307393 | F54: 1075 | G54: 159.9925581 | H54: 1142.45 | I54: 6.642460114
B55: Goulburn Mulwaree | C55: 3220.3 | D55: 29376 | E55: 9.122131478 | F55: 259 | G55: 113.4208494 | H55: 1189.83 | I55: 40.50347222
B56: Great Lakes | C56: 3375.5 | D56: 36499 | E56: 10.8129166 | F56: 292 | G56: 124.9965753 | H56: 1120.9 | I56: 30.71043042
B57: Greater Hume | C57: 5748.7 | D57: 10258 | E57: 1.78440343 | F57: 114 | G57: 89.98245614 | H57: 2071.71 | I57: 201.9604211
B58: Greater Taree | C58: 3732 | D58: 48941 | E58: 13.11387996 | F58: 248 | G58: 197.3427419 | H58: 1724.18 | I58: 35.22976645
B59: Griffith | C59: 1640.3 | D59: 25811 | E59: 15.73553618 | F59: 280 | G59: 92.18214286 | H59: 1287.42 | I59: 49.87873387
B60: Gundagai | C60: 2457.3 | D60: 3755 | E60: 1.528099947 | F60: 54 | G60: 69.53703704 | H60: 779.42 | I60: 207.5685752
B61: Gunnedah | C61: 4992 | D61: 12826 | E61: 2.569310897 | F61: 174.9 | G61: 73.33333333 | H61: 1469.96 | I61: 114.6078278
B62: Guyra | C62: 4394.4 | D62: 4619 | E62: 1.051110504 | F62: 65 | G62: 71.06153846 | H62: 971.66 | I62: 210.3615501
B63: Gwydir | C63: 9273.6 | D63: 5080 | E63: 0.5477915804 | F63: 0 | H63: 2071.462 | I63: 407.7681102
B64: Harden | C64: 1868.5 | D64: 3751 | E64: 2.007492641 | F64: 0 | H64: 844.24 | I64: 225.0706478
B65: Hawkesbury | C65: 2775.8 | D65: 65527 | E65: 23.60652785 | F65: 288 | G65: 227.5243056 | H65: 1038.75 | I65: 15.85224411
B66: Hay | C66: 11328.5 | D66: 2989 | E66: 0.2638478175 | F66: 54 | G66: 55.35185185 | H66: 941.05 | I66: 314.8377384
B67: Hills | C67: 400.6 | D67: 187703 | E67: 468.554668 | F67: 539.92 | G67: 347.6496518 | H67: 1005.95 | I67: 5.35926437
B68: Holroyd | C68: 40.2 | D68: 111100 | E68: =D68/C68 -> 2763.681592 | F68: 485 | G68: =D68/F68 -> 229.0721649 | H68: 345.17 | I68: =((H68)/(D68/1000)) -> 3.106840684
B69: Hornsby | C69: 510 | D69: 168614 | E69: 330.6156863 | F69: 571 | G69: 295.295972 | H69: 663.53 | I69: 3.93520111
B70: Hunters Hill | C70: 5.7 | D70: 14689 | E70: 2577.017544 | F70: 59 | G70: 248.9661017 | H70: 65 | I70: 4.425079992
B71: Hurstville | C71: 22.7 | D71: 85886 | E71: 3783.524229 | F71: 315.62 | G71: 272.1183702 | H71: 230.38 | I71: 2.682392939
B72: Inverell | C72: 8605.8 | D72: 16846 | E72: 1.957517023 | F72: 210 | G72: 80.21904762 | H72: 2139.394 | I72: 126.9971507
B73: Jerilderie | C73: 3373.1 | D73: 1519 | E73: 0.4503275918 | F73: 42 | G73: 36.16666667 | H73: 1101.22 | I73: 724.963792
B74: Junee | C74: 2030.2 | D74: 6297 | E74: 3.101664861 | F74: 60 | G74: 104.95 | H74: 881.51 | I74: 139.9888836
B75: Kempsey | C75: 3378.8 | D75: 29643 | E75: 8.773233101 | F75: 298 | G75: 99.47315436 | H75: 1188.4 | I75: 40.0904092
B76: Kiama | C76: 258 | D76: 21314 | E76: 82.6124031 | F76: 338 | G76: 63.0591716 | H76: 262.51 | I76: 12.31631791
B77: Kogarah | C77: 15.6 | D77: 61030 | E77: 3912.179487 | F77: 243 | G77: 251.1522634 | H77: 163.63 | I77: 2.681140423
B78: Ku-Ring-Gai | C78: 85.4 | D78: 120978 | E78: 1416.604215 | F78: 424 | G78: 285.3254717 | H78: 482.23 | I78: 3.986096646
B79: Kyogle | C79: 3589.1 | D79: 9531 | E79: 2.655540386 | F79: 101 | G79: 94.36633663 | H79: 1216.13 | I79: 127.597314
B80: Lachlan | C80: 14973.2 | D80: 6775 | E80: 0.4524750888 | F80: 132 | G80: 51.32575758 | H80: 3981.53 | I80: 587.6797048
B81: Lake Macquarie | C81: 757 | D81: 202676 | E81: 267.7357992 | F81: 932 | G81: 217.4635193 | H81: 1332.92 | I81: 6.576605025
B82: Lane Cove | C82: 10.5 | D82: 34807 | E82: 3314.952381 | F82: 185 | G82: 188.1459459 | H82: 101.46 | I82: 2.914930905
B83: Leeton | C83: 1167 | D83: 11595 | E83: 9.935732648 | F83: 135 | G83: 85.88888889 | H83: 900.96 | I83: 77.70245796
B84: Leichhardt | C84: 10.32 | D84: 58136 | E84: 5633.333333 | F84: 451 | G84: 128.9046563 | H84: 151.38 | I84: 2.603894317
B85: Lismore | C85: 1289.6 | D85: 44629 | E85: 34.60685484 | F85: 417.44 | G85: 106.9111729 | H85: 1216.1 | I85: 27.24909812
B86: Lithgow | C86: 4513.8 | D86: 21249 | E86: 4.707563472 | F86: 188 | G86: 113.0265957 | H86: 904.325 | I86: 42.55847334
B87: Liverpool | C87: 305.5 | D87: 199928 | E87: 654.4288052 | F87: 704 | G87: 283.9886364 | H87: 875.67 | I87: 4.379926774
B88: Liverpool Plains | C88: 5086.4 | D88: 7819 | E88: 1.537236552 | F88: 113 | G88: 69.19469027 | H88: 1394.25 | I88: 178.3156414
B89: Lockhart | C89: 2895.8 | D89: 3080 | E89: 1.063609365 | F89: 48 | G89: 64.16666667 | H89: 1630.44 | I89: 529.3636364
B90: Maitland | C90: 391.7 | D90: 75170 | E90: 191.9070717 | F90: 369 | G90: 203.7127371 | H90: 687.26 | I90: 9.142743116
B91: Manly | C91: 14.4 | D91: 44786 | E91: 3110.138889 | F91: 338 | G91: 132.5029586 | H91: 109.3 | I91: 2.440494797
B92: Marrickville | C92: 16.5 | D92: 83356 | E92: 5051.878788 | F92: 520.44 | G92: 160.1644762 | H92: 216.1 | I92: 2.592494841
B93: Mid Western Regional | C93: 8757.9 | D93: 24017 | E93: 2.742324073 | F93: 300 | G93: 80.05666667 | H93: 2246.943 | I93: 93.55635591
B94: Moree Plains | C94: 17928.8 | D94: 14092 | E94: 0.7859979474 | F94: 222 | G94: 63.47747748 | H94: 2899.4 | I94: 205.7479421
B95: Mosman | C95: 8.7 | D95: 30276 | E95: 3480 | F95: 174 | G95: 174 | H95: 96.6 | I95: 3.190646056
B96: Murray | C96: 4344 | D96: 7466 | E96: 1.718692449 | F96: 91 | G96: 82.04395604 | H96: 1422.953 | I96: 190.5910796
B97: Murrumbidgee | C97: 3507.1 | D97: 2528 | E97: 0.7208234724 | F97: 39 | G97: 64.82051282 | H97: 613.09 | I97: 242.5197785
B98: Muswellbrook | C98: 3407.1 | D98: 17045 | E98: 5.002788295 | F98: 158 | G98: 107.8797468 | H98: 621.99 | I98: 36.49105309
B99: Nambucca | C99: 1492.8 | D99: 19655 | E99: 13.16653269 | F99: 107.94 | G99: 182.0919029 | H99: 708.13 | I99: 36.0279827
B100: Narrabri | C100: 13027.8 | D100: 13764 | E100: 1.056509925 | F100: 162 | G100: 84.96296296 | H100: 2316.58 | I100: 168.3071781
B101: Narrandera | C101: 4116.9 | D101: 5961 | E101: 1.447934125 | F101: 119 | G101: 50.09243697 | H101: 1555.591 | I101: 260.9614159
B102: Narromine | C102: 5224 | D102: 6854 | E102: 1.31202144 | F102: 80 | G102: 85.675 | H102: 1571.79 | I102: 229.3244821
B103: Newcastle | C103: 214 | D103: 160021 | E103: 747.7616822 | F103: 867 | G103: 184.5686275 | H103: 874.96 | I103: 5.467782354
B104: North Sydney | C104: 10.5 | D104: 71025 | E104: 6764.285714 | F104: 391 | G104: 181.6496164 | H104: 152.5 | I104: 2.147131292
B105: Oberon | C105: 3628 | D105: 5327 | E105: 1.468302095 | F105: 72 | G105: 73.98611111 | H105: 951.66 | I105: 178.648395
B106: Orange | C106: 284.1 | D106: 41431 | E106: 145.8324534 | F106: 377 | G106: 109.8965517 | H106: 484.019 | I106: 11.6825324
B107: Palerang | C107: 5146.7 | D107: 15510 | E107: 3.013581518 | F107: 120 | G107: 129.25 | H107: 1301.43 | I107: 83.90909091
B108: Parkes | C108: 5958.1 | D108: 15217 | E108: 2.554002115 | F108: 165 | G108: 92.22424242 | H108: 2127.38 | I108: 139.8028521
B109: Parramatta | C109: 61.4 | D109: 189932 | E109: 3093.355049 | F109: 790.5 | G109: 240.2681847 | H109: 558.569 | I109: 2.940889371
B110: Penrith | C110: 404.8 | D110: 194134 | E110: 479.5800395 | F110: 1055.5 | G110: 183.9261014 | H110: 1071.98 | I110: 5.521856038
B111: Pittwater | C111: 90.4 | D111: 63338 | E111: 700.6415929 | F111: 302 | G111: 209.7284768 | H111: 254.47 | I111: 4.017651331
B112: Port Macquarie-Hastings | C112: 3686 | D112: 77481 | E112: 21.02034726 | F112: 492 | G112: 157.4817073 | H112: 1321.869 | I112: 17.06055678
B113: Port Stephens | C113: 859 | D113: 69728 | E113: 81.17345751 | F113: 419 | G113: 166.4152745 | H113: 718.56 | I113: 10.30518587
B114: Queanbeyan | C114: 172.4 | D114: 40858 | E114: 236.9953596 | F114: 278 | G114: 146.971223 | H114: 310.65 | I114: 7.603162171
B115: Randwick | C115: 36.3 | D115: 143776 | E115: 3960.77135 | F115: 530 | G115: 271.2754717 | H115: 302.9 | I115: 2.106749388
B116: Richmond Valley | C116: 3051.4 | D116: 22983 | E116: 7.531952546 | F116: 244 | G116: 94.19262295 | H116: 1084.45 | I116: 47.18487578
B117: Rockdale | C117: 28.2 | D117: 108072 | E117: 3832.340426 | F117: 361 | G117: 299.3684211 | H117: 284.25 | I117: 2.630190984
B118: Ryde | C118: 40.5 | D118: 114598 | E118: 2829.580247 | F118: 441 | G118: 259.8594104 | H118: 318.49 | I118: 2.779193354
B119: Shellharbour | C119: 147.4 | D119: 68762 | E119: 466.4993216 | F119: 344 | G119: 199.8895349 | H119: 388.23 | I119: 5.645996335
B120: Shoalhaven | C120: 4530.6 | D120: 99016 | E120: 21.85494195 | F120: 756 | G120: 130.973545 | H120: 1731.897 | I120: 17.49108225
B121: Singleton | C121: 4895.6 | D121: 23884 | E121: 4.878666558 | F121: 201 | G121: 118.8258706 | H121: 845.43 | I121: 35.39733713
B122: Snowy River | C122: 6029 | D122: 8069 | E122: 1.338364571 | F122: 129.4 | G122: 62.35703246 | H122: 895.64 | I122: 110.9976453
B123: Strathfield | C123: 13.9 | D123: 39481 | E123: 2840.359712 | F123: 137 | G123: 288.1824818 | H123: 97.02 | I123: 2.457384565
B124: Sutherland | C124: 370 | D124: 225070 | E124: 608.2972973 | F124: 1018 | G124: 221.0903733 | H124: 818 | I124: 3.634424846
B125: Sydney | C125: 26.7 | D125: 198331 | E125: 7428.127341 | F125: 1803.5 | G125: 109.9700582 | H125: 329.37 | I125: 1.660708613
B126: Tamworth Regional | C126: 9893.6 | D126: 60495 | E126: 6.114558907 | F126: 496 | G126: 121.9657258 | H126: 3185.85 | I126: 52.66303
B127: Temora | C127: 2802.6 | D127: 6050 | E127: 2.158709769 | F127: 88 | G127: 68.75 | H127: 1240.16 | I127: 204.985124
B128: Tenterfield | C128: 7332.1 | D128: 6980 | E128: 0.9519782873 | F128: 94 | G128: 74.25531915 | H128: 1689.188 | I128: 242.0040115
B129: Tumbarumba | C129: 4391 | D129: 3578 | E129: 0.8148485539 | F129: 90 | G129: 39.75555556 | H129: 556.44 | I129: 155.5170486
B130: Tumut | C130: 4566.5 | D130: 11375 | E130: 2.490966824 | F130: 130 | G130: 87.5 | H130: 635.3 | I130: 55.85054945
B131: Tweed | C131: 1309.4 | D131: 91210 | E131: 69.65785856 | F131: 675 | G131: 135.1259259 | H131: 1245 | I131: 13.6498191
B132: Upper Hunter | C132: 8100 | D132: 14658 | E132: =D132/C132 -> 1.80962963 | F132: 198 | G132: =D132/F132 -> 74.03030303 | H132: 1769.5 | I132: =((H132)/(D132/1000)) -> 120.7190613
B133: Upper Lachlan | C133: 7228.8 | D133: 7761 | E133: 1.073622178 | F133: 133 | G133: 58.35338346 | H133: 1985.4 | I133: 255.8175493
B134: Uralla | C134: 3229.8 | D134: 6408 | E134: 1.984023779 | F134: 114 | G134: 56.21052632 | H134: 961.1 | I134: 149.9843945
B135: Urana | C135: 3356 | D135: 1147 | E135: 0.3417759237 | F135: 35 | G135: 32.77142857 | H135: 984.65 | I135: 858.4568439
B136: Wagga Wagga | C136: 4825.9 | D136: 62799 | E136: 13.01290951 | F136: 451.35 | G136: 139.1359256 | H136: 2291.114 | I136: 36.48328795
B137: Wakool | C137: 7520.8 | D137: 3990 | E137: 0.5305286672 | F137: 74 | G137: 53.91891892 | H137: 1571.83 | I137: 393.9423559
B138: Walcha | C138: 6266.9 | D138: 3098 | E138: 0.4943432957 | F138: 68.36 | G138: 45.31889994 | H138: 931.63 | I138: 300.7198192
B139: Walgett | C139: 22334.8 | D139: 6840 | E139: 0.3062485449 | F139: 129 | G139: 53.02325581 | H139: 2374.922 | I139: 347.2108187
B140: Warren | C140: 10763 | D140: 2921 | E140: 0.2713927344 | F140: 73 | G140: 40.01369863 | H140: 1323.96 | I140: 453.2557343
B141: Warringah | C141: 149.4 | D141: 155289 | E141: 1039.417671 | F141: 589 | G141: 263.6485569 | H141: 486.97 | I141: 3.135895009
B142: Warrumbungle | C142: 12381.3 | D142: 9786 | E142: 0.7903855007 | F142: 183 | G142: 53.47540984 | H142: 2667.71 | I142: 272.6047415
B143: Waverley | C143: 9.2 | D143: 71769 | E143: 7800.978261 | F143: 600.1 | G143: 119.5950675 | H143: 123.46 | I143: 1.72024133
B144: Weddin | C144: 3409.6 | D144: 3709 | E144: 1.087810887 | F144: 57 | G144: 65.07017544 | H144: 1093.99 | I144: 294.9555136
B145: Wellington | C145: 4112.5 | D145: 9054 | E145: 2.201580547 | F145: 106 | G145: 85.41509434 | H145: 1415.6 | I145: 156.3507842
B146: Wentworth | C146: 26266.9 | D146: 6884 | E146: 0.2620788902 | F146: 102 | G146: 67.49019608 | H146: 2318.75 | I146: 336.8317838
B147: Willoughby | C147: 22.4 | D147: 74166 | E147: 3310.982143 | F147: 395 | G147: 187.7620253 | H147: 211.45 | I147: 2.851036863
B148: Wingecarribee | C148: 2688.9 | D148: 47584 | E148: 17.6964558 | F148: 367 | G148: 129.6566757 | H148: 1203.868 | I148: 25.29984869
B149: Wollondilly | C149: 2556.6 | D149: 47084 | E149: 18.41664711 | F149: 221 | G149: 213.0497738 | H149: 865.174 | I149: 18.37511681
B150: Wollongong | C150: 715 | D150: 206794 | E150: 289.2223776 | F150: 1009 | G150: 204.9494549 | H150: 1014.88 | I150: 4.90768591
B151: Woollahra | C151: 12.2 | D151: 58619 | E151: 4804.836066 | F151: 367 | G151: 159.7247956 | H151: 145.82 | I151: 2.487589348
B152: Wyong | C152: 821.5 | D152: 159015 | E152: 193.5666464 | F152: 906 | G152: 175.513245 | H152: 1039.4 | I152: 6.536490268
B153: Yass Valley | C153: 3998.5 | D153: 16433 | E153: 4.109791172 | F153: 149 | G153: 110.2885906 | H153: 1232.69 | I153: 75.01308343
B154: Young | C154: 2693.3 | D154: 12641 | E154: 4.693498682 | F154: 111 | G154: 113.8828829 | H154: 1171.54 | I154: 92.67779448
